{"text_format":"1","workbook":"xlsx","n_sheets":7,"sheets":["DEMANDE ACHAT","REGLES D'ACHAT","AIDE CODE NACRES","NOMENCLATURE NACRE","Sous enveloppe dotation","LISTE BUDGET","CODE NACRE-marchés publics"],"not_rendered":{"charts":0,"images":3,"macros":1,"external_links":0,"defined_names":4,"comments":1,"pivot_tables":0},"unopened":[],"bounds":{"document_bytes":16777216,"sheet_cells":100000,"rows_first":2000,"rows_last":500,"rows_between":2000,"halvings":0,"cell_chars":16384,"cell_head_chars":4096},"cells_cut":0,"cells_raw":0,"read":"whole","date_system":"1900"}

{"sheet":"DEMANDE ACHAT","index":0,"n_rows":57,"n_cols":7,"rows_kept":57,"cut":false,"hidden":false,"merged":[[55,0,55,4],[56,0,56,4],[13,1,13,5],[2,1,2,5],[5,1,5,5],[54,0,54,4],[11,4,11,5],[7,4,7,5],[12,4,12,5],[17,0,17,5],[19,1,19,5]]}
[null,null,null,null,"Date : ",{"$f":"TODAY()","v":"2025-04-03"}]
[]
[null,"DEMANDE D'ACHAT"]
[]
[]
["DEMANDEUR"]
[]
["PROJET","NOM DU BUDGET",null,"TUTELLE : ",{"$f":"VLOOKUP(B8,'LISTE BUDGET'!A:J,2,FALSE)","v":"TUTELLE"}]
[]
["Sous enveloppe Dotation (INSERM et NANTES U)",null,"A compléter si budget = dotation"]
[]
["Porteur projet*",{"$f":"VLOOKUP(B8,'LISTE BUDGET'!A:J,6,FALSE)","v":"PORTEUR"},null,"PFI",{"$f":"VLOOKUP(B8,'LISTE BUDGET'!A:J,5,FALSE)","v":"PFI"}]
["*A mettre en copie de votre demande! ",null,null,"Date de fin d'engagement",{"$f":"VLOOKUP(B8,'LISTE BUDGET'!A:J,10,FALSE)","v":"DATE FIN D'ENGAGEMENT"}]
[null,"* si plusieurs projets : mettre \"MULTI-IMPUTATIONS et préciser le nom précis de chaque projet en face des lignes d'achat en colonne G            La tutelle doit impérativement être la même pour tous les projets"]
[null,"Equipement  (à cocher si votre achat concerne un achat d'équipement, Cf règles d'achat)"]
[]
["Adresse de livraison (si différente de celle du laboratoire)"]
[]
[]
["FOURNISSEUR"]
[]
["VIGILANCE MARCHES PUBLICS (voir si FOURNISSEUR OK avec le Pôle Financier) si : ",null,null,"NANTES U","INSERM","LES DEUX"]
[]
["         Pour les demandes hors offre annuelle, merci de joindre impérativement un devis"]
["REFERENCE PRODUIT","DESIGNATION PRODUIT","CODES NACRES\nFormat : XX.XX","Quantité ","Prix unitaire ","Montant HT","Multi-budgets"]
[null,null,null,null,null,{"$f":"D26*E26","v":0}]
[null,null,null,null,null,{"$f":"D27*E27","v":0}]
[null,null,null,null,null,0]
[null,null,null,null,null,0]
[null,null,null,null,null,0]
[null,null,null,null,null,0]
[null,null,null,null,null,0]
[null,null,null,null,null,0]
[null,null,null,null,null,0]
[null,null,null,null,null,0]
[null,null,null,null,null,0]
[null,null,null,null,null,0]
[null,null,null,null,null,0]
[null,null,null,null,null,0]
[null,null,null,null,null,0]
[null,null,null,null,null,0]
[null,null,null,null,null,0]
[null,null,null,null,null,0]
[null,null,null,null,null,0]
[null,null,null,null,null,0]
[null,null,null,null,null,0]
[null,null,null,null,null,0]
[null,null,null,null,null,0]
[null,null,null,null,null,0]
[null,null,null,null,null,0]
[null,null,null,null,null,0]
[null,null,null,null,null,0]
[null,null,null,null,null,0]
[null,null,null,null,null,0]
["FRAIS DE CARBOGLACE "]
["FRAIS DE PORT"]
["Montant Total HT",null,null,null,null,{"$f":"SUM(F26:F56)","v":0}]

{"sheet":"REGLES D'ACHAT","index":1,"n_rows":19,"n_cols":5,"rows_kept":19,"cut":false,"hidden":false,"merged":[[12,1,12,8],[14,4,14,8],[17,0,18,0],[15,4,15,8],[16,4,16,8],[17,4,17,8],[18,4,18,8]]}
[null,"ACHAT D'EQUIPEMENT"]
[]
[null,"Un équipement est un bien (matériel ou immatériel) qui sert de façon durable (+ de 12 mois) "]
[]
[null,"Il n'est possible de les acheter que sur budget : "]
[]
[null,"NANTES UNIVERSITE",null,null,"INSERM"]
[null,"Valeur unitaire > 800€ HT",null,null,"Valeur unitaire > 1 600€ HT"]
[]
[]
[null,"SEUIL D'ACHAT ET PROCEDURE"]
[]
[null,"** A partir de 5 000€ >> Attestations Fiscales, sociales et K-bis nécessaires (responsabilité du Pôle Financier)"]
[]
[null,"Seuil","Modalité de publicité","Type de contrat","Procédure"]
[null," - 5 000€ HT",null,"BC + CGA","Réaliser un sourcing ou procédure de demande de devis"]
[null," - 40 000€ HT",null,null,"Idem"]
["Accompagné \npar le \nPôle \nFinancier","De 40 000 à \n90 000€ HT","AAPC procédure adaptée (profil acheteur)","CCP et acte d'engagement","1/ Remplir et faire valider la fiche de financement du projet \n2/ Établir un Cahier des charges technique (cahier des clauses particulières – CCP) ;\nUne référence interne est donnée à la procédure, qui sera reprise sur l'acte d'engagement et l’ensemble des documents de la consultation (traçabilité).\n3/ Transmettre la fiche de financement et le CCP à la Direction des achats pour visa et détermination de la\nprocédure à suivre.\n4/ L’analyse et la rédaction du rapport de choix restent de la seule compétence du porteur du projet d’achat. La Direction des achats s’assure de la cohérence juridique du rapport produit.\n5/ Après achèvement de la procédure, la Direction des achats transmet une copie du marché (porteur, SFP,\nagence comptable). La commande Sifac est engagée par la composante/service, CCP saisit l’avance si elle est demandée."]
[null,"Au-dessus de \n90 000€ HT","AAPC BOAMP\n+ profil acheteur","Acte d'engagement\n+ CCAP + CCTP","1/ Remplir et faire valider la fiche de financement\n2/ Rédiger le CCTP (cahier des clauses techniques particulières)         \n3/ Transmettre le CCTP et la fiche projet validée à la Direction des achats pour engagement et lancement\nde la procédure\n4/ Après réception des offres, le porteur du projet est sollicité pour l'analyse des offres, ainsi que pour la présentation du\nprojet devant les membres de la commission des marchés\n5/ Après achèvement de la procédure, la Direction des achats transmet une copie du marché (porteur, SFP,\nagence comptable). La commande Sifac est engagée par la composante/service, CCP saisit l’avance si elle est demandée."]

{"sheet":"AIDE CODE NACRES","index":2,"n_rows":38,"n_cols":2,"rows_kept":38,"cut":false,"hidden":false,"merged":[]}
[]
["NOMENCLATURE NACRES"]
[]
["         Facilitez votre exploration sur la nomenclature en utilisant le Ctrl+F pour faire votre recherche par mots clés"]
["         CODE NACRE DISPONIBLE SUR LA PLUPART DES SITES FOURNISSEURS"]
[]
["FAMILLE D'ACHAT (en bleu les familles spécifiques aux achats recherche)"]
[]
["A","APPROVISIONNEMENT GENERAUX (restaurant, consommables, fournitures et équipement de bureau, reprographie…)"]
["B","BATIMENTS - INFRASTRUCTURES - TRAVAUX - ESPACES VERTS"]
["C","COMMUNICATION - CULTURE - DOCUMENTATION"]
["CE et CF","documentation destinée aux activités de recherche"]
["D","DEPLACEMENTS : TRANSPORT ET HEBERGEMENT DES PERSONNES"]
["E","ETUDES - CONSEILS - ASSURANCES - PI - RESSOURCES HUMAINES"]
["F","FRET / EXPEDITION / TRANSPORT / DEMENAGEMENT"]
["G","GAZ DE LABORATOIRE OU D'ATELIER + CRYOGENIE"]
["H","HYGIENE ET SECURITE AU TRAVAIL"]
["I","INFORMATIQUE - TELECOMMUNICATIONS - AUDIOVISUEL"]
["J","AMENAGEMENT DE LABORATOIRE ET DE SALLE DE TP"]
["K","EXPERIEMENTATION ANIMALE - ELEVAGE ANIMAL - CONSERVATION ANIMALE - ETUDE DES ANIMAUX"]
["L","MEDICAL (médicaments, équipements d'analyse médical …)"]
["M","MICROSCOPIE - PROFILOMETRIE"]
["N","CHIMIE BIOLOGIE"]
["NA","Produits et réactifs"]
["NB","Consommables et matériel courant de laboratoire"]
["NC","Instruments spécifiques et consommables dédiés"]
["ND","Réparation - maintenance - vérification des équipements"]
["NE","Prestations de services"]
["O","OPTIQUE - LASERS"]
["P","PHYSIQUE - PHYSIQUE NUCLEAIRE ET CORPUSCULAIRE"]
["Q","EXPERIMENTATION VEGETALE"]
["R","ATELIER - MECANIQUE - AUTOMATIQUE"]
["S","SPECTROMETRIE - SPECTROSCOPIE - RAYONS X"]
["T","ELECTRONIQUE / TEST, ENERGIE, MESURES"]
["U","SCIENCES DE LA TERRE - GEOPHYSIQUE - ASTROPHYSIQUE - ARCHEOLOGIE"]
["V","VIDE ET ULTRAVIDE : EQUIPEMENTS POUR LE VIDE ET POUR LES TECHNIQUES SOUS VIDE"]
["W","NANOTECHNOLOGIES - MICRO-ELECTRONIQUE"]
["X","DEPENSES HORS ACHATS"]

{"sheet":"NOMENCLATURE NACRE","index":3,"n_rows":2058,"n_cols":3,"rows_kept":2058,"cut":false,"hidden":false,"merged":[[0,0,0,2]]}
["Nomenclature Nacres créée avec le plan de comptes M9 => Souche Sifac"]
[]
[1,null,3]
["Codes Nacres",null,"Intitulés Nacres"]
["A",null,"APPROVISIONNEMENTS GENERAUX"]
["AA",null,"ALIMENTATION - RESTAURATION - HOTELLERIE"]
["AA.0",null,"PRODUITS ALIMENTAIRES CONGELES "]
["AA.01","N001","PAINS, PATISSERIES, VIENNOISERIES CONGELES"]
["AA.02","N002","PRODUITS CARNES CONGELES"]
["AA.03","N003","PRODUITS DE LA MER OU DEAU DOUCE CONGELES"]
["AA.04","N004","FRUITS ET LEGUMES CONGELES"]
["AA.05","N005","PREPARATIONS ALIMENTAIRES ET PLATS CUISINES CONGELES"]
["AA.1 ",null,"PRODUITS ALIMENTAIRES FRAIS"]
["AA.11","N006","PAINS, PATISSERIES, VIENNOISERIES FRAIS"]
["AA.12","N007","VIANDES FRAICHES - REFRIGEREES"]
["AA.13","N008","PRODUITS DE LA MER OU DEAU DOUCE FRAIS"]
["AA.14","N009","FRUITS ET LEGUMES FRAIS OU REFRIGERES"]
["AA.15","N010","ŒUFS ET PRODUITS LAITIERS "]
["AA.16","N011","PREPARATIONS ALIMENTAIRES ET PLATS CUISINES FRAIS - REFRIGERES"]
["AA.2",null,"BOISSONS ET EPICERIE"]
["AA.21","N012","BOISSONS NON ALCOOLISEES"]
["AA.22","N013","BOISSONS ALCOLISEES"]
["AA.23","N014","CONSERVES ET EPICERIE"]
["AA.3",null,"ALIMENTATION SPECIFIQUE"]
["AA.31","N015","ALIMENTS ADAPTES A L'ENFANT"]
["AA.32","N016","ALIMENTS DIETETIQUES SANS FIN MEDICALE"]
["AA.4",null,"PETITES FOURNITURES ET EQUIPEMENTS POUR LA RESTAURATION"]
["AA.41","N017","CONSOMMABLES POUR LA RESTAURATION"]
["AA.42","N018","PETITES FOURNITURES POUR LA RESTAURATION"]
["AA.43","N019","MOBILIER DE CUISINE ET DE SALLE DE RESTAURATION"]
["AA.44","N020","EQUIPEMENTS DE CUISINE ET DE SALLE DE RESTAURATION (ELECTROMENAGER,…)"]
["AA.5",null,"PETITES FOURNITURES ET EQUIPEMENTS POUR L'HOTELLERIE ET LA BUANDERIE"]
["AA.51","N021","PETITES FOURNITURES POUR L'HOTELLERIE"]
["AA.52","N022","MOBILIER D'HOTELLERIE"]
["AA.53","N023","EQUIPEMENT POUR L'HOTELLERIE ET LA BUANDERIE"]
["AA.6",null,"SERVICES DE RESTAURATION ET SERVICES CONNEXES"]
["AA.61","N024","SERVICES DE RESTAURATION SOCIALE (RESTAURANT PROPRE A GESTION CONCEDEE)"]
["AA.62","N025","TICKETS ET CHEQUES REPAS"]
["AA.63","N026","SERVICES DE TRAITEURS / PLATEAUX REPAS"]
["AA.64","N027","SERVICES DE RESTAURATION EXTERIEURS (RESTAURANTS)"]
["AA.65","N028","SERVICES DE CONTROLES SANITAIRES ET DE QUALITE"]
["AA.66","N029","SERVICES DE BLANCHISSERIE- PRESSING POUR LA RESTAURATION ET L'HOTELLERIE"]
["AA.7",null,"REPARATION ET MAINTENANCE DES EQUIPEMENTS DE RESTAURATION ET HOTELLERIE"]
["AA.71","N030","REPARATION ET MAINTENANCE DES EQUIPEMENTS DE RESTAURATION ET DE CUISINE"]
["AA.72","N031","REPARATION ET MAINTENANCE DES EQUIPEMENTS D'HOTELLERIE ET BUANDERIE"]
["AB",null,"BUREAU (HORS INFORMATIQUE)"]
["AB.0 ",null,"CONSOMMABLES, FOURNITURES ET EQUIPEMENTS DE BUREAU"]
["AB.01","N032","PETITES FOURNITURES ET PETITS EQUIPEMENTS DE BUREAU (HORS INFORMATIQUE)"]
["AB.02","N033","MOBILIER DE BUREAU ET DE SALLES DE REUNION"]
["AB.03","R446","MOBILIER ET EQUIPEMENTS SPECIFIQUES ERGONOMIQUES"]
["AB.1",null,"REPARATION ET MAINTENANCE DU MOBILIER ET DES EQUIPEMENTS DE BUREAU ET DE SALLE DE REUNION"]
["AB.11","N034","REPARATION ET MAINTENANCE DES EQUIPEMENTS DE BUREAU ET DE SALLE DE REUNION"]
["AB.12","Z148","REPARATION ET MAINTENANCE DES EQUIPEMENTS SPECIFIQUES ERGONOMIQUES"]
["AC",null,"IMPRESSION-REPROGRAPHIE"]
["AC.0",null,"PAPIERS ET CARTONS D'IMPRESSION-REPROGRAPHIE"]
["AC.01","N035","PAPIERS BLANCS OU COLORES COURANTS POUR IMPRESSION-REPROGRAPHIE"]
["AC.02","N036","PAPIERS CARTONNES POUR IMPRESSION-REPROGRAPHIE"]
["AC.03","N037","AUTRES SUPPORTS PAPIER SPECIFIQUES D'IMPRESSION-REPROGRAPHIE"]
["AC.1",null,"CONSOMMABLES POUR LA REPROGRAPHIE"]
["AC.11","N038","CONSOMMABLES POUR PHOTOCOPIEURS (ENCRES, AGRAPHES,…)"]
["AC.12","N039","SUPPORTS SPECIFIQUES D'IMPRESSION"]
["AC.2",null,"EQUIPEMENTS POUR REPROGRAPHIE"]
["AC.21","N040","EQUIPEMENTS DE REPROGRAPHIE DE PROXIMITE"]
["AC.22","N041","EQUIPEMENTS DE REPROGRAPHIE HAUT DEBIT POUR IMPRIMERIE"]
["AC.23","N042","AUTRES EQUIPEMENTS POUR ATELIER DE REPROGRAPHIE"]
["AC.3",null,"SERVICES D'IMPRESSION ET DE REPROGRAPHIE"]
["AC.31","N043","SERVICES EXTERNALISES D'IMPRESSION ET DE REPROGRAPHIE"]
["AC.4",null,"REPARATION ET MAINTENANCE DES EQUIPEMENTS DE REPROGRAPHIE"]
["AC.41","N044","REPARATION ET MAINTENANCE DES EQUIPEMENTS DE REPROGRAPHIE DE PROXIMITE"]
["AC.42","N045","REPARATION ET MAINTENANCE DES EQUIPEMENTS DE REPROGRAPHIE HAUT DEBIT"]
["AC.43","N046","REPARATION ET MAINTENANCE DES AUTRES EQUIPEMENTS D'ATELIER DE REPROGRAPHIE"]
["AD",null,"PARC DE VEHICULES"]
["AD.0",null,"FOURNITURES, CONSOMMABLES ET PETITS EQUIPEMENTS POUR LE PARC DE VEHICULES"]
["AD.01","N047","ACCESSOIRES ET PIECES DETACHEES POUR LE PARC DE VEHICULES"]
["AD.02","N048","MATERIEL, OUTILLAGE ET EQUIPEMENTS DE GARAGE "]
["AD.03","N049","PRODUITS POUR L'ENTRETIEN DES VEHICULES"]
["AD.04","N050","MATERIEL D'ESSAIS DE CHOCS ET ACCESSOIRES"]
["AD.1",null,"PARC VEHICULE (ACHAT OU LOCATION DE LONGUE DUREE)"]
["AD.11","N051","VEHICULES AUTOMOBILES DE TRANSPORT DE PERSONNES (ACHAT OU LOC. LONGUE DUREE)"]
["AD.12","N052","VEHICULES AUTOMOBILES DE TRANSPORT EN COMMUN (ACHAT OU LOC. LONGUE DUREE)"]
["AD.13","N053","VEHICULES AUTOMOBILES DE TRANSPORT DE MARCHANDISES (ACHAT OU LOC. LONGUE DUREE)"]
["AD.14","N054","CYCLES ET CYCLOMOTEURS"]
["AD.15","N055","VEHICULES TRACTES"]
["AD.2",null,"CARBURANTS"]
["AD.21","N056","CARBURANTS A LA POMPE (AUTOMOBILES)"]
["AD.22","N057","KEROSENE"]
["AD.23","N058","CARBURANTS STOCKES"]
["AD.24","R429","CARBURANT POUR NAVIRES"]
["AD.25","R430","RECHARGE ELECTRIQUE POUR VEHICULES"]
["AD.3",null,"SERVICES POUR LE PARC VEHICULE"]
["AD.31","N059","CONTROLES TECHNIQUES DES VEHICULES"]
["AD.32","R431","SERVICES DE GESTION DE FLOTTE AUTOMOBILE"]
["AD.4",null,"ENTRETIEN ET REPARATION DU PARC VEHICULE"]
["AD.41","N060","ENTRETIEN ET REPARATION DU PARC VEHICULE"]
["AD.42","N061","NETTOYAGE DES VEHICULES"]
["AD.43","N062","MAINTENANCE DU MATERIEL ET DE L'OUTILLAGE DE GARAGE "]
["AD.44","R431","NE PLUS UTILISER AD.32"]
["AD.45","R447","ENTRETIEN MAINTENANCE DE BORNES DE RECHARGE ELECTRIQUE"]
["AE",null,"ACTIVITES SPORTIVES, MUSICALES ET RECREATIVES"]
["AE.0",null,"FOURNITURES ET EQUIPEMENTS POUR LE SPORT"]
["AE.01","N063","VETEMENTS, CHAUSSURES ET ACCESSOIRES (HORS EPI)"]
["AE.02","N064","PETITES FOURNITURES DE SPORT"]
["AE.03","N065","EQUIPEMENTS DE SPORT (POUR INFRASTRUCTURES,…)"]
["AE.1",null,"FOURNITURES ET EQUIPEMENTS POUR ACTIVITES MUSICALES"]
["AE.11","N066","INSTRUMENTS DE MUSIQUE ET ACCESSOIRES"]
["AE.2",null,"FOURNITURES ET EQUIPEMENTS POUR ACTIVITES RECREATIVES ET D'EXTERIEUR"]
["AE.21","N067","JEUX EDUCATIFS"]
["AE.22","N068","FOURNITURES ET EQUIPEMENTS POUR ACTIVITES EXTERIEURES"]
["AE.23","N069","AUTRES FOURNITURES ET EQUIPEMENTS POUR ACTIVITES RECREATIVES"]
["AE.24","R432","JOUETS"]
["AE.25","R433","FIGURINES"]
["AE.26","R434","PELUCHES"]
["AE.27","R435","ARTICLES TEXTILES ET BIJOUX"]
["AE.3",null,"REPARATION ET MAINTENANCE DES EQUIPEMENTS POUR ACTIVITES SPORTIVES, MUSICALES ET D'EXTERIEURES"]
["AE.31","N070","REPARATION ET MAINTENANCE DES EQUIPEMENTS DE SPORT"]
["AE.32","N071","REPARATION ET MAINTENANCE DES INSTRUMENTS DE MUSIQUE"]
["AE.33","N072","REPARATION ET MAINTENANCE DES EQUIPEMENTS POUR ACTIVITES RECREATIVES"]
["AE.4",null,"SERVICES SPORTIFS"]
["AE.41","N073","SERVICES D'ORGANISATION ET DE PROMOTION DES MANIF. SPORTIVES (HORS EVENEMENTIEL)"]
["AE.42","N074","SERVICES D'EVALUATION, D'ENREGISTREMENT OU DE CONTROLE DES PRESTATIONS SPORTIVES"]
["AE.43","N075","SERVICES D'EXPLOITATION DES INSTALLATIONS SPORTIVES "]
["AE.44","N076","AUTRES SERVICES POUR LE SPORT"]
["AE.5",null,"SERVICES RECREATIFS"]
["AE.51","N077","SERVICES D'ANIMATION RECREATIFS"]
["AE.52","N078","AUTRES SERVICES RECREATIFS"]
["AF",null,"AUTRES APPROVISIONNEMENTS GENERAUX"]
["AF.0",null,"SALLES D'ENSEIGNEMENT"]
["AF.01","N079","MOBILIER PEDAGOGIQUE"]
["AF.1",null,"AUTRES PETITES FOURNITURES GENERALES"]
["AF.11","N080","ARTICLES DE DECORATION ET D'ORNEMENT"]
["AF.2",null,"AUTRES SERVICES GENERAUX"]
["AF.21","N081","LOCATION DE SALLES DE COURTE DUREE (HORS EVENEMENTIEL)"]
["AF.3",null,"FOURNITURES ET EQUIPEMENTS POUR CARTES MULTISERVICES"]
["AF.31","R397","CARTES MULTISERVICES"]
["AF.32","R398","SYSTEMES DE CREATION ET DE GESTION DE CARTES MULTISERVICES"]
["AF.33","R399","REPAR. ET MAINTENANCE DE SYSTEMES DE CREATION ET DE GESTION DE CARTES MULTISERVICES"]
["B",null,"BATIMENTS - INFRASTRUCTURES - TRAVAUX - ESPACES VERTS"]
["BA",null,"FLUIDES ET COMBUSTIBLES"]
["BA.0",null,"FLUIDES (ABONNEMENTS ET CONSOMMATION) ET COMBUSTIBLES"]
["BA.01","N082","ELECTRICITE DISTRIBUEE "]
["BA.02","N083","COMBUSTIBLES GAZEUX DISTRIBUES "]
["BA.03","N084","EAU COURANTE"]
["BA.04","N085","FIOUL DOMESTIQUE"]
["BA.05","N086","CHAUFFAGE URBAIN"]
["BA.06","R387","COMBUSTIBLES A BASE DE BOIS"]
["BA.07","R470","AUTRES COMBUSTIBLES "]
["BA.1",null,"EQUIPEMENTS RELATIFS A LA DISTRIBUTION DES FLUIDES"]
["BA.11","N087","MATERIEL DE STOCKAGE DES FLUIDES (CUVES A FIOUL,…)"]
["BB",null,"FOURNITURES, EQUIPEMENTS ET SERVICES POUR L'ENTRETIEN DES LOCAUX ET L'HYGIENE"]
["BB.0",null,"FOURNITURES ET EQUIPEMENTS POUR L'ENTRETIEN DES LOCAUX ET L'HYGIENE"]
["BB.01","N088","PRODUITS ET PETITES FOURNITURES D'HYGIENE ET DE TOILETTE"]
["BB.02","N089","PRODUITS ET PETITES FOURNITURES D'ENTRETIEN MENAGER"]
["BB.03","N090","MATERIEL POUR L'ENTRETIEN DES LOCAUX"]
["BB.04","R448","MATERIELS POUR LE TRAITEMENT DES DECHETS"]
["BB.1",null,"SERVICES DE NETTOYAGE/ENTRETIEN DES LOCAUX"]
["BB.11","N091","SERVICES DE NETTOYAGE COURANT DES LOCAUX"]
["BB.12","N092","SERVICES DE NETTOYAGE SPECIALISE DES LOCAUX "]
["BB.13","N093","SERVICES DE NETTOYAGE DES VITRES"]
["BB.14","N094","SERVICES DE NETTOYAGE ET D'ENTRETIEN DES LOCAUX SENSIBLES"]
["BB.2",null,"SERVICES SPECIALISES D'ENTRETIEN DES LOCAUX"]
["BB.21","N095","SERVICES DE DESINFECTION"]
["BB.22","N096","SERVICES DE DERATISATION"]
["BB.23","N097","SERVICES DE DESINSECTISATION"]
["BB.24","N098","SERVICES DE DECONTAMINATION NUCLEAIRE, BIOLOGIQUE OU CHIMIQUE"]
["BB.3",null,"SERVICES DE TRAITEMENT DES DECHETS"]
["BB.31","N099","SERVICES DE TRAITEMENT DES DECHETS CHIMIQUES ET ASSIMILES"]
["BB.32","N100","SERV. TRAITMNT DECHETS BIOLOG. ET D'ACTIVIT. DE SOINS A RISQUES INFECTIEUX (DAS)"]
["BB.33","N101","SERVICES DE TRAITEMENT DES DECHETS RADIOACTIFS D'ACTIVITES NUCLEAIRES"]
["BB.34","N102","SERVICES DE TRAITEMENT DES DECHETS DEEE"]
["BB.35","N103","SERVICES DE TRAITEMENT DES DECHETS PAPIER"]
["BB.36","N104","SERVICES DE TRAITEMENT DES AUTRES DECHETS (MENAGERS, INDUSTRIELS,…)"]
["BB.4",null,"REPARATION ET MAINTENANCE DU MATERIEL D'ENTRETIEN DES LOCAUX"]
["BB.41","N105","REPARATION ET MAINTENANCE DU MATERIEL D'ENTRETIEN DES LOCAUX"]
["BB.42","R449","REPARATION ET MAINTENANCE DU MATERIEL POUR LE TRAITEMENT DES DECHETS"]
["BC",null,"AUTRES SERVICES AUX BÂTIMENTS"]
["BC.0",null,"SERVICES D'ACCUEIL, GARDIENNAGE, PROTECTION ET SECURITE"]
["BC.01","N106","SERVICES DE GARDIENNAGE ET DE SECURITE"]
["BC.02","N107","SERVICES DE TELESURVEILLANCE"]
["BC.03","N108","SERVICES D'ACCUEIL"]
["BC.1",null,"SERVICES DE CONTRÔLES REGLEMENTAIRES "]
["BC.11","N109","CONTRÔLES RELATIFS A L'ENVIRONNEMENT (EAU, EAUX USEES, INCINERATEURS…)"]
["BC.12","N110","CONTRÔLES REGLEMENTAIRES DES EQUIPEMENTS DES BATIMENTS"]
["BC.13","N111","SERVICES D'ANALYSES ET ESSAIS DES PRODUITS ET EQUIPEMENTS (hors scientifique)"]
["BD",null,"FOURNITURES ET MATERIEL POUR LA CONSTRUCTION, L'AMENAGEMENT, L'EQUIPEMENT ET L'ENTRETIEN DES BÂTIMENTS ET INFRASTRUCTURES"]
["BD.0",null,"FOURNITURES ET MATERIEL POUR LA CONSTRUCTION ET L'ENTRETIEN DES BÂTIMENTS ET INFRASTRUCTURES"]
["BD.01","N112","MATERIAUX ET CONSOM. PR LA CONSTRUCT. ET L'ENTRETIEN DES BATIMENTS ET INFRASTR."]
["BD.02","N113","FOURNITURES POUR LES INSTALLATIONS ELECTRIQUES DES BATIMENTS ET INFRASTRUCTURES"]
["BD.03","N114","FOURNITURES DE PLOMBERIE "]
["BD.04","N115","OUTILLAGE POUR LA CONSTRUCTION ET L'ENTRETIEN DES BÂTIMENTS ET INFRASTRUCTURES"]
["BD.05","N116","BATIMENTS PREFABRIQUES OU MODULAIRES"]
["BD.1",null,"FOURNITURES ET MATERIEL D'AMENAGEMENT DES BÂTIMENTS"]
["BD.11","N117","PORTES, FENETRES ET MENUISERIES"]
["BD.12","N118","FOURNITURES POUR LE REVETEMENT DES MURS ET PLAFONDS"]
["BD.13","N119","FOURNITURES POUR LE REVETEMENT DES SOLS"]
["BD.14","N120","FOURNITURES ET EQUIPEMENTS D'ORNEMENT DES LOCAUX"]
["BD.15","N121","QUINCALLERIE POUR L'AMENAGEMENT ET L'ENTRETIEN DES BATIMENTS "]
["BD.2",null,"FOURNITURES ET MATERIEL POUR L'EQUIPEMENT DES BÂTIMENTS"]
["BD.21","N122","PETITES FOURNITURES ELECTRIQUES POUR L'EQUIPEMENT DES BATIMENTS ET INFRASTR."]
["BD.22","N123","GROS EQUIPEMENTS DES INSTALLATIONS ELECTRIQUES"]
["BD.23","N124","EQUIPEMENTS MECANIQUES POUR BATIMENTS "]
["BD.24","N125","EQUIPEMENTS DE CHAUFFAGE, VENTILATION, CLIMATISATION (HORS BAT. EXPERIMENTAUX)"]
["BD.25","N126","EQUIPEMENTS SANITAIRES ET DE PLOMBERIE POUR L'EQUIPEMENT DES BATIMENTS"]
["BD.26","N127","FOURNITURES ET EQUIPEMENT DE SIGNALISATION DES BATIMENTS ET INFRASTRUCTURES"]
["BD.27","N128","FOURNITURES ET EQUIPEMENTS DE SECURITE (SYSTEMES D'ALARMES, EXTINCTEURS,…)"]
["BE",null,"TRAVAUX D'AMENAGEMENT ET DE MAINTENANCE DES BATIMENTS"]
["BE.0",null,"TRAVAUX D'AMENAGEMENT COURANTS DES BÂTIMENTS ET INFRASTRUCTURES"]
["BE.01","N129","MACONNERIE, DEMOLITION ET DESAMIANTAGE"]
["BE.02","N130","MENUISERIE, SERRURERIE"]
["BE.03","N131","ETANCHEITE, BARDAGE, COUVERTURE ET ZINGUERIE"]
["BE.04","N132","PLATRERIE, CLOISONS SECHES, FAUX PLAFONDS"]
["BE.05","N133","PEINTURES, REVETEMENTS DE SOLS, RAVALEMENT"]
["BE.06","N134","ELECTRICITE SUR INSTALLATIONS ELECTRIQUES DES BATIMENTS"]
["BE.07","N135","CVC, PLOMBERIE ET FLUIDES SPECIAUX"]
["BE.08","N136","VOIRIE RESEAUX DISTRIBUTION (VRD)"]
["BE.09","N137","AUTRES TRAVAUX D'AMENAGEMENT DES BATIMENTS"]
["BE.1",null,"REPARATION ET MAINTENANCE DES EQUIPEMENTS DES BATIMENTS"]
["BE.11","N138","REPARATION ET MAINTENANCE DES EQUIPEMENTS  DE LEVAGE"]
["BE.12","N139","REPARATION ET MAINTENANCE DES CHAMBRES FROIDES"]
["BE.13","N140","REPARATION ET MAINTENANCE DES EQUIPEMENTS DE SECURITE"]
["BE.14","N141","REPARATION ET MAINTENANCE DES INSTALLATIONS ET EQUIPEMENTS ELECTRIQUES"]
["BE.15","N142","REPAR. ET MAINTENANCE EQUIPMTS CLIMATISATION, VENTILATION, CHAUFFAGE, RESERVOIRS"]
["BE.16","N143","REPARATION ET MAINTENANCE DES EQUIPEMENTS SANITAIRES ET PLOMBERIE"]
["BE.17","N144","REPARATION ET MAINTENANCE DES AUTRES EQUIPEMENTS DES BATIMENTS"]
["BE.18","R471","REPARATION ET MAINTENANCE DES  EQUIPEMENTS D'ACCES  AUTOMATIQUES "]
["BE.2",null,"NE PLUS UTILISER"]
["BE.21","N145","NE PLUS UTILISER"]
["BF",null,"TRAVAUX DE CONSTRUCTION ET SERVICES CONNEXES"]
["BF.0",null,"OPERATIONS DE TRAVAUX DE CONSTRUCTION"]
["BF.01","N146","TRAVAUX DE CONSTRUCTION NEUVE "]
["BF.02","N147","TRAVAUX DE REHABILITATION OU DE REUTILISATION "]
["BF.03","N148","TRAVAUX DE MISE EN SECURITE OU DE MISE EN CONFORMITE REGLEMENTAIRE"]
["BF.1",null,"SERVICES  D'ETUDE  POUR LA CONSTRUCTION ET L'ENTRETIEN"]
["BF.11","N149","ASSISTANCE A LA MAITRISE D'OUVRAGE, CONDUITE D'OPERATIONS, APP"]
["BF.12","N150","MAITRISE D'ŒUVRE ET INGENIERIE"]
["BF.13","N151","ETUDES PREALABLES (TOPOGRAPHIE, ETUDES DE SOL, PROSPECTION…), PROGRAMMATION"]
["BF.14","N152","CONTROLES TECHNIQUES, MISSIONS DE SECURITE, CSPS "]
["BF.15","N153","DIAGNOSTICS, ORDONNANCEMENT-PILOTAGE-COORDINATION (OPC), SSI "]
["BG",null,"ESPACES VERTS"]
["BG.0",null,"PRODUITS ET EQUIPEMENTS POUR LA CREATION ET L'ENTRETIEN DES ESPACES VERTS"]
["BG.01","N154","PRODUITS PHYTOSANITAIRES POUR ESPACES VERTS"]
["BG.02","N155","SEMENCES, ARBRES, PLANTES ET FLEURS POUR ESPACES VERTS"]
["BG.03","N156","PETITES FOURNITURES POUR ESPACES VERTS"]
["BG.04","N157","MATERIEL POUR CREATION ET ENTRETIEN D'ESPACES VERTS"]
["BG.05","Z149","ACHAT DE MOBILIER URBAIN"]
["BG.1",null,"REPARATION ET MAINTENANCE DES EQUIPEMENTS POUR ESPACES VERTS"]
["BG.11","N158","REPARATION ET MAINTENANCE DU MATERIEL D'ENTRETIEN DES ESPACES VERTS "]
["BG.2",null,"SERVICES RELATIFS AUX ESPACES VERTS"]
["BG.21","N159","SERVICES DE CREATION ET D'ENTRETIEN DES ESPACES VERTS"]
["C",null,"COMMUNICATION - CULTURE - DOCUMENTATION"]
["CA",null,"COMMUNICATION : CONCEPTION, EDITION, IMPRESSION"]
["CA.0",null,"COMMUNICATION : CONCEPTION DE PUBLICATIONS"]
["CA.01","N160","COMMUNICATION : CONCEPTION-REDACTION"]
["CA.02","N161","COMMUNICATION : CONCEPTION-REALISATION"]
["CA.03","N162","COMMUNICATION : TRAVAUX GRAPHIQUES "]
["CA.04","N163","COMMUNICATION : TRAVAUX PHOTOGRAPHIQUES "]
["CA.1",null,"COMMUNICATION : COMMUNICATION WEB"]
["CA.11","N164","COMMUNICATION : CONCEPTION, REALISATION DE SITES INTERNET ET FRAIS CONNEXES"]
["CA.12","N165","COMMUNICATION : CONCEPTION ET REALISATION DE RESEAUX SOCIAUX"]
["CA.13","N166","COMMUNICATION : CONCEPTION ET REALISATION D'APPLICATIONS MOBILES ET WEB"]
["CA.14","N167","COMMUNICATION : CONCEPTION ET REALISATION D'AUTRES OUTILS DE COMMUNICATION WEB"]
["CA.2",null,"COMMUNICATION : EDITION"]
["CA.21","N168","COMMUNICATION : EDITION DE DOCUMENTS IMPRIMES"]
["CA.22","N169","COMMUNICATION : EDITION DE DOCUMENTS WEB"]
["CA.23","N170","COMMUNICATION : CORRECTION ET RELECTURE DE DOCUMENTS"]
["CA.24","N171","COMMUNICATION : DIFFUSION ET PROMOTION DE DOCUMENTS SUR TOUS SUPPORTS"]
["CA.3",null,"COMMUNICATION : PRODUCTION AUDIOVISUELLE"]
["CA.31","N172","COMMUNICATION : CONCEPTION-REALISATION AUDIOVISUELLES"]
["CA.32","N173","COMMUNICATION : SERVICES AUDIOVISUELS D'INGENIERIE DU SON"]
["CA.33","N174","COMMUNICATION : SERVICES AUDIOVISUELS D'INGENIERIE DE L'IMAGE"]
["CA.34","N175","COMMUNICATION : SERVICES DE PRODUCTION AUDIOVISUELLE"]
["CA.35","N176","COMMUNICATION : DIFFUSION, DISTRIBUTION ET PROMOTION AUDIOVISUELLES"]
["CB",null,"COMMUNICATION : COMMUNICATION EVENEMENTIELLE ET INSTITUTIONNELLE"]
["CB.0",null,"COMMUNICATION : MATERIEL ET EQUIPEMENTS POUR LA COMMUNICATION EVENEMENTIELLE ET INSTITUTIONNELLE"]
["CB.01","N177","COMMUNICATION : OBJETS PROMOTIONNELS COURANTS"]
["CB.02","R469","COMMUNICATION : CADEAUX"]
["CB.03","N179","COMMUNICATION : MATERIEL ET EQUIPEMENTS POUR MANIFESTATIONS EVENEMENTIELLES"]
["CB.1",null,"COMMUNICATION : ORGANISATION DE MANIFESTATIONS EVENEMENTIELLES"]
["CB.11","N180","COMMUNICATION : LOCATION ET RESERVATION D'ESPACES POUR MANIF. EVENEMENTIELLES"]
["CB.12","N181","COMMUNICATION : ORGANISATION DE COLLOQUES, CONGRES ET SEMINAIRES"]
["CB.13","N182","COMM : ORGANISATION ET REALISATION DE SALONS, EXPOSITIONS ET FOIRES"]
["CB.14","N183","COMMUNICATION : SERVICES DE BILLETTERIE POUR MANIFESTATIONS EVENEMENTIELLES"]
["CB.15","N184","COMMUNICATION : ORGANISATION D'AUTRES MANIFESTATIONS EVENEMENTIELLES"]
["CB.2",null,"COMMUNICATION : PRESTATIONS ASSOCIEES AUX MANIFESTATIONS EVENEMENTIELLES"]
["CB.21","N185","COMMUNICATION : TRAITEURS POUR MANIFESTATIONS EVENEMENTIELLES"]
["CB.22","N186","COMMUNICATION : RESTAURATION POUR MANIFESTATIONS EVENEMENTIELLES"]
["CB.23","N187","COMMUNICATION : HEBERGEMENT POUR MANIFESTATIONS EVENEMENTIELLES"]
["CB.24","N188","COMMUNICATION : PROMOTION DE MANIFESTATIONS EVENEMENTIELLES"]
["CB.25","N189","SERVICES DE SECURITE POUR MANISFESTATIONS"]
["CB.26","R472","AUTRES PRESTATIONS/AUX MANIFESTATIONS EVENNEMENTIELLES"]
["CC",null,"COMMUNICATION : SERVICES POUR LA COMMUNICATION"]
["CC.0",null,"COMMUNICATION : SERVICES DE TRAITEMENT DE L'INFORMATION"]
["CC.01","N190","COMMUNICATION : VEILLE DES MEDIAS TRADITIONNELS"]
["CC.02","N191","COMMUNICATION : VEILLE DES MEDIAS INTERNET"]
["CC.03","N192","RELATIONS PRESSE"]
["CC.1",null,"COMMUNICATION : SERVICES DE CONSEIL EN COMMUNICATION"]
["CC.11","N193","COMM : SERVICES DE CONSEIL ET D'ACCOMPAGNEMENT DE CAMPAGNES DE COMMUNICATION"]
["CC.12","N194","COMMUNICATION : SERVICES DE CONSEIL EN IDENTITE VISUELLE"]
["CC.13","N195","COMMUNICATION : SERVICES DE CONSEIL EN IMAGE DES PERSONNES"]
["CC.14","N196","COMMUNICATION : SERVICES DE MEDIATRAINING"]
["CC.15","N197","COMMUNICATION : AUTRES SERVICES DE CONSEIL EN COMMUNICATION ET PUBLICITE"]
["CC.2",null,"COMMUNICATION : AUTRES SERVICES DE COMMUNICATION"]
["CC.21","N198","COMMUNICATION : ACHAT D'ESPACES PUBLICITAIRES "]
["CC.22","N199","COMMUNICATION : ETUDES, SONDAGES ET ENQUETES DE COMMUNICATION"]
["CC.23","N200","COMMUNICATION : AUTRES SERVICES DE COMMUNICATION"]
["CD",null,"CULTURE ET COLLECTIONS DE MUSEE"]
["CD.0",null,"CULTURE : ŒUVRES ET OBJETS D'ART "]
["CD.01","N201","CULTURE : ŒUVRES ET OBJETS D'ART EXISTANTS"]
["CD.02","N202","CULTURE : REALISATION D'ŒUVRES ET OBJETS D'ART"]
["CD.03","N203","CULTURE: REPRODUCTION D'ŒUVRES ET OBJETS D'ART"]
["CD.1",null,"CULTURE : REPRESENTATIONS ET REALISATIONS ARTISTIQUES ET CULTURELLES"]
["CD.11","N204","CULTURE : ACHATS DE REPRESENTATIONS ARTISTIQUES"]
["CD.12","N205","CULTURE : CONCEPTION-REALISATION-INSTALLATION D'ECLAIRAGE ET/OU DE SON"]
["CD.13","N206","CULTURE : CONCEPTION-REALISATION-INSTALLATION DE DECORS"]
["CD.14","N207","CULTURE : CONCEPTION-REALISATION DE COSTUMES"]
["CD.2",null,"CULTURE : SERVICES DE CONSERVATION DU PATRIMOINE (HORS ARCHIVAGE)"]
["CD.21","N208","SERVICES DE GESTION, DE CONSERV. ET DE RESTAUR. DES COLLECTIONS DES MUSEES"]
["CD.22","N209","SERVICES DE PRESERVATION DES SITES CLASSES OU INSCRITS"]
["CD.23","N210","SERVICES RELATIFS A LA PRESERVATION DES JARDINS, ZOOS ET RESERVES NATURELLES"]
["CD.24","N211","AUTRES SERVICES DE CONSERVATION DU PATRIMOINE (HORS ARCHIVAGE)"]
["CD.25","R436","SERVICES D'INVENTAIRES SPECIFIQUES"]
["CD.3",null,"CULTURE : SERVICES CULTURELS"]
["CD.31","N212","CULTURE : SERVICES D'ANIMATION CULTURELLE"]
["CD.32","N213","SERVICES DE PARCS DE RECREATION, DE PLAGES, DE PARCS D'ATTRACTION"]
["CD.33","N214","CULTURE : SERVICES DE MEDIATION CULTURELLE"]
["CD.34","N215","CULTURE : AUTRES SERVICES SOCIO-CULTURELS"]
["CD.4",null,"FOURNITURES POUR LA CONSERVATION ET LA RESTAURATION DES COLLECTIONS"]
["CD.41","R442","CONSOMMABLES SPECIFIQUES POUR LA CONSERVATION ET LA RESTAURATION DES COLLECTIONS"]
["CD.42","R443","MATERIELS SPECIFIQUES POUR LA CONSERVATION ET LA RESTAURATION DES COLLECTIONS"]
["CD.43","R444","MOBILIER SPECIFIQUE POUR LA CONSERVATION DES COLLECTIONS"]
["CE",null,"DOCUMENTATION : DOCUMENTS"]
["CE.0",null,"DOCUMENTATION : LIVRES"]
["CE.01","N216","DOCUMENTATION : LIVRES SCOLAIRES IMPRIMES DE TOUTES MATIERES"]
["CE.02","N217","DOCUMENTATION : LIVRES SCOLAIRES ELECTRONIQUES DE TOUTES MATIERES"]
["CE.03","N218","DOCUMENTATION : LIVRES NON SCOLAIRES IMPRIMES"]
["CE.04","N219","DOCUMENTATION : LIVRES NON SCOLAIRES ELECTRONIQUES"]
["CE.05","N220","DOCUMENTATION : LIVRES D'OCCASION ET EPUISES"]
["CE.06","N221","DOCUMENTATION : LIVRES ANCIENS PUBLIES AVANT 1900"]
["CE.1",null,"DOCUMENTATION : PERIODIQUES"]
["CE.11","N222","DOCUMENT. : JOURNAUX, REVUES ET PERIODIQUES SCIENTIFIQUES (SUPPORT PAPIER)"]
["CE.12","N223","DOCUMENT. : JOURNAUX, REVUES ET PERIODIQUES NON SCIENTIFIQUES (SUPPORT PAPIER)"]
["CE.13","N224","DOCUMENT. : JOURNAUX, REVUES ET PERIODIQUES SCIENTIFIQUES (ELECTRONIQUES)"]
["CE.14","N225","DOCUMENT. : JOURNAUX, REVUES ET PERIODIQUES NON SCIENTIFIQUES (ELECTRONIQUES)"]
["CE.2",null,"DOCUMENTATION : BASES DE DONNEES"]
["CE.21","N226","DOCUMENT. : DROIT D'ACCES A DES BASES DE DONNEES DOCUMENTAIRES SCIENTIFIQUES"]
["CE.22","N227","DOCUMENT.: DROIT D'ACCES A DES BASES DE DONNEES DOCUMENTAIRES NON SCIENTIFIQUES"]
["CE.3",null,"DOCUMENTATION : AUTRES DOCUMENTS (SUPPORT PAPIER OU ELECTRONIQUE)"]
["CE.31","N228","DOCUMENTATION : PARTITIONS MUSICALES"]
["CE.32","N229","DOCUMENTATION : CARTES (GEOGRAPHIQUES, TOPOGRAPHIQUES…) ET GLOBES TERRESTRES"]
["CE.33","N230","DOCUMENTATION : NORMES"]
["CE.34","N231","DOCUMENTATION : AUTRES DOCUMENTS"]
["CE.4",null,"DOCUMENTATION : IMAGES"]
["CE.41","N232","DOCUMENTATION : IMAGES FIXES"]
["CE.42","N233","DOCUMENTATION : IMAGES ANIMEES SUR TOUT SUPPORT "]
["CE.43","N234","DOCUMENTATION : AUTRES IMAGES"]
["CE.5",null,"DOCUMENTATION : ENREGISTREMENTS SONORES"]
["CE.51","N235","DOCUMENTATION : ENTREGISTREMENTS SONORES "]
["CF",null,"DOCUMENTATION : ARCHIVES"]
["CF.0",null,"DOCUMENTATION : ARCHIVES DE PERIODIQUES"]
["CF.01","N236","DOC. : ARCHIVES DE JOURNAUX, REVUES ET PERIODIQUES SCIENTIFIQUES (PAPIER)"]
["CF.02","N237","DOC. : ARCHIVES DE JOURNAUX, REVUES ET PERIODIQUES NON SCIENTIFIQUES (PAPIER)"]
["CF.03","N238","DOC. : ARCHIVES DE JOURNAUX, REVUES ET PERIODIQUES SCIENTIFIQUES (ELECTRONIQUES)"]
["CF.04","N239","DOC. : ARCHIVES DE JOURNAUX, REVUES ET PERIODIQUES NON SCIENTIF. (ELECTRONIQUES)"]
["CF.1",null,"DOCUMENTATION : ARCHIVES DE BASES DE DONNEES"]
["CF.11","N240","DOC. : DROIT D'ACCES A DES ARCHIVES DE BASES DE DONNEES DOCUMENTAIRES SCIENTIF."]
["CF.12","N241","DOC. : DROIT D'ACCES A DES ARCHIVES DE BASES DE DONNEES DOCUMENT. NON SCIENTIF."]
["CF.2",null,"DOCUMENTATION : ARCHIVES D'AUTRES DOCUMENTS IMPRIMES"]
["CF.21","N242","DOCUMENTATION : ARCHIVES DE PARTITIONS MUSICALES"]
["CF.22","N243","DOCUMENTATION : ARCHIVES DE CARTES (GEOGRAPHIQUES, TOPOGRAPHIQUES…)"]
["CF.23","N244","DOCUMENTATION : ARCHIVES D'AUTRES DOCUMENTS IMPRIMES"]
["CF.3",null,"DOCUMENTATION : ARCHIVES D'IMAGES"]
["CF.31","N245","DOCUMENTATION : ARCHIVES D'IMAGES FIXES "]
["CF.32","N246","DOCUMENTATION : ARCHIVES D'IMAGES ANIMEES SUR TOUT SUPPORT "]
["CF.33","N247","DOCUMENTATION : ARCHIVES D'AUTRES IMAGES"]
["CF.4",null,"DOCUMENTATION : ARCHIVES D'ENREGISTREMENTS SONORES"]
["CF.41","N248","DOCUMENTATION : ARCHIVES D'ENTREGISTREMENTS SONORES "]
["CG",null,"DOCUMENTATION : BIBLIOTHEQUES ET MAGASINS D'ARCHIVES"]
["CG.0",null,"DOCUMENTATION : FOURNITURES ET EQUIPEMENTS DE BIBLIOTHEQUES ET DE MAGASINS D'ARCHIVES"]
["CG.01","N249","DOCUMENTATION : FOURNITURES ET EQUIPEMENTS DE CONSERVATION DE DOCUMENTS "]
["CG.1",null,"DOCUMENTATION : MOBILIERS ET RANGEMENTS DE BIBLIOTHEQUES ET DE MAGASINS D'ARCHIVES"]
["CG.11","N250","DOCUMENTATION : MOBILIER DE RANGEMENT DE BIBLIOTHEQUES ET DE MAGASINS D'ARCHIVES"]
["CG.12","N251","DOCUMENTATION : MOBILIER POUR BIBLIOTHEQUES ET MAGASINS D'ARCHIVES"]
["CG.2",null,"DOCUMENTATION : MATERIEL DE NUMERISATION POUR BIBLIOTHEQUES ET MAGASINS D'ARCHIVES"]
["CG.21","N252","DOC : EQUIPEMENTS DE NUMERISATION POUR BIBLIOTHEQUES ET MAGASINS D'ARCHIVES"]
["CG.3",null,"REPARATION ET MAINTENANCE DES MOBILIERS ET EQUIPEMENTS DE BIBLIOTHEQUES ET MAGASINS D'ARCHIVES"]
["CG.31","R388","REPARATION ET MAINTENANCE DES MOBILIERS DE BIBLIOTHEQUES ET MAGASINS D'ARCHIVES"]
["CG.32","R389","REPAR. ET MAINTENANCE DES EQUIPEMENTS DE BIBLIOTHEQUES ET MAGASINS D'ARCHIVES"]
["CH",null,"DOCUMENTATION : SYSTEMES D'INFORMATION DOCUMENTAIRE ET D'ARCHIVAGE"]
["CH.0",null,"DOCUMENTATION : LOGICIELS D'INFORMATION DOCUMENTAIRE"]
["CH.01","N253","DOC : LOGICIELS STANDARDS DE GESTION DE BIBLIOTHEQUES"]
["CH.02","N254","DOC : LOGICIELS SPECIFIQUES DE GESTION DE BIBLIOTHEQUES"]
["CH.03","N255","DOC : LOGIC. STANDARDS D'ACCES AUX CONTENUS ET RESSOURCES DOCUMENT."]
["CH.04","N256","DOC : LOGIC. SPECIFIQUES D'ACCES AUX CONTENUS ET RESSOURCES DOCUMENT."]
["CH.05","N257","DOC : LOGIC. STANDARDS DE TRAITEMENT ET DE CATALOGAGE PARTAGE DE DOC."]
["CH.06","N258","DOC : LOGIC. SPECIFIQUES DE TRAITEMENT ET DE CATALOGAGE PARTAGE DE DOC."]
["CH.07","N259","DOC : AUTRES LOGICIELS STANDARDS DE GESTION DOCUMENTAIRE"]
["CH.08","N260","DOCUMENTATION : AUTRES LOGICIELS SPECIFIQUES DE GESTION DOCUMENTAIRE"]
["CH.1",null,"DOCUMENTATION : LOGICIELS DE GESTION D'ARCHIVAGE"]
["CH.11","N261","DOCUMENTATION : LOGICIELS STANDARDS DE GESTION D'ARCHIVAGE"]
["CH.12","N262","DOCUMENTATION : LOGICIELS SPECIFIQUES DE GESTION D'ARCHIVAGE"]
["CH.2",null,"DOCUMENTATION : MAINTENANCE DES LOGICIELS DE GESTION DOCUMENTAIRE"]
["CH.21","N263","DOC : MAINTENANCE LOGICIELS STANDARDS DE GESTION DE BIBLIOTHEQUES"]
["CH.22","N264","DOC. : MAINTENANCE LOGICIELS SPECIFIQUES DE GESTION DE BIBLIOTHEQUES"]
["CH.23","N265","DOC. : MAINTENANCE LOGIC. STANDARDS D'ACCES AUX CONTENUS ET RESSOURCES DOC."]
["CH.24","N266","DOC. : MAINTENANCE LOGIC. SPECIFIQUES D'ACCES AUX CONTENUS ET RESSOURCES DOC."]
["CH.25","N267","DOC. : MAINTENANCE LOGIC. STANDARDS DE TRAIT. ET DE CATALOGAGE PARTAGE DE DOC"]
["CH.26","N268","DOC. : MAINTENANCE LOGIC. SPECIFIQ. DE TRAIT. ET DE CATALOGAGE PARTAGE DE DOC"]
["CH.27","N269","DOC. : MAINTENANCE D'AUTRES LOGICIELS STANDARDS DE GESTION DOCUMENTAIRE"]
["CH.28","N270","DOC. : MAINTENANCE D'AUTRES LOGICIELS SPECIFIQUES DE GESTION DOCUMENTAIRE"]
["CH.3",null,"DOCUMENTATION : MAINTENANCE DES LOGICIELS DE GESTION D'ARCHIVES"]
["CH.31","N271","DOCUMENTATION : MAINTENANCE DES LOGICIELS STANDARDS DE GESTION D'ARCHIVES"]
["CH.32","N272","DOCUMENTATION : MAINTENANCE DES LOGICIELS SPECIFIQUES DE GESTION D'ARCHIVES"]
["CI",null,"DOCUMENTATION : SERVICES DE GESTION DOCUMENTAIRE ET D'ARCHIVAGE"]
["CI.0",null,"DOCUMENTATION : SERVICES DE GESTION DOCUMENTAIRE"]
["CI.01","N273","DOCUMENTATION : SERVICES DE NUMERISATION D'OUVRAGES ET DE DOCUMENTS"]
["CI.02","N274","DOCUMENTATION : SERVICES DE NUMERISATION DE FONDS SONORES ET SOURCES AUDIO"]
["CI.03","N275","DOCUMENTATION : SERVICES DE NUMERISATION DE FONDS AUDIOVISUELS"]
["CI.04","N276","DOCUMENTATION : AUTRES SERVICES DE GESTION DOCUMENTAIRE"]
["CI.1",null,"DOCUMENTATION : SERVICES D'ARCHIVAGE"]
["CI.11","N277","DOCUMENTATION : SERVICES D'ARCHIVAGE"]
["CI.12","N278","DOCUMENTATION : SERVICES DE CONSEIL ET D'ASSISTANCE EN ARCHIVAGE TRADITIONNEL"]
["CI.13","N279","DOCUMENTATION : SERVICES DE CONSEIL ET D'ASSISTANCE EN ARCHIVAGE ELECTRONIQUE"]
["CI.14","N280","DOCUMENTATION : AUTRES SERVICES D'ARCHIVAGE"]
["D",null,"DEPLACEMENTS : TRANSPORT ET HEBERGEMENT DES PERSONNES"]
["DA",null,"TRANSPORT DES PERSONNES"]
["DA.0",null,"SERVICES DE TRANSPORT PAR VOITURE"]
["DA.01","N281","SERVICES DE TAXI OU DE VTC"]
["DA.02","N282","LOCATION DE VEHICULES ROUTIERS SANS CHAUFFEUR (COURTE DUREE)"]
["DA.1",null,"MOYENS DE TRANSPORT DES PERSONNES ET FRAIS CONNEXES"]
["DA.11","N283","SERVICES DE TRANSPORT FERROVIAIRE DE PERSONNES"]
["DA.12","N284","SERVICES DE TRANSPORT AERIEN DE PERSONNES"]
["DA.13","N285","SERVICES DE TRANSPORT MARITIME, FLUVIAL ET COTIER DE PERSONNES"]
["DA.14","N286","SERVICES DE TRANSPORT COLLECTIF ROUTIER ET URBAIN DE PERSONNES"]
["DA.15","N287","SERV.TRANSP. SPECIALISES DE PERSONNES EN SITUATION HANDICAP"]
["DA.16","N288","BILLETS DE TELEPHERIQUES, REMONTEES MECANIQUES OU FUNICULAIRES"]
["DA.17","N289","PEAGES AUTOROUTE ET DROITS DE STATIONNEMENT"]
["DA.18","N290","PRESTATIONS DE TRANSPORTS SANITAIRES "]
["DA.19","N291","PRESTATIONS DE TRANSPORTS FUNERAIRES"]
["DB",null,"HEBERGEMENT DES PERSONNES (HORS EVENEMENTIEL)"]
["DB.1",null,"SERVICES D'HEBERGEMENT DES PERSONNES (HORS EVENEMENTIEL)"]
["DB.11","N292","HEBERGEMENT EN HÔTEL (HORS EVENEMENTIEL)"]
["DB.12","N293","HEBERGEMENT EN PENSION, DEMI-PENSION, REFUGE, CAMPING... (HORS EVENEMENTIEL)"]
["DC",null,"SERVICES AUXILIAIRES AUX TRANSPORTS ET A L'HEBERGEMENT DE PERSONNES"]
["DC.0",null,"SERVICES DE RESERVATIONS PAR AGENCES OU CENTRALES"]
["DC.01","N294","SERVICES DE RESERVATIONS PAR AGENCES DE VOYAGE OU CENTRALES DE RESERVATION"]
["DC.1",null,"AUTRES SERVICES AUXILIAIRES AUX TRANSPORTS"]
["DC.11","N295","SERVICES DE GESTION DES VISAS ET DES FORMALITES ADMINISTRATIVES                                                                                                "]
["DC.12","R428","VOYAGES D ETUDES"]
["E",null,"ETUDES - CONSEILS - ASSURANCES - PI - RESSOURCES HUMAINES"]
["EA",null,"ASSURANCES ET SERVICES EN ASSURANCE "]
["EA.0",null,"ASSURANCES DES VEHICULES (RESPONSABILITE CIVILE, DOMMAGES AUX VEHICULES, GARANTIES DU CONDUCTEUR)"]
["EA.01","N296","ASSURANCES DU PARC VEHICULES ROUTIER"]
["EA.02","N297","ASSURANCES DE LA FLOTTE AERIENNE"]
["EA.03","N298","ASSURANCES DES VEHICULES MARITIMES, FLUVIAUX ET LACUSTRES"]
["EA.1",null,"ASSURANCES D'AUTRES BIENS"]
["EA.11","N299","ASSURANCES DE BIENS IMMOBILIERS"]
["EA.12","N300","ASSURANCES D'EQUIPEMENTS SCIENTIFIQUES"]
["EA.13","N301","ASSURANCES DES MARCHANDISES TRANSPORTEES"]
["EA.14","N302","ASSURANCES DES ANIMAUX"]
["EA.15","R473","ASSURANCE POUR OPERATION DE TRAVAUX"]
["EA.2",null,"AUTRES SERVICES D'ASSURANCES "]
["EA.21","N303","ASSURANCE RESPONSABILITE CIVILE"]
["EA.22","N304","ASSURANCES RAPATRIEMENT DES AGENTS EN MISSION"]
["EA.23","N305","ASSURANCES COUVERTURE SANTE / MUTUELLE"]
["EA.24","N306","AUTRES ASSURANCES"]
["EA.3",null,"SERVICES DE CONSEIL ET AUDIT EN ASSURANCE"]
["EA.31","N307","SERVICES DE CONSEIL ET AUDIT EN ASSURANCE"]
["EB",null,"SERVICES D'ETUDES, ASSISTANCES ET CONSEILS "]
["EB.0",null,"SERVICES DE CONSEIL ET ETUDES"]
["EB.01","N308","ETUDES DE MARCHES DANS LE DOMAINE DE LA VALORISATION DE LA RECHERCHE"]
["EB.02","N309","ASSISTANCE A MAITRISE D'OUVRAGE (HORS BATIMENTS ET SI - TELECOM)"]
["EB.03","N310","CONSEIL EN SECURITE (HORS CHANTIER) ET PROTECTION DES BIENS ET DES PERSONNES"]
["EB.04","N311","ETUDES A CARACTERE GENERAL ET AUTRES MISSIONS DE CONSEIL "]
["EB.05","R474","ETUDES ET CONSEIL EN STRATEGIE ET ORGANISATION"]
["EB.06","R475","CONSEIL ET EXPERTISE METIER Y COMPRIS RECHERCHE"]
["EB.07","R476"," SERVICE DE PROSPECT "]
["EB.1",null,"SERVICES D'AUDIT - CERTIFICATION - ACCREDITATION"]
["EB.11","N312","AUDIT ORGANISATIONNEL CERTIFIANT"]
["EB.12","N313","AUDIT FINANCIER"]
["EB.13","N314","CERTIFICATION LEGALE DES COMPTES"]
["EB.14","N315","AUDIT ENERGERTIQUE (ENVIRONNEMENTAL, BILAN CARBONE,…)"]
["EB.15","N316","AUDIT HYGIENE ET SECURITE"]
["EB.16","N317","AUTRES SERVICES D'AUDIT ET D'ACCREDITATION"]
["EB.2",null,"SERVICES D'ENQUETES"]
["EB.21","N318","ENQUETES"]
["EB.22","N319","SONDAGES"]
["EB.23","R450","PRESTATION DE SERVICE DE VOTES (URNE OU ELECTRONIQUE)"]
["EB.3",null,"SERVICES FINANCIERS ET COMPTABLES"]
["EB.31","N320","SERVICES BANCAIRES"]
["EB.32","N321","INTERMEDIATION FINANCIERE ET ACTIVITES DE CONSEIL"]
["EB.33","N322","AUTRES SERVICES FINANCIERS ET COMPTABLES"]
["EB.4",null,"SERVICES D'ADMINISTRATION D'IMMEUBLES"]
["EB.41","N323","SERVICES D'ADMINISTRATION D'IMMEUBLES ET FRAIS D'AGENCES IMMOBILIERES"]
["EB.5",null,"SERVICES LINGUISTIQUES"]
["EB.51","N324","SERVICES DE TRADUCTION"]
["EB.52","N325","SERVICES D'INTERPRETARIAT"]
["EB.53","R451","SERVICES DE TRANSCRIPTION"]
["EB.54","R452","SERVICES DE SONORISATION"]
["EB.55","R453","SERVICES DE SOUS-TITRAGE"]
["EB.56","R454","SERVICES DE REVISION DE TEXTES"]
["EB.6",null,"SERVICES JURIDIQUES"]
["EB.61","N326","SERVICES DE CONSEILS JURIDIQUES"]
["EB.62","N327","SERVICES D'ETABLISSEMENT D'ACTES AUTHENTIQUES ET DES AUXILIAIRES DE JUSTICE"]
["EB.63","N328","SERVICES DE REPRESENTATION JURIDIQUE"]
["EC",null,"FORMATIONS ET GESTION DES RESSOURCES HUMAINES"]
["EC.0",null,"FORMATIONS D'ACCOMPAGNEMENT ET TESTS"]
["EC.01","N329","FORMATIONS D'ACCOMPAGNEMENT TECHNIQUES ET METIERS SCIENTIFIQUES"]
["EC.02","N330","FORMATIONS D'ACCOMPAGNEMENT EN LANGUES"]
["EC.03","N331","FORMATIONS D'ACCOMPAGNEMENT EN BUREAUTIQUE"]
["EC.04","N332","FORMATIONS D'ACCOMPAGNEMENT EN PREVENTION ET SECURITE"]
["EC.05","N333","FORMATIONS D'ACCOMPAGNEMENT EN METHODES DE TRAVAIL (MANAGEMENT, SAVOIR ETRE,…)"]
["EC.06","N334","FORMATIONS D'ACCOMPAGNEMENT DES FONCTIONS SUPPORT ET SOUTIEN"]
["EC.07","N335","AUTRES FORMATIONS D'ACCOMPAGNEMENT"]
["EC.08","R390","TESTS PROFESSIONNELS"]
["EC.1",null,"FORMATIONS PREPARATOIRES"]
["EC.11","N336","FORMATIONS D'APPRENTISSAGE DE LA CONDUITE (AUTOMOBILE, BATEAU, AVION,…)"]
["EC.12","N337","PREPARATIONS AUX CONCOURS"]
["EC.13","N338","PREPARATIONS AUX EXAMENS PROFESSIONNELS"]
["EC.14","N339","FORMATIONS D'INSERTION PROFESSIONNELLE"]
["EC.15","N340","AUTRES FORMATIONS PREPARATOIRES"]
["EC.2",null,"SERVICES DE GESTION DES RESSOURCES HUMAINES"]
["EC.21","N341","BILANS DE COMPETENCES, VAE, QUALIFICATION, INSERTION PROFESSIONNELLE"]
["EC.22","N342","AUDITS D'UNITES OU DE SERVICES EN RH"]
["EC.23","N343","ASSISTANCE, CONSEIL ET SERVICES EN RECRUTEMENT"]
["EC.24","N344","PSYCHOLOGUES, GRAPHOLOGUES"]
["EC.25","N345","ORGANISATION DE CONCOURS"]
["EC.26","N346","SERVICES D'AGENCES INTERIM"]
["EC.27","N347","AUTRES SERVICES DE GESTION DES RESSOURCES HUMAINES"]
["EC.3",null,"SERVICES SOCIAUX"]
["EC.31","N348","SERVICES SOCIAUX DE CONSEIL EN ECONOMIE SOCIALE ET FAMILIALE "]
["EC.32","N349","SERVICES SOCIAUX D'HEBERGEMENT"]
["EC.33","N350","SERVICES SOCIAUX DE REINSERTION"]
["EC.34","N351","SERVICES SOCIAUX DE SOIN ET D'AIDE A DOMICILE"]
["EC.35","N352","SERVICES SOCIAUX : ASSISTANTES SOCIALES INTER-ENTREPRISES"]
["EC.36","N353","AUTRES SERVICES SOCIAUX"]
["EC.4",null,"SERVICES DE MEDECINE DU TRAVAIL"]
["EC.41","R400","MEDECINE DE PREVENTION : PRESTATAIRES MEDICAUX"]
["EC.42","R401","MEDECINE DE PREVENTION : FOURNITURES MEDICALES ET DE SOIN"]
["ED",null,"PRESTATIONS DOMAINE VALORISATION / TRANSFERT DE TECHNOLOGIES"]
["ED.0",null,"SERVICES DANS LE DOMAINE DE LA PROPRIETE INTELLECTUELLE"]
["ED.01","N354","SERVICES DE DEPOT DE BREVET D'INVENTION ET DE LOGICIELS APP"]
["ED.02","N355","SERVICES DE PROPRIETE INTELLECTUELLE : BREVET D'INVENTION, GESTION DES ANNUITES"]
["ED.03","R477","SERVICES DANS LE DOMAINE DE LA VALORISATION ET DU TRANSFERT DE TECHNOLOGIE"]
["ED.04","R478","AUTRES SERVICES DE PROPRIETE INTELLECTUELLE ( HORS BREVET D'INVENTION)"]
["ED.1",null,"AUTRES SERVICES DANS LE DOMAINE DE LA PROPRIETE INTELLECTUELLE"]
["ED.11","N356","AUTRES SERVICES DE PROPRIETE INTELLECTUELLE (HORS BREVETS D'INVENTION)"]
["EE",null,"FORMATION ET CERTIFICATION DES ETUDIANTS"]
["EE.0",null,"FORMATION"]
["EE.01","R455","SERVICES DE FORMATION EN PRESENTIEL"]
["EE.02","R456","SERVICES DE FORMATION EN LIGNE"]
["EE.1",null,"CERTIFICATIONS DIPLOMATIONS"]
["EE.11","R457","CERTIFICATION DIPLOMATION EN PRESENTIEL"]
["EE.12","R458","CERTIFICATION DIPLOMATION EN LIGNE"]
["EE.2",null,"ASSISTANCE A LA CONCEPTION DE COURS EN LIGNE"]
["EE.21","R461","ASSISTANCE A LA CONCEPTION DE COURS EN LIGNE "]
["EE.3",null,"SURVEILLANCE D'EXAMENS"]
["EE.31","R479","SURVEILLANCE D'EXAMEN EN PRESENTIEL"]
["EE.32","R480","SURVEILLANCE D'EXAMEN EN LIGNE"]
["F",null,"FRET / EXPEDITION / TRANSPORT / DEMENAGEMENT"]
["FA",null,"FOURNITURES, CONSOMMABLES ET PETITS EQUIPEMENTS POUR LE TRANSPORT DE MARCHANDISES ET L'AFFRANCHISSEMENT"]
["FA.0",null,"FOURNITURES ET EQUIPEMENTS POUR L'EMBALLAGE ET LE TRANSPORT"]
["FA.01","N357","FOURNITURES D'EMBALLAGE ET DE TRANSPORT DE MARCHANDISES ORDINAIRES"]
["FA.02","N358","FOURNITURES D'EMBALLAGE POUR LE TRANSPORT DE MARCHANDISES SPECIFIQUES"]
["FA.03","N359","EQUIPEMENTS POUR LE DEPLACEMENT DE MARCHANDISES ET ACCESSOIRES"]
["FA.1",null,"FOURNITURES ET EQUIPEMENTS POUR L'AFFRANCHISSEMENT"]
["FA.11","N360","EQUIPEMENTS DE PESEE DU COURRIER ET D'HORODATAGE"]
["FB",null,"SERVICES D'EXPEDITION DU COURRIER ET SERVICES CONNEXES"]
["FB.0",null,"SERVICES D'EXPEDITION DU COURRIER"]
["FB.01","N361","COURRIER : COURRIERS ET AFFRANCHISSEMENT ORDINAIRE"]
["FB.02","N362","COURRIER : SERVICES DE COURSIERS ET COURRIERS EXPRESS"]
["FB.03","Z150","COURRIER/ SERVICES DE RETOUR COURRIER (ENVELOPPES T)"]
["FB.1",null,"SERVICES CONNEXES A L'EXPEDITION DE COURRIER"]
["FB.11","N363","SERVICES DE DISTRIBUTION ET ROUTAGE"]
["FB.12","N364","SERVICES DE BOITES POSTALES, DE POSTE RESTANTE OU DE REEXPEDITION"]
["FB.13","Z151","SERVICES DE MISE SOUS PLIS"]
["FC",null,"SERVICES D'EXPEDITION/TRANSPORT DE MARCHANDISES"]
["FC.0",null,"SERVICES D'EXPEDITION ORDINAIRE DE MARCHANDISES ET SERVICES CONNEXES"]
["FC.01","N365","TRANSPORTS ROUTIERS ET URBAINS DE MARCHANDISES (EN AFFRETEMENT)"]
["FC.02","N366","TRANSPORTS AERIENS DE MARCHANDISES"]
["FC.03","N367","TRANSPORTS MARITIMES ET FLUVIAUX EN CONTENEURS"]
["FC.04","N368","TRANSPORTS FERROVIAIRES DE MARCHANDISES"]
["FC.05","N369","SERVICES DES GARES, AEROPORTS, PORTS FLUVIAUX ET MARITIMES,…"]
["FC.06","R445","TRANSPORTS ADMINISTRATIFS DE DOCUMENT"]
["FC.1",null,"SERVICES D'EXPEDITION DE MARCHANDISES SPECIALISES"]
["FC.11","N370","TRANSPORTS SPECIALISES D'ANIMAUX DE LABORATOIRE"]
["FC.12","N371","TRANSPORTS SPECIALISES DE PRODUITS BIOLOGIQUES UN3373"]
["FC.13","N372","TRANSPORTS DE MARCHANDISES DANGEREUSES"]
["FC.14","N373","TRANSPORTS DE PRODUITS INFECTIEUX (CLASSE 6.2)"]
["FC.15","N374","AUTRES SERVICES DE TRANSPORT/EXPEDITION SPECIALISES"]
["FD",null,"SERVICES DE DEPLACEMENT ET D'ENTREPOSAGE DE MARCHANDISES"]
["FD.0",null,"SERVICES DE DEPLACEMENT DE MARCHANDISES ET SERVICES CONNEXES"]
["FD.01","N375","SERVICES DE DEMENAGEMENT COURANTS"]
["FD.02","N376","SERVICES DE DEMONTAGE ET DE DEMENAGEMENT D'INSTRUMENTS"]
["FD.03","N377","OPERATIONS DE MANUTENTION MECANIQUE DE MATERIEL"]
["FD.04","R459","SERVICES DE LOCATION DE VEHICULES POUR TRANSPORT DE MARCHANDISES"]
["FD.1",null,"SERVICES DE GARDE-MEUBLES ET D'ENTREPOT"]
["FD.11","N378","SERVICES DE GARDE-MEUBLES"]
["FD.12","N379","SERVICES D'ENTREPOT GARDIENNAGE DE MATERIEL"]
["G",null,"GAZ DE LABORATOIRE OU D'ATELIER - CRYOGENIE"]
["GA",null,"GAZ DE LABORATOIRE OU D'ATELIER - CRYOGENIE : CONSOMMABLES"]
["GA.0",null,"GAZ D'ATELIER OU DE LABORATOIRE DE QUALITE INDUSTRIELLE CONDITIONNES EN BOUTEILLES"]
["GA.01","N380","ACETYLENE DE QUALITE INDUSTRIELLE EN BOUTEILLE"]
["GA.02","N381","AIR SYNTHETIQUE DE QUALITE INDUSTRIELLE EN BOUTEILLE"]
["GA.03","N382","ARGON DE QUALITE INDUSTRIELLE EN BOUTEILLE"]
["GA.04","N383","AZOTE GAZEUX DE QUALITE INDUSTRIELLE EN BOUTEILLE"]
["GA.05","N384","DIOXYDE DE CARBONE DE QUALITE INDUSTRIELLE EN BOUTEILLE"]
["GA.06","N385","HELIUM GAZEUX DE QUALITE INDUSTRIELLE EN BOUTEILLE"]
["GA.07","N386","HYDROGENE DE QUALITE INDUSTRIELLE EN BOUTEILLE"]
["GA.08","N387","OXYGENE DE QUALITE INDUSTRIELLE EN BOUTEILLE"]
["GA.09","N388","AUTRES GAZ SIMPLES OU EN MELANGE DE QUALITE INDUSTRIELLE EN BOUTEILLE"]
["GA.1",null,"GAZ DE LABORATOIRE SIMPLES DE TRES HAUTE PURETE"]
["GA.11","N389","ARGON DE TRES HAUTE PURETE (SUPERIEURE A 5.0) EN BOUTEILLE"]
["GA.12","N390","AZOTE GAZEUX DE TRES HAUTE PURETE (SUPERIEURE A 5.0) EN BOUTEILLE"]
["GA.13","N391","DIOXYDE DE CARBONE DE HAUTE PURETE (PURETE SUPERIEURE A D.0) EN BOUTEILLE"]
["GA.14","N392","GAZ RARES DE TRES HAUTE PURETE (NEON, XENON, KRYPTON,...) EN BOUTEILLE"]
["GA.15","N393","HELIUM GAZEUX DE HAUTE PURETE (PURETE SUPERIEURE A 5.0) EN BOUTEILLE"]
["GA.16","N394","GAZ FLUORES OU CHLORES DE TRES HAUTE PURETE (SUPERIEURE A D.0) EN BOUTEILLE"]
["GA.17","N395","HYDROGENE DE HAUTE PURETE (PURETE SUPERIEURE A 5.0) EN BOUTEILLE"]
["GA.18","N396","OXYGENE DE HAUTE PURETE (PURETE SUPERIEURE A 4.5) EN BOUTEILLE"]
["GA.19","N397","AUTRES GAZ NON MELANGES HAUTE PURETE EN BOUTEILLE"]
["GA.2",null,"GAZ DE LABORATOIRE EN MELANGE DE TRES HAUTE PURETE"]
["GA.21","N398","MELANGES DE GAZ SCIENTIFIQUES DE HAUTE PURETE EN BOUTEILLE"]
["GA.3",null,"GAZ MEDICAUX"]
["GA.31","N399","GAZ MEDICAUX "]
["GA.4",null,"PRESTATIONS CONNEXES A L'ACHAT DE GAZ CONDITIONNES EN BOUTEILLES"]
["GA.41","N400","PRESTATIONS CONNEXES A L'ACHAT DE GAZ EN BOUTEILLES (LOCATION DE BOUTEILLES,…)"]
["GA.5",null,"GAZ ET CRYOGENIE : GAZ LIQUIDES ET SOLIDES EN VRAC ET DEWAR"]
["GA.51","N401","AZOTE LIQUIDE EN VRAC ET DEWAR"]
["GA.52","N402","HELIUM LIQUIDE EN VRAC ET DEWAR"]
["GA.53","N403","ARGON EN VRAC ET DEWAR"]
["GA.54","N404","OXYGENE EN VRAC ET DEWAR"]
["GA.55","N405","GLACE CARBONIQUE (HORS TRANSPORT DE PRODUITS BIOLOGIQUES)"]
["GA.6",null,"PRESTATIONS CONNEXES A L'ACHAT DE GAZ LIQUIDES ET SOLIDES EN VRAC"]
["GA.61","N406","PRESTATIONS CONNEXES A L'ACHAT DE GAZ LIQUIDES ET SOLIDES EN VRAC"]
["GB",null,"GAZ DE LABORATOIRE OU D'ATELIER : MATERIEL DE GENERATION, STOCKAGE, DISTRIBUTION ET ANALYSE DES GAZ"]
["GB.0",null,"MATERIEL DE GENERATION, TRAITEMENT ET PREPARATION DES GAZ"]
["GB.01","N407","GENERATEURS DE GAZ (AIR, AZOTE, HYDROGENE, OXYGENE,…)"]
["GB.02","N408","MATERIEL DE TRAITEMENT ET PURIFICATION DES GAZ (COMPRESSEURS, SECHEURS,…)"]
["GB.03","N409","LIQUEFACTEURS ET ACCESSOIRES"]
["GB.04","N410","MATERIEL DE PREPARATION DES GAZ (REALISATION DE MELANGES,…)"]
["GB.1",null,"MATERIEL DE STOCKAGE ET DE DISTRIBUTION DES GAZ ET PRODUITS CRYOGENIQUES"]
["GB.11","N411","MATERIEL DE STOCKAGE DES GAZ ET PRODUITS CRYOGENIQUES"]
["GB.12","N412","MATERIEL DE DISTRIBUTION DES GAZ ET PRODUITS CRYOGENIQUES"]
["GB.13","N413","CRYOGENERATEURS ET CRYOSTATS (HORS MICROSCOPIE ET RMN)"]
["GB.2",null,"INSTRUMENTS POUR L'ANALYSE DES GAZ"]
["GB.21","N414","INSTRUMENTS POUR L'ANALYSE DES GAZ (HORS RGA)"]
["GC",null,"GAZ DE LABORATOIRE OU D'ATELIER - CRYOGENIE : REPARATION ET MAINTENANCE DES EQUIPEMENTS"]
["GC.0",null,"REPARATION ET MAINTENANCE DES EQUIPEMENTS DE GENERATION, STOCKAGE ET DISTRIBUTION DES GAZ"]
["GC.01","N415","REPARATION ET MAINTENANCE DES EQUIPEMENTS DE GENERATION ET TRAITEMENT DES GAZ"]
["GC.02","N416","REPARATION ET MAINTENANCE DES EQUIPEMENTS DE STOCKAGE ET DISTRIBUTION DES GAZ"]
["GC.03","R402","REPARATION ET MAINTENANCE DES CRYOGENERATEURS ET CRYOSTATS"]
["H",null,"HYGIENE ET SECURITE AU TRAVAIL"]
["HA",null,"SECURITE AU TRAVAIL : CONSOMMABLES ET EQUIPEMENTS DE PROTECTION INDIVIDUELS ET COLLECTIFS"]
["HA.0",null,"SECURITE AU TRAVAIL : CONSOMMABLES ET EQUIPEMENTS DE PROTECTION INDIVIDUELLE"]
["HA.01","N417","EPI : GANTS A USAGE UNIQUE"]
["HA.02","N418","EPI : AUTRES EPI JETABLES (BLOUSES, SURCHAUSSES, CHARLOTTES, MASQUES…)"]
["HA.03","N419","EPI : BLOUSES ET AUTRES VETEMENTS DE LABORATOIRE REUTILISABLES"]
["HA.04","N420","EPI : VETEMENTS DE TRAVAIL ET DE PROTECTION COURANTS (HORS LABORATOIRE)"]
["HA.05","N421","EPI : ACCESSOIRES (LUNETTES, CASQUES, ETC…)"]
["HA.06","N422","EQUIPEMENTS ET VETEMENTS DE PROTECTION ET SECURITE INDIVIDUELLE SPECIAUX"]
["HA.07","N423","EQUIPEMENTS DE RADIOPROTECTION INDIVIDUELLE"]
["HA.1",null,"SECURITE AU TRAVAIL : CONSOMMABLES ET PETITS EQUIPEMENTS COLLECTIFS"]
["HA.11","N424","CONSOMMABLES POUR RECEPTION DES DECHETS (ABSORBANTS, RECIPIENTS,…)"]
["HA.12","N425","PETIT MATERIEL DE SECURITE COLLECTIVE (SIGNALETIQUE, DETECTEURS…)"]
["HA.2",null,"SECURITE AU TRAVAIL : EQUIPEMENTS DE SECURITE COLLECTIFS"]
["HA.21","N426","ARMOIRES DE SECURITE ET RANGEMENTS"]
["HA.22","N427","ENCEINTES DE CONFINEMENT DES SUBST. DANGEREUSES ET CONSOMM. ASSOCIES"]
["HA.23","N428","POSTES DE SECURITE MICROBIOLOGIQUES (PSM) - HOTTES ET CONSOMMABLES ASSOCIES"]
["HA.24","N429","SECURITE AU TRAVAIL : AUTRES EQUIPEMENTS SPECIAUX ET CONSOMMABLES ASSOCIES"]
["HB",null,"SECURITE AU TRAVAIL : REPARATION, MAINTENANCE ET VERIFICATION DES EQUIPEMENTS DE SANTE ET SECURITE"]
["HB.0",null,"SECURITE AU TRAVAIL : REPARATION, MAINTENANCE, VERIFICATION DES EQUIPEMENTS DE SANTE ET SECURITE"]
["HB.01","N430","SECURITE AU TRAVAIL : REPARATION, MAINTENANCE ET VERIFICATION DES HOTTES ET PSM"]
["HB.02","R403","SECURITE AU TRAVAIL : MAINTENANCE ET VERIF. DES AUTRES EQUIP. DE PROTECTION"]
["HC",null,"SECURITE AU TRAVAIL : SERVICES"]
["HC.0",null,"SECURITE AU TRAVAIL : SERVICES D'ENTRETIEN DES VETEMENTS DE PROTECTION INDIVIDUELLE"]
["HC.01","N431","SERVICES DE LOCATION ET ENTRETIEN DES BLOUSES DE LABORATOIRE"]
["HC.02","N432","SERVICES DE LOCATION ET ENTRETIEN AUTRES VETEMENTS DE PROTECTION INDIVIDUELLE"]
["I",null,"INFORMATIQUE - TELECOMMUNICATIONS - AUDIOVISUEL"]
["IA",null,"INFORMATIQUE : EQUIPEMENTS, CONSOMMABLES ET PIECES DETACHEES POUR L'INFORMATIQUE"]
["IA.0",null,"INFORMATIQUE : ORDINATEURS FIXES"]
["IA.01","N433","MICRO-ORDINATEURS ET STATIONS DE TRAVAIL FIXES"]
["IA.1",null,"INFORMATIQUE : APPAREILS MOBILES"]
["IA.11","N434","ORDINATEURS PORTABLES"]
["IA.12","N435","AUTRES APPAREILS MOBILES (TABLETTES ET ORDINATEURS ULTRAPORTABLES)"]
["IA.2",null,"INFORMATIQUE : PERIPHERIQUES, ACCESSOIRES ET CONSOMMABLES"]
["IA.21","N436","IMPRIMANTES "]
["IA.22","N437","CONSOMMABLES POUR IMPRIMANTES"]
["IA.23","N438","PETITES FOURNITURES POUR LE STOCKAGE EXTERNE DES DONNEES"]
["IA.24","N439","AUTRE MATERIEL INFORMATIQUE PERIPHERIQUE (ECRANS, CLAVIERS, SOURIS,…)"]
["IA.25","N440","COMPOSANTS INTERNES POUR ORDINATEURS"]
["IA.3",null,"INFORMATIQUE : SERVEURS"]
["IA.31","N441","SERVEURS D'APPLICATIONS"]
["IA.32","N442","SYSTEMES POUR LE STOCKAGE ET LA SAUVEGARDE DE DONNEES"]
["IA.33","N443","SERVEURS POUR LE CALCUL OU L'EXPLOITATION DE DONNEES SCIENTIFIQUES"]
["IA.34","N444","SERVEURS HAUTES PERFORMANCES, SUPER CALCULATEURS "]
["IA.4",null,"INFORMATIQUE: EQUIPEMENTS POUR RESEAUX INFORMATIQUES / TELECOM"]
["IA.41","N445","RESEAUX : PETITS EQUIPEMENTS DE RESEAUX INFORMATIQUES"]
["IA.42","N446","RESEAUX : EQUIPEMENTS DE RESEAUX INFORMATIQUES"]
["IA.43","N447","RESEAUX : EQUIPEMENTS DE TRANSMISSION DE DONNEES SANS FIL (dont bornes Wi-Fi)"]
["IA.44","N448","RESEAUX : EQUIPEMENTS DE SUPERVISION ET METROLOGIE"]
["IA.45","N449","RESEAUX : ANALYSEURS"]
["IA.46","N450","CONCEPTION, REALISATION DE RESEAUX INFORMATIQUES"]
["IA.5",null,"INFORMATIQUE : SYSTEMES SPECIALISES"]
["IA.51","N451","INFORMATIQUE : SYSTEMES DE SORTIE POUR LA REALITE VIRTUELLE"]
["IA.52","N452","INFORMATIQUE : CALCULATEURS EMBARQUES"]
["IA.53","N453","INFORMATIQUE : ROBOTS PROTOTYPES"]
["IA.54","N454","INFORMATIQUE : AUTRES SYSTEMES DE PILOTAGE"]
["IA.55","N455","INFORMATIQUE : CAPTEURS POUR LA REALITE VIRTUELLE"]
["IA.56","N456","INFORMATIQUE : CAPTEURS POUR LA ROBOTIQUE"]
["IA.57","N457","INFORMATIQUE : ACTIONNEURS"]
["IB",null,"INFORMATIQUE : LOGICIELS STANDARDS ET SPECIFIQUES"]
["IB.0",null,"LOGICIELS POUR SYSTEME ET RESEAUX : DROITS ET MAINTENANCE"]
["IB.01","N458","DROITS D'UTILISATION DE LOGICIELS STANDARDS POUR SYSTEME ET RESEAUX"]
["IB.02","N459","DROITS D'UTILISATION DE LOGICIELS SPECIFIQUES POUR SYSTEME ET RESEAUX"]
["IB.03","N460","MAINTENANCE DES LOGICIELS POUR SYSTEME ET RESEAUX"]
["IB.1",null,"LOGICIELS BUREAUTIQUES : DROITS ET MAINTENANCE"]
["IB.11","N461","DROITS D'UTILISATION DE LOGICIELS STANDARDS DE BUREAUTIQUE"]
["IB.12","N462","DROITS D'UTILISATION DE LOGICIELS SPECIFIQUES DE BUREAUTIQUE"]
["IB.13","N463","MAINTENANCE DES LOGICIELS DE BUREAUTIQUE"]
["IB.2",null,"LOGICIELS POUR LE DEVELOPPEMENT : DROITS ET MAINTENANCE"]
["IB.21","N464","DROITS D'UTILISATION DE LOGICIELS STANDARDS DE DEVELOPPEMENT"]
["IB.22","N465","DROITS D'UTILISATION DE LOGICIELS SPECIFIQUES DE DEVELOPPEMENT"]
["IB.23","N466","MAINTENANCE DES LOGICIELS DE DEVELOPPEMENT"]
["IB.3",null,"AUTRES LOGICIELS : DROITS ET MAINTENANCE"]
["IB.31","N467","DROITS D'UTIL. DES AUTRES LOGICIELS SCIENTIFIQUES"]
["IB.32","N468","DROITS D'UTILISATION DES AUTRES LOGICIELS"]
["IB.33","N469","MAINTENANCE DES AUTRES LOGICIELS SCIENTIFIQUES"]
["IB.34","N470","MAINTENANCE DES AUTRES LOGICIELS"]
["IC",null,"INFORMATIQUE : MAINTENANCE, ENTRETIEN ET REPARATION DES EQUIPEMENTS INFORMATIQUES"]
["IC.0",null,"MAINTENANCE ET REPARATION DES ORDINATEURS"]
["IC.01","N471","MAINTENANCE ET REPARATION DES MICRO-ORDINATEURS, STATIONS DE TRAVAIL FIXES"]
["IC.02","N472","MAINTENANCE ET REPARATION DES APPAREILS MOBILES"]
["IC.1",null,"MAINTENANCE ET REPARATION DES PERIPHERIQUES INFORMATIQUES"]
["IC.11","N473","MAINTENANCE ET REPARATION DES PERIPHERIQUES INFORMATIQUES"]
["IC.2",null,"MAINTENANCE ET REPARATION DES SERVEURS"]
["IC.21","N474","MAINTENANCE ET REPARATION DES SERVEURS D'APPLICATIONS"]
["IC.22","N475","MAINTENANCE ET REPARATION DES SYST. DE STOCKAGE ET DE SAUVEGARDE DE DONNEES"]
["IC.23","N476","MAINTENANCE ET REPARATION SERVEURS DE CALCUL OU D'EXPLOIT. DE DONNEES SCIENTIF."]
["IC.24","N477","MAINTENANCE ET REPARATION DES SERVEURS HAUTE PERFORMANCE, SUPER CALCULATEURS"]
["IC.3",null,"MAINTENANCE ET REPARATION DES RESEAUX INFORMATIQUES"]
["IC.31","N478","MAINTENANCE ET REPARATION DES EQUIPEMENTS DE RESEAUX INFORMATIQUES "]
["IC.4",null,"MAINTENANCE ET REPARATION DES SYSTEMES SPECIALISES"]
["IC.41","N479","MAINTENANCE ET REPARATION DES SYSTEMES SPECIALISES"]
["ID",null,"INFORMATIQUE : SERVICES"]
["ID.0",null,"INFORMATIQUE : SERVICES RELATIFS AUX RESEAUX"]
["ID.01","N480","INFORMATIQUE : PRESTATIONS D'ADMINISTRATION ET EXPLOITATION DE SERVICES RESEAUX"]
["ID.02","R481","SERVICE D'INVESTIGATION NUMERIQUE "]
["ID.03","R482","LOCATION DE DATA CENTER"]
["ID.04","R483","AUTRES SERVICES DE SECURISATION DES INFRASTRUCTURES"]
["ID.1",null,"INFORMATIQUE : AUTRES SERVICES"]
["ID.11","N481","INFORMATIQUE : SCHEMA DIRECTEUR ET AUDIT"]
["ID.12","N482","INFORMATIQUE : ASSISTANCE A MAITRISE D'OUVRAGE"]
["ID.13","N483","INFORMATIQUE : ASSISTANCE A MAITRISE D'ŒUVRE"]
["ID.14","N484","INFORMATIQUE : TRAITEMENTS INFORMATIQUES"]
["ID.15","N485","INFORMATIQUE : INFOGERANCE DE SYSTEMES D'INFORMATION"]
["ID.16","N486","INFORMATIQUE : DEVELOPPEMENTS D'APPLICATION DE SYSTEMES D'INFORMATION "]
["ID.17","N487","INFORMATIQUE : DEVELOPPEMENTS D'APPLICATION A USAGE SCIENTIFIQUE"]
["ID.18","R422","INFORMATIQUE : AUTRES MISSIONS D'ETUDES ET DE CONSEILS"]
["ID.19","R423","INFORMATIQUE : AUTRES SERVICES INFORMATIQUES"]
["ID.2",null,"SERVICES DE DEMATERIALISATION"]
["ID.21","Z152","CERTIFICAT DE SIGNATURE ELECTRONIQUE"]
["ID.3",null,"CYBER SECURITE"]
["ID.31","R484","CONSEIL, AUDIT EN CYBER SECURITE"]
["ID.32 ","R485","SERVICE DE PROTECTION NUMERIQUE"]
["IE",null,"AUDIOVISUEL : EQUIPEMENTS, CONSOMMABLES ET PIECES DETACHEES"]
["IE.0",null,"AUDIOVISUEL : EQUIPEMENTS DE PRODUCTION AUDIOVISUELLE"]
["IE.01","N488","APPAREILS DE PRODUCTION AUDIOVISUELLE "]
["IE.02","N489","EQUIPEMENTS DE VISIOCONFERENCE"]
["IE.1",null,"AUDIOVISUEL : PIECES DETACHEES ET CONSOMMABLES POUR L'AUDIOVISUEL"]
["IE.11","N490","PIECES DETACHEES POUR L'AUDIOVISUEL"]
["IE.12","N491","CONSOMMABLES POUR L'AUDIOVISUEL (HORS CONSOMMABLES INFORMATIQUES)"]
["IE.2",null,"AUDIOVISUEL : EQUIPEMENTS ET CONSOMMABLES POUR LE SON"]
["IE.21","N492","APPAREILS DE RECEPTION, ENREGISTREMENT OU REPRODUCTION DU SON "]
["IE.22","N493","CONSOMMABLES POUR APPAREILS DE RECEP., ENREG. OU REPRO. DU SON"]
["IE.23","N494","APPAREILS PROFESSIONNELS DE RECEPT., ENREG. OU REPROD. DU SON (BROADCAST)"]
["IE.3",null,"AUDIOVISUEL : EQUIPEMENTS ET CONSOMMABLES POUR L'IMAGE"]
["IE.31","N495","APPAREILS DE RECEPTION ENREGISTREMENT REPRODUCTION IMAGE"]
["IE.32","N496","VIDEOPROJECTEURS"]
["IE.33","N497","TABLEAUX BLANCS INTERACTIFS"]
["IE.34","N498","CONSOMMABLES POUR APPAREILS DE RECEPT., ENREG. OU REPROD. DE L'IMAGE "]
["IE.35","N499","APPAREILS PROFESSIONNELS DE RECEP., ENREG. OU REPROD. DE L'IMAGE (BROADCAST)"]
["IE.36","N500","MATERIEL PHOTOGRAPHIQUE"]
["IE.37","N501","PREPARATIONS ET PRODUITS DE LABORATOIRE POUR LA PHOTOGRAPHIE "]
["IE.4",null,"AUDIOVISUEL : EQUIPEMENTS ET CONSOMMABLES CINEMATOGRAPHIQUES"]
["IE.41","N502","MATERIEL CINEMATOGRAPHIQUE"]
["IE.42","N503","PLAQUES, PELLICULES, FILMS ET SURFACES SENSIBLES POUR LE CINEMA"]
["IE.43","N504","PREPARATIONS ET PRODUITS DE LABORATOIRE POUR LE CINEMA"]
["IF",null,"AUDIOVISUEL : MAINTENANCE, ENTRETIEN ET REPARATION DES EQUIPEMENTS AUDIOVISUELS"]
["IF.0",null,"MAINTENANCE ET REPARATION DES EQUIPEMENTS AUDIOVISUELS"]
["IF.01","N505","MAINTENANCE ET REPAR. D'APPAREILS DE PRODUCTION AUDIOVISUELLE"]
["IF.02","N506","MAINTENANCE ET REPAR. DES APPAREILS DE RECEPT., ENREG. OU REPROD. DU SON"]
["IF.03","N507","MAINTENANCE ET REPAR. DES APPAREILS PROFES. DE RECEP., ENREG. OU REPROD. DU SON"]
["IF.04","N508","MAINTENANCE ET REPAR. DES APPAREILS DE RECEPT. ENREG. OU REPROD. DE L'IMAGE"]
["IF.05","N509","MAINTENANCE ET REPAR. DES APPAR. PROFES. DE RECEP., ENREG. OU REPROD. DE L'IMAGE"]
["IF.06","N510","MAINTENANCE ET REPAR. DU MATERIEL PHOTOGRAPHIQUE"]
["IF.07","N511","MAINTENANCE ET REPAR. DU MATERIEL CINEMATOGRAPHIQUE"]
["IG",null,"TELECOMMUNICATIONS : MATERIEL ET GROS EQUIPEMENTS DE TELECOMMUNICATION"]
["IG.0",null,"TELECOMMUNICATIONS : EQUIPEMENTS DE TELEPHONIE "]
["IG.01","N512","TELECOMMUNICATIONS : TERMINAUX DE TELEPHONIE FIXE"]
["IG.02","N513","TELECOMMUNICATIONS : TERMINAUX DE TELEPHONIE MOBILE"]
["IG.03","N514","TELECOMMUNICATIONS : AUTRES TERMINAUX : TELECOPIEURS, TELEIMPRIMEURS"]
["IG.04","N515","TELECOMMUNICATIONS : AUTRES EQUIPEMENTS DE TELECOMUNICATIONS"]
["IH",null,"TELECOMMUNICATIONS : MAINTENANCE, ENTRETIEN ET REPARATION DES EQUIPEMENTS"]
["IH.0",null,"TELECOMMUNICATIONS : MAINTENANCE, ENTRETIEN ET REPARATION DES EQUIPEMENTS"]
["IH.01","N516","MAINTENANCE ET REPARATION DES EQUIPEMENTS DE TELEPHONIE"]
["IH.02","N517","MAINTENANCE ET REPARATION DES POSTES TELEPHONIQUES D'USAGERS ET AUTRES TERMINAUX"]
["IH.03","N518","MAINTENANCE ET REPARATION DES AUTRES EQUIPEMENTS DE TELECOMUNICATIONS"]
["II",null,"TELECOMMUNICATIONS : SERVICES"]
["II.0",null,"TELECOMMUNICATIONS : ABONNEMENTS ET CONSOMMATIONS DE TELEPHONIE"]
["II.01","N519","TELECOM : CONSOMMATIONS, ABONNEMENTS, RACCORDEMENTS TELEPHONIE FILAIRE"]
["II.02","N520","TELECOM : CONSOMMATIONS, ABONNEMENTS TELEPHONIE MOBILE (VOIX ET DATA)"]
["II.03","N521","TELECOM : LIAISONS SPECIALISEES (FIBRES OPTIQUES, NOIRES, LIAISONS LOUEES...)"]
["II.04","N522","TELECOMMUNICATIONS : CONSOMMATIONS, ABONNEMENTS LIAISONS IRIDIUM"]
["II.05","N523","TELECOMMUNICATIONS : PRESTATIONS DE REPRISE ET REINTEGRATION DES DONNEES"]
["II.1",null,"TELECOMMUNICATIONS : AUTRES SERVICES EN TELECOMMUNICATIONS"]
["II.11","N524","TELECOMMUNICATIONS : INSTALLATION ET MONTAGE DE MATERIEL DE TELEPHONIE "]
["II.12","N525","TELECOMMUNICATIONS : MISE EN PLACE DE PLATE-FORMES TELEPHONIQUES"]
["II.13","N526","TELECOMMUNICATIONS : SERVICES DE CONSEIL / AMO EN TELECOMMUNICATION "]
["J",null,"AMENAGEMENT DE LABORATOIRE ET DE SALLE DE TP"]
["JA",null,"AMENAGEMENT ET MOBILIER DE LABORATOIRE ET DE SALLE DE TP"]
["JA.0",null,"MOBILIER DE LABORATOIRE ET DE SALLE DE TP"]
["JA.01","N527","ARMOIRES SIMPLES, RANGEMENTS, CHARIOTS DE LABORATOIRE"]
["JA.02","N528","PAILLASSES ET CHAISES DE LABORATOIRE"]
["JA.03","N529","MOBILIER ET CLOISONS DE SALLE BLANCHE"]
["JA.1",null,"TRAITEMENT DE L'AIR AMBIANT ET DE L'EAU"]
["JA.11","N530","TRAITEMENT DE L'AIR : EQUIPEMENTS DE PURIFICATION DE L'AIR (SALLE BLANCHE,…)"]
["JA.12","N531","TRAITEMENT DE L'AIR : CONSOMMABLES ET PIECES DETACHEES DEDIES AUX EQUIPEMENTS"]
["JA.13","N532","TRAITEMENT DE L'EAU : MATERIEL DE PURIFICATION D'EAU ET ACCESSOIRES"]
["JA.14","N533","TRAITEMENT DE L'EAU : CONSOMMABLES ET PIECES DETACHEES"]
["JB",null,"REPARATION ET MAINTENANCE DES EQUIPEMENTS DE TRAITEMENT DE L'AIR ET DE L'EAU"]
["JB.0",null,"REPARATION ET MAINTENANCE DES EQUIPEMENTS DE TRAITEMENT DE L'AIR AMBIANT"]
["JB.01","N534","TRAITEMENT DE L'AIR : REPARATION ET MAINTENANCE EQUIPEMENTS (SALLE BLANCHE,…)"]
["JB.1",null,"REPARATION ET MAINTENANCE DES EQUIPEMENTS DE TRAITEMENT DE L'EAU"]
["JB.11","N535","TRAITEMENT DE L'EAU : REPARATION ET MAINTENANCE DES EQUIPEMENTS (OSMOSEURS,…)"]
["K",null,"EXPERIMENTATION ANIMALE - ELEVAGE ANIMAL - CONSERVATION ANIMALE - ETUDE DES ANIMAUX"]
["KA",null,"ANIMAUX"]
["KA.0",null,"RONGEURS ET AUTRES PETITS MAMMIFERES DE LABORATOIRE"]
["KA.01","N536","RATS ET LIGNEES ENTRETENUES DE RATS"]
["KA.02","N537","SOURIS ET LIGNEES ENTRETENUES DE SOURIS"]
["KA.03","N538","COBAYES ET LIGNEES ENTRETENUES DE COBAYES"]
["KA.04","N539","LAPINS ET LIGNEES ENTRETENUES DE LAPINS"]
["KA.05","N540","AUTRES RONGEURS ET PETITS MAMMIFERES (CHIENS, CHATS,…)"]
["KA.1",null,"MOYENS ET GROS MAMMIFERES DE LABORATOIRE"]
["KA.11","N541","PRIMATES ET LIGNEES ENTRETENUES DE PRIMATES"]
["KA.12","N542","BOVINS ET LIGNEES ENTRETENUES DE BOVINS"]
["KA.13","N543","OVINS, CAPRINS ET LIGNEES ENTRETENUES D'OVINS ET CAPRINS"]
["KA.14","N544","PORCINS ET LIGNEES ENTRETENUES DE PORCINS"]
["KA.15","N545","AUTRES GROS MAMMIFERES (EQUIDES…)"]
["KA.2",null,"OISEAUX (VOLAILLES, ŒUFS, AUTRES OISEAUX) DE LABORATOIRE"]
["KA.21","N546","VOLAILLES ET LIGNEES ENTRETENUES DE VOLAILLES"]
["KA.22","N547","ŒUFS D'OISEAUX"]
["KA.23","N548","AUTRES OISEAUX QUE VOLAILLES"]
["KA.3",null,"AUTRES ANIMAUX DE LABORATOIRE"]
["KA.31","N549","AMPHIBIENS ET LIGNEES ENTRETENUES D'AMPHIBIENS"]
["KA.32","N550","POISSONS ET LIGNEES ENTRETENUES DE POISSONS"]
["KA.33","N551","INSECTES, ARACHNIDES ET LIGNEES ENTRETENUES D'INSECTES ET ARACHNIDES"]
["KA.34","N552","AUTRES ANIMAUX (CRUSTACES, MOLLUSQUES, REPTILES…)"]
["KA.4",null,"ANIMAUX SANS FINALITE SCIENTIFIQUE"]
["KA.41","N553","ANIMAUX SANS FINALITE EXPERIMENTALE (CHEVAUX D'EQUITATION,…)"]
["KB",null,"ALIMENTATION POUR ANIMAUX"]
["KB.0",null,"ALIMENTS POUR RONGEURS ET PETITS MAMMIFERES"]
["KB.01","N554","ALIMENTS NON COMPOSES POUR RONGEURS ET PETITS MAMMIFERES"]
["KB.02","N555","ALIMENTS COMPOSES POUR RONGEURS ET PETITS MAMMIFERES"]
["KB.03","N556","COMPLEMENTS VITAMINIQUES ET OLIGO-ELEMENTS POUR RONGEURS ET PETITS MAMMIFERES"]
["KB.1",null,"ALIMENTS COMPOSES, CONDITIONNES OU TRANSFORMES POUR GROS MAMMIFERES ET OISEAUX"]
["KB.11","N557","ALIMENTS ORIG. ANIMALE COMPOS., CONDITION. OU TRANSF. PR GROS MAMMIF. ET OISEAUX"]
["KB.12","N558","ALIMENTS VEGETAUX COMPOSES, CONDITIONNES OU TRANSF. PR GROS MAMMIF. ET OISEAUX"]
["KB.13","N559","COMPLEMENTS ALIMENTAIRES POUR GROS MAMMIFERES ET OISEAUX"]
["KB.2",null,"ALIMENTS NON TRANSFORMES POUR GROS MAMMIFERES ET OISEAUX ANIMAUX"]
["KB.21","N560","ALIMENTS POUR PRIMATES FRUITS ET LEGUMES POUR L'ALIMENTATION DES ANIMAUX"]
["KB.22","N561","ALIMENTS RECOLTES POUR GROS MAMMIFERES ET OISEAUX (GRAIN, FOURRAGE,...)"]
["KB.23","R437","VIANDES ET POISSONS POUR L'ALIMENTATION DES ANIMAUX"]
["KB.24","R438","PETITS ANIMAUX VIVANTS POUR L'ALIMENTATION DES ANIMAUX"]
["KB.3",null,"ALIMENTS POUR AUTRES ANIMAUX"]
["KB.31","N562","ALIMENTS POUR AUTRES ANIMAUX (POISSONS, BATRACIENS, ETC.)"]
["KB.4",null,"MATIERES PREMIERES POUR LA FABRICATION D'ALIMENTS POUR ANIMAUX"]
["KB.41","N563","MATIERES PREMIERES POUR LA FABRICATION D'ALIMENTS POUR ANIMAUX"]
["KC",null,"EQUIPEMENTS ET CONSOMMABLES POUR LES MILIEUX ANIMALIERS"]
["KC.0",null,"EQUIPEMENTS ET CONSOMMABLES D'IDENTIFICATION DES ANIMAUX (MARQUAGE)"]
["KC.01","N564","EQUIPEMENTS ET CONSOMMABLES D'IDENTIFICATION DES ANIMAUX (MARQUAGE)"]
["KC.1",null,"EQUIPEMENTS DE CONTENTION EN ANIMALERIE ET MILIEU D'ELEVAGE"]
["KC.11","N565","EQUIPEMENTS DE CONTENTION (CAGES...) ET ACCESSOIRES D'ANIMALERIE"]
["KC.12","N566","EQUIPEMENTS DE CONTENTION DES GROS MAMMIFERES"]
["KC.13","N567","EQUIPEMENTS DE CONTENTION DES POISSONS, REPTILES ET BATRACIENS"]
["KC.2",null,"EQUIPEMENTS ET CONSOMMABLES D'HYGIENE ET DE SOINS DES ANIMAUX"]
["KC.21","N568","LITIERE"]
["KC.22","N569","MATERIEL DE LAVAGE ET DESINFECTION DES ANIMALERIES ET MILIEUX D'ELEVAGE"]
["KC.23","N570","CONSOMMABLES D'HYGIENE ET DE SOIN DES ANIMAUX"]
["KC.24","N571","CONSOMMABLES ET PRODUITS VETERINAIRES"]
["KC.25","R439","MATERIELS POUR L'ENTRETIEN ET LE SOIN DES ANIMAUX"]
["KC.3",null,"EQUIPEMENTS POUR LA PREPARATION, LA DISTRIBUTION ET LA CONSERVATION D'ALIMENTS"]
["KC.31","N572","MATERIEL DE PREPARATION ET DE DISTRIBUTION D'ALIMENTS POUR ANIMAUX"]
["KC.32","N573","MATERIEL POUR LA CONSERVATION D'ALIMENTS POUR ANIMAUX"]
["KC.4",null,"EQUIPEMENTS ET CONSOMMABLES POUR L'EXPLOITATION ANIMALE"]
["KC.41","N574","VETEMENTS ET EQUIPEMENTS POUR L'EQUITATION"]
["KC.42","N575","MATERIELS ET CONSOMMABLES DE TRAITE, ABATTAGE, CRIBLAGE…"]
["KC.5",null,"EQUIPEMENTS ET CONSOMMABLES POUR L'ETUDE DES ANIMAUX"]
["KC.51","N576","MATERIELS ET CONSOMMABLES POUR L'ETUDE DU COMPORTEMENT ANIMAL"]
["KD",null,"EXPERIMENTATION ANIMALE : MOLECULES, PRODUITS ET CONSOMMABLES DE SOIN"]
["KD.0",null,"PREPARATIONS PHARMACEUTIQUES POUR EXPERIMENTATION ANIMALE"]
["KD.01","N577","SUBSTANCES ACTIVES MEDICAMENTEUSES VETERINAIRES NATURELLES"]
["KD.02","N578","SUBSTANCES ACTIVES MEDICAMENTEUSES VETERINAIRES SYNTHETIQUES"]
["KD.03","N579","EXCIPIENTS VETERINAIRES D'ORIGINE NATURELLE"]
["KD.04","N580","EXCIPIENTS VETERINAIRES D'ORIGINE SYNTHETIQUE"]
["KD.05","N581","MEDICAMENTS ET PREPARATIONS MEDICAMENTEUSES A DESTINATION ANIMALE"]
["KD.1",null,"VACCINS POUR EXPERIMENTATION ANIMALE"]
["KD.11","N582","VACCINS POUR EXPERIMENTATION ANIMALE"]
["KD.12","N583","ADDITIFS POUR VACCINS POUR EXPERIMENTATION ANIMALE"]
["KD.2",null,"PETITES FOURNITURES PRODUITS ET CONSOMMABLES DE SOINS POUR EXPERIMENTATION ANIMALE"]
["KD.21","N584","CONSOMMABLES ET PRODUITS DE SOINS POUR EXPERIMENTATION ANIMALE"]
["KE",null,"MATERIELS ET CONSOMMABLES DE LABORATOIRE D'EXPERIMENTATION ANIMALE"]
["KE.0",null,"MATERIELS ET CONSOMMABLES POUR L'IMAGERIE ANIMALE"]
["KE.01","N585","EQUIPEMENTS D'IMAGERIE ANIMALE"]
["KE.02","N586","CONSOMMABLES D'IMAGERIE ANIMALE"]
["KE.1",null,"MATERIELS ET CONSOMMABLES D'ANESTHESIE ET TECHNIQUES OPERATOIRES"]
["KE.11","N587","MATERIELS D'ANESTHESIE"]
["KE.12","N588","MATERIELS CHIRUGICAUX ET DE TECHNIQUES OPERATOIRES ANIMALES"]
["KE.13","N589","CONSOMMABLES D'ANESTHESIE ET DE TECHNIQUES OPERATOIRES ANIMALES"]
["KE.2",null,"MATERIELS ET CONSOMMABLES D'INVESTIGATION ANIMALE"]
["KE.21","N590","MATERIELS CARDIOVASCULAIRES, RENAUX ET RESPIRATOIRES"]
["KE.22","N591","CONSOMMABLES POUR EQUIPEMENTS D'EXPERIMENTATION ANIMALE"]
["KE.23","N592","AUTRES EQUIPEMENTS D'INVESTIGATION ANIMALE"]
["KE.3",null,"AUTRES MATERIELS ET CONSOMMABLES D'EXPERIMENTATION ANIMALE"]
["KE.31","N593","AUTRES EQUIPEMENTS ET CONSOMMABLES D'EXPERIMENTATION ANIMALE"]
["KE.4",null,"EQUIPEMENTS ET CONSOMMABLES POUR L'EXPLOITATION ANIMALE"]
["KE.41","N594","EQUIPEMENTS ET CONSOMMABLES POUR L'EXPLOITATION ANIMALE"]
["KE.5",null,"EQUIPEMENTS ET CONSOMMABLES POUR L'ETUDE DES ANIMAUX"]
["KE.51","N595","MATERIELS ET CONSOMMABLES POUR L'ETUDE DU COMPORTEMENT ANIMAL"]
["KF",null,"ELEVAGE ET EXPERIMENTATION ANIMALE : MAINTENANCE ET REPARATION DES EQUIPEMENTS"]
["KF.0",null,"MAINTENANCE ET REPARATION DU MATERIEL D'ELEVAGE ANIMAL ET ETUDE DES ANIMAUX"]
["KF.01","N596","MAINTENANCE REPAR. CONTRÔLE MATERIEL DE DESINFECT. ET LAVAGE DES ANIMALERIES"]
["KF.02","N597","MAINTENANCE ET REPARATION DES AUTRES EQUIPEMENTS D'ELEVAGE ANIMAL"]
["KF.03","N598","MAINTENANCE ET REPARATION DES MATERIELS POUR L'ETUDE DES ANIMAUX"]
["KF.1",null,"MAINTENANCE ET REPARATION DES EQUIPEMENTS D'EXPERIMENTATION ANIMALE"]
["KF.11","N599","MAINTENANCE ET REPARATION DES MATERIELS D'IMAGERIE ANIMALE"]
["KF.12","N600","MAINTENANCE ET REPARATION DES MATERIELS D'ANESTHESIE ET DE TECHNIQ. OPERATOIRES"]
["KF.13","N601","MAINTENANCE ET REPARATION DES MATERIELS D'INVESTIGATION ANIMALE"]
["KF.14","N602","MAINTENANCE ET REPARATION DES AUTRES MATERIELS D'EXPERIMENTATION ANIMALE"]
["KG",null,"ELEVAGE - EXPERIMENTATION ET CONSERVATION ANIMALE : SERVICES"]
["KG.0",null,"ELEVAGE : SERVICES RELATIFS A L'ELEVAGE ET LA CONSERVATION DES ANIMAUX"]
["KG.01","N603","SERVICES D'EXTERNALISATION DE LA GESTION D'UNE ANIMALERIE"]
["KG.02","N604","CONTROLES SANITAIRES ET ANALYSES VETERINAIRES"]
["KG.03","N605","SERVICES RELATIFS A LA REPRODUCTION DES ANIMAUX"]
["KG.04","N606","AUTRES SERVICES VETERINAIRES"]
["KG.05","N607","AUTRES SERVICES RELATIFS A L'ELEVAGE DES ANIMAUX"]
["KG.06","R460","SERVICES RELATIFS A LA CRYOCONSERVATION"]
["KG.1",null,"EXPERIMENTATION ANIMALE : SERVICES SPECIALISES"]
["KG.11","N608","SERVICES D'IMAGERIE ANIMALE"]
["KG.12","N609","AUTRES SERVICES D'EXPERIMENTATION ANIMALE"]
["L",null,"MEDICAL"]
["LA",null,"MEDICAL : MEDICAMENTS, VACCINS ET PRODUITS D'ORIGINE HUMAINE"]
["LA.0",null,"MEDICAL : MEDICAMENTS"]
["LA.01","N610","SUBSTANCES ACTIVES MEDICAMENTEUSES NATURELLES"]
["LA.02","N611","SUBSTANCES ACTIVES MEDICAMENTEUSES SYNTHETIQUES"]
["LA.03","N612","EXCIPIENTS D'ORIGINE NATURELLE"]
["LA.04","N613","EXCIPIENTS D'ORIGINE SYNTHETIQUE"]
["LA.05","N614","MEDICAMENTS ET PREPARATIONS MEDICAMENTEUSES"]
["LA.1",null,"MEDICAL : VACCINS"]
["LA.11","N615","VACCINS"]
["LA.12","N616","ADDITIFS POUR VACCINS"]
["LA.2",null," PRODUITS D'ORIGINE HUMAINE"]
["LA.21","R486"," PRODUITS ET DERIVES SANGUINS HUMAINS "]
["LA.22","R487","CELLULES ET TISSUS HUMAINS "]
["LA.23","R488","AUTRES PRODUITS D'ORIGINE HUMAINE"]
["LB.0",null,"MEDICAL : EQUIPEMENTS, PRODUITS ET CONSOMMABLES DE SOINS MEDICAUX"]
["LB.01","N617","EQUIPEMENTS DE CABINETS MEDICAUX, Y COMPRIS POUR MEDECINE DU TRAVAIL"]
["LB.02","N618","PETIT MATERIEL POUR CABINETS MEDICAUX, Y COMPRIS POUR MEDECINE DU TRAVAIL"]
["LB.03","N619","PRODUITS ET CONSOMMABLES DE SOINS MEDICAUX"]
["LB.1",null,"MEDICAL : IMAGERIE MEDICALE"]
["LB.11","N620","EQUIPEMENTS D'IMAGERIE MEDICALE (IRM, SCANNER,...)"]
["LB.12","N621","CONSOMMABLES POUR LES EQUIPEMENTS D'IMAGERIE MEDICALE"]
["LB.2",null,"MEDICAL : ANESTHESIES ET TECHNIQUES OPERATOIRES"]
["LB.21","N622","EQUIPEMENTS D'ANESTHESIE ET DE TECHNIQUES OPERATOIRES"]
["LB.22","N623","CONSOMMABLES D'ANESTHESIE ET DE TECHNIQUES OPERATOIRES"]
["LB.3",null,"MEDICAL : INVESTIGATIONS CLINIQUES"]
["LB.31","N624","MATERIEL D'INVESTIGATION CARDIOVASCUL., RENALE ET RESPIRAT."]
["LB.32","N625","AUTRES EQUIPEMENTS D'INVESTIGATION CLINIQUE"]
["LB.33","N626","CONSOMMABLES ET REACTIFS D'INVESTIGATION CLINIQUE"]
["LB.4",null,"MEDICAL : AUTOMATES D'ANALYSES MEDICALES"]
["LB.41","N627","AUTOMATES D'ANALYSES MEDICALES"]
["LB.42","N628","CONSOMMABLES POUR AUTOMATES D'ANALYSES MEDICALES"]
["LB.5",null,"MEDICAL : ODONTOLOGIE, PROTHESE ET OCE"]
["LB.51","N629","PETITS MATERIELS POUR ODONTOLOGIE"]
["LB.52","N630","PRODUITS ET CONSOMMABLES  POUR ODONTOLOGIE"]
["LB.53","N631","EQUIPEMENTS D'IMAGERIE  POUR ODONTOLOGIE"]
["LB.54","N632","CONSOMMABLES D'IMAGERIE POUR ODONTOLOGIE"]
["LB.55","Z153","PRODUITS ET CONSOMMABLES DE PROTHESES"]
["LB.56","Z154","PRDT ET CONS ODONTOLOGIE CONSERVATRICE ET ENDODONTIE (OCE)"]
["LB.57","Z155","EQUIPEMENTS D'OTONTOLOGIE"]
["LB.58","Z156","MATERIELS POUR REPARATION DES EQUIPEMENT ODONTOLOGIE"]
["LB.6",null,"MEDICAL : OPTIQUE ET OPHTALMOLOGIE"]
["LB.61","R391","FOURNITURES OPTIQUES (VERRES, LUNETTES,…)"]
["LB.62","R392","MATERIELS D'OPHTALMOLOGIE"]
["LC",null,"MEDICAL : MAINTENANCE ET REPARATION DES EQUIPEMENTS MEDICAUX"]
["LC.0",null,"MEDICAL : MAINTENANCE ET REPARATION DES EQUIPEMENTS MEDICAUX"]
["LC.01","N633","MAINTENANCE ET REPARATION DES EQUIPEMENTS D'IMAGERIE MEDICALE (IRM,…)"]
["LC.02","N634","MAINTENANCE ET REPARATION DU MATERIEL D'ANESTHESIE ET DE TECH. OPERATOIRES"]
["LC.03","N635","MAINTENANCE ET REPARATION DES EQUIPEMENTS D'INVESTIGATION CLINIQUE"]
["LC.04","N636","MAINTENANCE ET REPARATION DES EQUIPEMENTS DE BIOCHIMIE CLINIQUE"]
["LC.05","R393","MAINTENANCE ET REPARATION DES EQUIPEMENTS D'ODONTOLOGIE"]
["LC.06","R394","MAINTENANCE ET REPARATION DES MATERIELS D'OPHTALMOLOGIE"]
["LD",null,"MEDICAL : SERVICES"]
["LD.0",null,"MEDICAL : SERVICES D'ETUDES A CARACTERE MEDICAL"]
["LD.01","N637","SERVICES DE CONDUITE D'ESSAIS CLINIQUES (PHASES I A IV)"]
["LD.02","N638","SERV. DE COND. D'ETUDES ET D'ENQUÊTES D'EPIDEMIO., SANTE PUBL. ET SOCIOL MEDIC."]
["LD.03","N639","SERV. DE COND. D'ETUDES A CARACTERE MEDICAL, HORS ESSAIS CLINIQUES ET ENQUÊTES"]
["LD.1",null,"MEDICAL : SERVICES D'IMAGERIE MEDICALE"]
["LD.11","N640","SERVICES D'IRM"]
["LD.12","N641","AUTRES SERVICES D'IMAGERIE MEDICALE"]
["LD.2",null,"MEDICAL : SERVICES D'ANALYSES MEDICALES"]
["LD.21","N642","SERVICES D'ANALYSES SANGUINES"]
["LD.22","N643","AUTRES SERVICES D'ANALYSE MEDICALE"]
["LD.3",null,"MEDICAL : SERVICES MEDICAUX"]
["LD.31","N644","NE PLUS UTILISER"]
["LD.32","R467","SERVICES DE BIOBANQUES"]
["LD.33","R468","AUTRES SERVICES MEDICAUX"]
["M",null,"MICROSCOPIE - PROFILOMETRIE"]
["MA",null,"MICROSCOPIE - PROFILOMETRIE : MATERIEL, ACCESSOIRES ET CONSOMMABLES"]
["MA.0",null,"MICROSCOPIE : MATERIEL ET CONSOMMABLES POUR PREPARATION D'ECHANTILLONS POUR MICROSCOPIE"]
["MA.01","N645","MATERIEL DE PREPARATION D'ECHANTILLONS POUR MICROSCOPIE"]
["MA.02","N646","CONSOMMABLES POUR LA PREPARATION D'ECHANTILLONS (HORS LAMES)"]
["MA.1",null,"MICROSCOPIE A CHAMP PROCHE ET PROFILOMETRIE A CONTACT : EQUIPEMENTS, ACCESSOIRES ET CONSOMMABLES SPECIFIQUES"]
["MA.11","N647","MICROSCOPES A CHAMP PROCHE (AFM, SPM, SNOM, ELECTROCHIMIQUES…)"]
["MA.12","N648","PROFILOMETRES A CONTACT"]
["MA.13","N649","POINTES ET AUTRES CONSOMMABLES POUR MICROSCOPES A CHAMP PROCHE"]
["MA.14","N650","MICROSCOPIE A CHAMP PROCHE : AUTRE MATERIEL ET PIECES DETACHEES"]
["MA.15","N651","MICROSCOPIE A CHAMP PROCHE : ELECTRONIQUE DE REMPLACEMENT"]
["MA.2",null,"MICROSCOPIE ELECTRONIQUE ET IONIQUE : EQUIPEMENTS, ACCESSOIRES ET CONSOMMABLES SPECIFIQUES"]
["MA.21","N652","MICROSCOPES ELECTRONIQUES ET IONIQUES"]
["MA.22","N653","MICROSCOPIE ELECTRONIQUE ET IONIQUE : DETECTEURS SPECIFIQUES"]
["MA.23","N654","MICROSCOPIE ELECTRONIQUE ET IONIQUE : CAMERAS"]
["MA.24","N655","MICROSCOPIE ELECTRONIQUE ET IONIQUE : AUTRE MATERIEL ET PIECES DETAC. HORS N1"]
["MA.25","N656","MICROSCOPIE ELECTRONIQUE ET IONIQUE : ELECTRONIQUE DE REMPLACEMENT"]
["MA.3",null,"MICROSCOPIE ACOUSTIQUE : EQUIPEMENTS, ACCESSOIRES ET CONSOMMABLES SPECIFIQUES"]
["MA.31","N657","SYSTÈMES DE MICROSCOPIE ACOUSTIQUE"]
["MA.32","N658","MICROSCOPIE ACOUSTIQUE : ACCESSOIRES, CONSOMMABLES ET PIECES DETACHEES"]
["MA.33","N659","MICROSCOPIE ACOUSTIQUE : ELECTRONIQUE DE REMPLACEMENT"]
["MA.4",null,"MICROSCOPIE ET PROFILOMETRIE OPTIQUE : EQUIPEMENTS, ACCESSOIRES ET CONSOMMABLES SPECIFIQUES"]
["MA.41","N660","MICROSCOPIE A ANGLE DE BREWSTER : EQUIPEMENTS ET ACCESSOIRES"]
["MA.42","N661","PROFILOMETRES OPTIQUES"]
["MA.43","N662","MICROSCOPIE PHOTONIQUE ET DE FLUORESCENCE : LOUPES ET STEREOMICROSCOPES"]
["MA.44","N663","MICROSCOPES PHOTONIQUES ET DE FLUORESCENCE"]
["MA.45","N664","LAMPES POUR MICROSCOPES PHOTONIQUES ET DE FLUORESCENCE"]
["MA.46","N665","MICROSCOPIE OPTIQUE : AUTRE MATERIEL ET PIECES DETACHEES HORS O0"]
["MA.47","N666","AUTRES MICROSCOPES OPTIQUES (MAGNETO-OPTIQUES, A EMISSION DE LUMIERE…)"]
["MA.48","N667","MICROSCOPIE OPTIQUE : ELECTRONIQUE DE REMPLACEMENT"]
["MB",null,"MICROSCOPIE - PROFILOMETRIE : REPARATION ET MAINTENANCE"]
["MB.0",null,"MICROSCOPIE : REPARATION ET MAINTENANCE DES EQUIPEMENTS"]
["MB.01","N668","MATERIEL DE PREP. D'ECHANTILLONS PR MICROSCOPIE : REPARATION ET MAINTENANCE"]
["MB.02","N669","MICROSCOPIE A CHAMP PROCHE ET PROFILOMETRIE : REPARATION ET MAINTENANCE"]
["MB.03","N670","MICROSCOPIE ELECTRONIQUE ET IONIQUE : REPARATION ET MAINTENANCE"]
["MB.04","N671","MICROSCOPIE ACOUSTIQUE : REPARATION ET MAINTENANCE DU MATERIEL"]
["MB.05","N672","MICROSCOPIE OPTIQUE : REPARATION ET MAINTENANCE"]
["MC",null,"MICROSCOPIE - PROFILOMETRIE : SERVICES D'ANALYSE"]
["MC.0",null,"MICROSCOPIE : SERVICES D'ANALYSE"]
["MC.01","N673","MICROSCOPIE A CHAMP PROCHE ET PROFILOMETRIE A CONTACT : SERVICES D'ANALYSE"]
["MC.02","N674","MICROSCOPIE ELECTRONIQUE ET IONIQUE : SERVICES D'ANALYSE"]
["MC.03","N675","MICROSCOPIE ACOUSTIQUE : SERVICES D'ANALYSE"]
["MC.04","N676","MICROSCOPIE PHOTONIQUE ET PROFILOMETRIE OPTIQUE : SERVICES D'ANALYSE"]
["N",null,"CHIMIE ET BIOLOGIE"]
["NA",null,"CHIMIE ET BIOLOGIE : PRODUITS ET REACTIFS"]
["NA.0",null,"CHIMIE ET BIOLOGIE : SOLVANTS"]
["NA.01","N677","SOLVANTS : ACETATE D'ETHYLE ET AUTRES ESTERS"]
["NA.02","N678","SOLVANTS : ACETONE"]
["NA.03","N679","SOLVANTS : ACETONITRILE"]
["NA.04","N680","SOLVANTS : SOLVANTS CHLORES (DICHLOROMETHANE, CHLOROFORME,…)"]
["NA.05","N681","SOLVANTS : EAU ET ALCOOLS (METHANOL, ETHANOL, PROPAN-2-OL,…)"]
["NA.06","N682","SOLVANTS : HYDROCARBURES (PENTANE, HEXANE, HEPTANE,…)"]
["NA.07","N683","SOLVANTS : AUTRES SOLVANTS (ETHERS,…)"]
["NA.08","N684","SOLVANTS : SOLVANTS INDUSTRIELS (FUTS ET TONNELETS)"]
["NA.1",null,"CHIMIE ET BIOLOGIE : PRODUITS ISOTOPIQUES RADIOACTIFS ET NON RADIOACTIFS"]
["NA.11","N685","SOLVANTS ISOTOPIQUES (DEUTERIES,…)"]
["NA.12","N686","PRODUITS LIQUIDES ET SOLIDES ISOTOPIQUES NON RADIOACTIFS (HORS SOLVANTS)"]
["NA.13","N687","CHIMIE ET BIOLOGIE : PRODUITS RADIOACTIFS"]
["NA.2",null,"CHIMIE ET BIOLOGIE : PRODUITS CHIMIQUES ET BIOCHIMIQUES"]
["NA.21","N688","PRODUITS CHIMIQUES COURANTS (ACIDES, BASES, SELS...)"]
["NA.22","N689","PRODUITS CHIMIQUES POUR LA SYNTHESE ORGANIQUE"]
["NA.23","N690","METAUX PURS ET REACTIFS POUR LA SCIENCE DES MATERIAUX"]
["NA.24","N691","ETALONS DE CALIBRATION, STANDARDS ET PRODUITS DE REFERENCE"]
["NA.25","N692","PRODUITS BIOCHIMIQUES COURANTS (TAMPONS, BSA, etc.)"]
["NA.26","N693","BIOLOGIE : PEPTIDES ET ACIDES AMINES"]
["NA.27","N694","BIOLOGIE : PROTEINES RECOMBINANTES (A FACON)"]
["NA.28","N695","BIOLOGIE : PRODUITS CHIMIQUES A USAGE BIOCHIMIQUE OU BIOLOGIQUE"]
["NA.3",null,"BIOLOGIE : PRODUITS DE MARQUAGE ET DE DETECTION DES (BIO)MOLECULES"]
["NA.31","N696","REACTIFS ET KITS POUR LE MARQUAGE ET LA DETECTION DES ACIDES NUCLEIQUES"]
["NA.32","N697","REACTIFS ET KITS POUR LE MARQUAGE ET LA DETECTION DES PROTEINES"]
["NA.4",null,"BIOLOGIE : ANTICORPS ET REACTIFS D'IMMUNOHISTOLOGIE ET D'HISTOCHIMIE"]
["NA.41","N698","ANTICORPS PRIMAIRES NON COUPLES (HORS ANTICORPS CONTROLES ET ANTI-TAG)"]
["NA.42","N699","ANTICORPS PRIMAIRES NON COUPLES CONTROLES"]
["NA.43","N700","ANTICORPS PRIMAIRES NON COUPLES ANTI-TAG"]
["NA.44","N701","ANTICORPS PRIMAIRES COUPLES MARQUEURS DE CELLULES"]
["NA.45","N702","AUTRES ANTICORPS PRIMAIRES COUPLES"]
["NA.46","N703","ANTICORPS SECONDAIRES"]
["NA.47","N704","REACTIFS D'IMMUNOHISTOLOGIE ET D'HISTOCHIMIE"]
["NA.5",null,"BIOLOGIE : ISOLEMENT, PURIFICATION ET SYNTHESE DES BIOMOLECULES"]
["NA.51","N705","OLIGONUCLEOTIDES DE SYNTHESE ET ACIDES NUCLEIQUES"]
["NA.52","N706","KITS ET REACTIFS POUR L'ISOLEMENT ET LA PURIFICATION DES ACIDES NUCLEIQUES"]
["NA.53","N707","ENZYMES DE RESTRICTION"]
["NA.54","N708","ENZYMES DE MODIFICATION ET DE CLONAGE (Nucléases, Kinases, Phosphatases)"]
["NA.55","N709","ENZYMES ET KITS DE SYNTHESE DES ACIDES NUCLEIQUES (PCR…)"]
["NA.56","N710","KITS ET REACTIFS POUR L'ISOLEMENT ET LA PURIFICATION DES PROTEINES"]
["NA.6",null,"BIOLOGIE : AUTRES PRODUITS POUR LA BIOLOGIE"]
["NA.61","N711","AUTRES PRODUITS D'ORIGINE BIOLOGIQUE (SANG,…)"]
["NA.62","N712","BIOPUCES (MICROARRAYS)"]
["NA.7",null,"BIOLOGIE : PRODUITS POUR CULTURE CELLULAIRE ET MICROBIOLOGIE"]
["NA.71","N713","SERUMS ET AUTRES MILIEUX POUR CULTURE DE CELLULES ANIMALES"]
["NA.72","N714","MILIEUX POUR CULTURE DE CELLULES VEGETALES"]
["NA.73","N715","MILIEUX POUR CULTURE DE PETITS ORGANISMES VIVANTS"]
["NA.74","N716","MILIEUX DE BACTERIOLOGIE ET ADDITIFS"]
["NA.75","N717","AUTRES MILIEUX DE CULTURE ET ADDITIFS"]
["NA.76","N718","ANTIBIOTIQUES POUR CULTURE CELLULAIRE"]
["NA.77","N719","CYTOKINES, FACTEURS DE CROISSANCE ET INHIBITEURS"]
["NA.78","N720","ENZYMES POUR CULTURE CELLULAIRE"]
["NA.79","N721","AUTRES PRODUITS POUR CULTURE CELLULAIRE"]
["NA.8",null,"BIOLOGIE : PRODUITS POUR LA BIOLOGIE CELLULAIRE ET MICROBIOLOGIE"]
["NA.81","N722","CELLULES, VIRUS ET PETITS ORGANISMES HORS ANIMAUX"]
["NA.82","N723","KITS D'ISOLEMENT ET DE DETECTION DES CELLULES, VIRUS ET ORGANITES"]
["NA.83","N724","BIOLOGIE CELLULAIRE : PRODUITS ET REACTIFS BIOCHIMIQUES (DE DOSAGE…)"]
["NA.84","N725","BIOLOGIE CELLULAIRE : KITS DE DOSAGE, D'ESSAI FONCTIONNEL - KITS BIOCHIMIQUES"]
["NA.85","N726","MICROBIOLOGIE : REACTIFS ET KITS BIOCHIMIQUES"]
["NB",null,"CHIMIE ET BIOLOGIE : CONSOMMABLES ET MATERIEL COURANTS DE LABORATOIRE"]
["NB.0",null,"CHIMIE ET BIOLOGIE : PRELEVEMENT ET DISTRIBUTION DE LIQUIDES (MATERIEL ET CONSOMMABLES)"]
["NB.01","N727","MICROPIPETTES MONO-CANAL, MULTI-CANAUX ET ACCESSOIRES"]
["NB.02","N728","POINTES (CONES) POUR MICROPIPETTES MONO-CANAL ET MULTI-CANAUX"]
["NB.03","N729","SERINGUES EN PLASTIQUE ET AIGUILLES"]
["NB.04","N730","PIPETTES A USAGE UNIQUE"]
["NB.05","N731","PIPETTES REUTILISABLES"]
["NB.1",null,"CHIMIE ET BIOLOGIE : CONSOMMABLES EN PLASTIQUE ET VERRE ET ACCESSOIRES"]
["NB.11","N732","MICROTUBES, CRYOTUBES, TUBES A USAGE UNIQUE"]
["NB.12","N733","PORTOIRS ET BOITES DE STOCKAGE POUR MICROTUBES"]
["NB.13","N734","CULTURE CELLULAIRE EUCARYOTE : CONSOMMABLES EN PLASTIQUE SPECIFIQUES"]
["NB.14","N735","BACTERIOLOGIE : CONSOMMABLES EN PLASTIQUE SPECIFIQUES"]
["NB.15","N736","MICROPLAQUES (PCR, HTS, ELISA…) HORS CULTURE CELLULAIRE ET FILTRATION"]
["NB.16","N737","LAMES ET LAMELLES EN VERRE ET PLASTIQUE"]
["NB.17","N738","AUTRES CONSOMMABLES EN PLASTIQUE ET EN VERRE HORS CULTURE CELL. ET BACTERIO"]
["NB.2",null,"CHIMIE ET BIOLOGIE : CONSOMMABLES POUR LA SEPARATION ET LE TRANSFERT DES MOLECULES"]
["NB.21","N739","CONSOMMABLES DE CHROMATOGRAPHIE ET D'EXTRACTION NON DEDIES AUX INSTRUMENTS"]
["NB.22","N740","ELECTROPHORESE SUR GEL : CONSOMMABLES NON DEDIES AUX INSTRUMENTS"]
["NB.23","N741","MEMBRANES ET KITS POUR LE TRANSFERT D'ACIDES NUCLEIQUES ET DES PROTEINES (BLOT)"]
["NB.24","N742","CONSOMMABLES POUR FILTRATION ET DIALYSE"]
["NB.3",null,"CHIMIE ET BIOLOGIE : AUTRES CONSOMMABLES (HORS PLASTIQUES ET VERRES)"]
["NB.31","N743","FILMS AUTORADIOGRAPHIQUES ET PHOTOGRAPHIQUES ET REACTIFS"]
["NB.32","N744","HUILE A IMMERSION POUR MICROSCOPIE"]
["NB.33","N745","CONSOMMABLES LAMPES ET AMPOULES DIVERSES (HORS MICROSCOPIE ET SPECTRO)"]
["NB.34","N746","PRODUITS DE LAVAGE, DESINFECTION, STERILISATION"]
["NB.35","N747","AUTRES CONSOMMABLES DE LABO HORS PLASTIQUE ET VERRE"]
["NB.4",null,"CHIMIE ET BIOLOGIE : VERRERIE ET ASSIMILEE"]
["NB.41","N748","ROTORS RMN, TUBES RMN ET BOUCHONS ASSOCIES"]
["NB.42","N749","VERRERIE SOUFFLEE (A FACON)"]
["NB.43","N750","VAISSELLE DE LABORATOIRE REUTILISABLE EN VERRE, PLASTIQUE, PORCELAINE"]
["NB.44","N751","CUVETTES EN VERRE ET QUARTZ POUR SPECTROMETRES"]
["NB.45","N752","RECIPIENTS, CREUSETS EN MATERIAUX SPECIAUX (HORS CIBLES)"]
["NB.5",null,"CHIMIE ET BIOLOGIE : MATERIEL DE PAILLASSE NON ELECTRIQUE COURANT"]
["NB.51","N753","PETIT MATERIEL DE PAILLASSE NON ELECTRIQUE COURANT"]
["NB.6",null,"CHIMIE ET BIOLOGIE : MATERIEL D'ELECTROCHIMIE ET ACCESSOIRES"]
["NB.61","N754","ELECTROCHIMIE DE PAILLASSE : MATERIEL ET CONSOMMABLES"]
["NB.62","N755","ELECTROCHIMIE : POTENTIOSTATS / GALVANOSTATS ET ACCESSOIRES"]
["NB.7",null,"CHIMIE ET BIOLOGIE : MATERIEL DE PAILLASSE ELECTRIQUES COURANTS"]
["NB.71","N756","BALANCES, MATERIEL DE PESEE DE PAILLASSE ET ACCESSOIRES"]
["NB.72","N757","AGITATEURS MAGNETIQUES CHAUFFANTS OU NON"]
["NB.73","N758","AGITATEURS, MELANGEURS ET ACCESSOIRES"]
["NB.74","N759","BROYAGE, FRACTIONNEMENT, TAMISAGE : MATERIEL ET ACCESSOIRES"]
["NB.75","N760","POMPES (HORS VIDE VA.01) (POMPES OSMOTIQUES…)"]
["NB.76","N761","CHAUFFAGE : FOURS SIMPLES, BRULEURS, PLAQUES, CHAUFFE-BALLONS,…"]
["NB.77","N762","THERMOSTATISATION ET SECHAGE : ETUVES, ENCEINTES, BAINS, DESSICATEURS…"]
["NB.78","N763","MICROCENTRIFUGATION : MICROCENTRIFUGEUSES ET CYTOCENTRIFUGEUSES"]
["NB.79","N764","CHIMIE ET BIOLOGIE : AUTRE MATERIEL ELECTRIQUE DE PAILLASSE COURANT"]
["NB.8",null,"CHIMIE ET BIOLOGIE : GROS MATERIEL COURANT DE LABORATOIRE"]
["NB.81","N765","CENTRIFUGATION : CENTRIFUGEUSES ET ULTRACENTRIFUGEUSES"]
["NB.82","N766","CENTRIFUGATION : ACCESSOIRES (ROTORS, GODETS…)"]
["NB.83","N767","INCUBATION : INCUBATEURS, INCUBATEURS A CO2 ET ACCESSOIRES"]
["NB.84","N768","FROID : BANQUES DE SANG, CONGELATEURS, REFRIGERATEURS,…"]
["NB.85","N769","PURIFICATION DES SOLVANTS, ACIDES ET BASES : MATERIEL ET ACCESSOIRES"]
["NB.86","N770","LAVAGE : MATERIEL ET ACCESSOIRES"]
["NB.87","N771","STERILISATION ET DESINFECTION : STERILISATEURS ET ACCESSOIRES"]
["NC",null,"CHIMIE ET BIOLOGIE : INSTRUMENTS SPECIFIQUES ET CONSOMMABLES DEDIES"]
["NC.0",null,"CHIMIE ET BIOLOGIE : INSTRUMENTS POUR L'EXTRACTION/SEPARATION/PURIFICATION DES MOLECULES"]
["NC.01","N772","ELECTROPHORESE SUR GEL ET TRANSFERT : PETIT MATERIEL ET ACCESSOIRES DEDIES"]
["NC.02","N773","PURIFICATION DES BIOMOLECULES : AUTOMATES ET ACCESSOIRES DEDIES"]
["NC.03","N774","PURIFICATION DES BIOMOLECULES : CONSOMMABLES DEDIES AUX AUTOMATES"]
["NC.04","N775","EXTRACTION ET SEPARATION DES MOLECULES : EQUIPEMENT DE FLASH CHROMATOGRAPHIE"]
["NC.05","N776","EXTRACTION ET SEPARATION DES MOLECULES : CONSOMMABLES POUR FLASH CHROMATOGRAPHIE"]
["NC.06","N777","SEPARATION DES MOLECULES : AUTRES EQUIPEMENTS (SFC, CPC, EXTRACTEURS…)"]
["NC.07","N778","SEPARATION DES MOLECULES : CONSOMMABLES DEDIES AUX AUTRES EQUIPEMENTS"]
["NC.1",null,"BIOLOGIE MOLECULAIRE : MATERIEL DE DETECTION (SCANNERS, COMPTEURS, SEQUENCEURS…)"]
["NC.11","N779","BIOMOL : IMAGEURS POUR GELS ET MEMBRANES ET ACCESSOIRES"]
["NC.12","N780","BIOMOL : COMPTEURS DE RADIOACTIVITE (SIMPLE OU MULTI DETECTION)"]
["NC.13","N781","BIOMOL : SCANNERS (LECTEURS OPTIQUES) DE BIOPUCES"]
["NC.14","N782","BIOMOL : SCANNERS / IMAGEURS MULTIFONCTIONS (IN VITRO, IN VIVO, GELS,…)"]
["NC.15","N783","BIOMOL : AUTOMATES D'HYBRIDATION IN SITU ET ACCESSOIRES"]
["NC.16","N784","BIOMOL : SEQUENCEURS, ANALYSEURS GENETIQUES ET ACCESSOIRES"]
["NC.17","N785","BIOMOL : SEQUENCEURS HAUT DEBIT"]
["NC.2",null,"CHIMIE ET BIOLOGIE : EQUIPEMENTS POUR LA SYNTHESE DES MOLECULES"]
["NC.21","N786","BIOLOGIE MOLECULAIRE : THERMOCYCLEURS POUR PCR CONVENTIONELLE ET ACCESSOIRES"]
["NC.22","N787","BIOLOGIE MOLECULAIRE : THERMOCYCLEURS POUR PCR QUANTITATIVE ET ACCESSOIRES"]
["NC.23","N788","BIOLOGIE : AUTOMATES POUR LA SYNTHESE DES OLIGONUCLEOTIDES ET ACCESSOIRES"]
["NC.24","N789","BIOLOGIE : AUTOMATES POUR LA SYNTHESE DES PEPTIDES ET ACCESSOIRES"]
["NC.25","N790","CHIMIE : APPAREILS ET REACTEURS POUR LA CHIMIE ORGANIQUE"]
["NC.3",null,"CHIMIE ET BIOLOGIE : AUTRES AUTOMATES"]
["NC.31","N791","BIOLOGIE : STATION D'HYBRIDATION DE BIOPUCES (MICROARRAYS)"]
["NC.32","N792","CHIMIE ET BIOLOGIE : STATIONS DE PIPETAGE AUTOMATISEES"]
["NC.33","N793","CHIMIE ET BIOLOGIE : POINTES (CONES) POUR ROBOTS DE PIPETAGE"]
["NC.34","N794","CHIMIE ET BIOLOGIE : AUTOMATES DE SCREENING HAUT DEBIT"]
["NC.35","N795","CHIMIE ET BIOLOGIE : AUTOMATES D'ELECTROPHYSIOLOGIE"]
["NC.4",null,"CULTURE CELLULAIRE : INSTRUMENTS, ACCESSOIRES ET CONSOMMABLES DEDIES AUX INSTRUMENTS"]
["NC.41","N796","CULTURE CELLULAIRE : FERMENTEURS ET BIOREACTEURS"]
["NC.5",null,"BIOLOGIE CELLULAIRE : INSTRUMENTS, ACCESSOIRES ET CONSOMMABLES DEDIES AUX INSTRUMENTS"]
["NC.51","N797","MATERIEL DE MICROMANIPULATION DES CELLULES, ACCESSOIRES ET CONSOMMABLES DEDIES"]
["NC.52","N798","BIOLOGIE CELLULAIRE : MATERIEL DE DETECTION INTRACELLULAIRE"]
["NC.53","N799","DETECTION INTRACELLULAIRE : CONSOMMABLES DEDIES AUX INSTRUMENTS"]
["NC.54","N800","CYTOMETRIE EN FLUX ET TRI CELLULAIRE : MATERIEL ET ACCESSOIRES"]
["NC.55","N801","CYTOMETRIE EN FLUX ET TRI CELLULAIRE : CONSOMMABLES DEDIES AUX INSTRUMENTS"]
["NC.56","N802","COMPTAGE CELLULAIRE : MATERIEL ET ACCESSOIRES"]
["NC.57","N803","COMPTAGE CELLULAIRE : CONSOMMABLES DEDIES AUX INSTRUMENTS"]
["NC.58","N804","ELECTROPHYSIOLOGIE CONVENTIONNELLE (PATCH CLAMP) : MATERIEL ET ACCESSOIRES"]
["NC.59","N805","ELECTROPHYSIOLOGIE CONVENTIONNELLE : CONSOMMABLES DEDIES AUX INSTRUMENTS"]
["NC.6",null,"GENIE CHIMIQUE : EQUIPEMENTS ET ACCESSOIRES"]
["NC.61","N806","GENIE CHIMIQUE : REACTEURS"]
["NC.62","N807","GENIE CHIMIQUE : EQUIPEMENTS DE PURIFICATION"]
["NC.63","N808","GENIE CHIMIQUE : AUTRES EQUIPEMENTS"]
["NC.64","N809","GENIE CHIMIQUE : ACCESSOIRES ET CONSOMMABLES"]
["NC.7",null,"CHIMIE : EQUIPEMENTS D'ANALYSE CHIMIQUE (HORS CHROMATOGAPHIE ET SPECTROMETRIE)"]
["NC.71","N810","CHIMIE : APPAREILS D'ANALYSE ELEMENTAIRE (CHNS-O, AOX, TN, TS,... )"]
["NC.72","N811","CHIMIE : ANALYSEURS DE MERCURE"]
["NC.73","N812","CHIMIE : APPAREILS DE SPECIATION (DU MERCURE,…)"]
["NC.74","N813","CHIMIE : ANALYSEURS DES SELS NUTRITIFS (SILICATE, PHOSPHATE, NITRATE,...)"]
["NC.75","N814","CHIMIE : AUTRES INSTRUMENTS D'ANALYSE DE L'EAU"]
["NC.76","N815","CHIMIE : AUTRES INSTRUMENTS D'ANALYSE DE L'ENVIRONNEMENT"]
["NC.8",null,"CHIMIE : EQUIPEMENTS DE TESTS PHARMACEUTIQUES"]
["NC.81","N816","CHIMIE ET PHYSICO-CHIMIE : EQUIPEMENTS DE TESTS PHARMACEUTIQUES"]
["ND",null,"CHIMIE ET BIOLOGIE : REPARATION - MAINTENANCE - VERIFICATION DES EQUIPEMENTS"]
["ND.0",null,"MATERIEL COURANT DE PAILLASSE : MAINTENANCE - VERIFICATION - REPARATION"]
["ND.01","N817","MICROPIPETTES MONO ET MULTICANALES : MAINTENANCE - VERIFICATION - REPARATION"]
["ND.02","N818","VERRERIE SOUFFLEE : REPARATION"]
["ND.03","N819","BALANCES POUR LA CHIMIE ET BIOLOGIE : MAINTENANCE - REPARATION - VERIFICATION "]
["ND.04","N820","CENTRIFUGEUSES : MAINTENANCE - REPARATION - VERIFICATION"]
["ND.05","N821","AUTRE MATERIEL DE PAILLASSE COURANT : MAINTENANCE - VERIFICATION - REPARATION"]
["ND.1",null,"GROS MATERIEL COURANT DE LABORATOIRE : MAINTENANCE - ETALONNAGE - REPARATION"]
["ND.11","N822","CHAMBRES ET AUTRES MACHINES THERMIQUES : MAINTENANCE - REPARATION"]
["ND.12","N823","INCUBATEURS ET INCUBATEURS A CO2 : MAINTENANCE - REPARATION"]
["ND.13","N824","STERILISATEURS : MAINTENANCE - REPARATION - CONTRÔLE"]
["ND.14","N825","AUTRE MATERIEL COURANT DE LABO : REPARATION – MAINTENANCE - CALIBRATION"]
["ND.2",null,"EQUIPEMENTS DE SEPARATION/PURIFICATION DES MOLECULES : MAINTENANCE - ETALONNAGE - REPARATION"]
["ND.21","N826","MATERIEL DE SEPARATION/PURIFICATION DES MOLECULES : MAINTENANCE - REPARATION"]
["ND.3",null,"EQUIPEMENTS DE DETECTION DES MOLECULES : MAINTENANCE - ETALONNAGE - REPARATION"]
["ND.31","N827","MATERIEL DE DETECTION POUR LA BIO. MOL. : MAINTENANCE REPARATION"]
["ND.32","N828","SEQUENCEURS ET ANALYSEURS GENETIQUES : MAINTENANCE - REPARATION"]
["ND.4",null,"EQUIPEMENTS POUR LA SYNTHESE DES BIOMOLECULES : MAINTENANCE - ETALONNAGE - REPARATION"]
["ND.41","N829","THERMOCYCLEURS ET AUTOMATES DE SYNTHESE : MAINTENANCE - REPARATION"]
["ND.5",null,"AUTRES EQUIPEMENTS POUR LA CHIMIE ET LA BIOLOGIE : MAINTENANCE - ETALONNAGE - REPARATION"]
["ND.51","N830","AUTRES ROBOTS ET AUTOMATES : MAINTENANCE - REPARATION"]
["ND.52","N831","CYTOMETRIE, COMPTAGE ET TRI CELLULAIRE : MAINTENANCE - REPARATION"]
["ND.53","N832","AUTRES EQUIPEMENTS DE BIOLOGIE CELLULAIRE : MAINTENANCE - REPARATION"]
["ND.54","N833","EQUIPEMENTS DE GENIE CHIMIQUE : REPARATION ET MAINTENANCE"]
["ND.55","N834","AUTRE MATERIEL SPECIFIQ. DE CHIMIE ET PHYSICO-CHIMIE : MAINTENANCE, REPARATION"]
["NE",null,"CHIMIE ET BIOLOGIE : SERVICES"]
["NE.0",null,"BIOLOGIE : SERVICES D'ANALYSE GENETIQUE"]
["NE.01","N835","BIOLOGIE : SERVICES DE SEQUENCAGE BAS DEBIT ET SERVICES CONNEXES"]
["NE.02","N836","BIOLOGIE : SERVICES DE SEQUENCAGE HAUT DEBIT ET SERVICES CONNEXES"]
["NE.03","N837","BIOLOGIE : SERVICES DE GENOTYPAGE ET SERVICES CONNEXES"]
["NE.04","N838","BIOLOGIE : AUTRES SERVICES D'ANALYSE GENETIQUE"]
["NE.1",null,"BIOLOGIE CELLULAIRE : SERVICES SPECIALISES"]
["NE.11","N839","BIOLOGIE CELLULAIRE : SERVICES DE CYTOMETRIE EN FLUX ET DE TRI CELLULAIRE"]
["NE.12","N840","BIOLOGIE CELLULAIRE : AUTRES SERVICES"]
["NE.2",null,"CHIMIE ET BIOLOGIE : AUTRES SERVICES (HORS ANALYSES EN MICROSCOPIE ET SPECTROMETRIE)"]
["NE.21","N841","BIOLOGIE ET CHIMIE : SERVICES D'ANALYSES PAR CHROMATOGRAPHIE (HPLC…)"]
["NE.22","N842","BIOLOGIE : AUTRES SERVICES D'ANALYSES BIOLOGIQUES ET BIOCHIMIQUES"]
["NE.23","N843","CHIMIE : AUTRES SERVICES D'ANALYSE CHIMIQUE"]
["NE.24","N844","GENIE CHIMIQUE : SERVICES D'ETUDES DE PROCEDES"]
["NE.25","N845","CHIMIE ET BIOLOGIE : AUTRES SERVICES"]
["O",null,"OPTO - LASERS - MATERIEL D'OPTIQUE"]
["OA",null,"OPTO : COMPOSANTS OPTIQUES - LASERS ET MATERIEL DE METROLOGIE OPTIQUE"]
["OA.0",null,"OPTO : COMPOSANTS OPTIQUES"]
["OA.01","N846","OPTO : LENTILLES ET SYSTEMES DE LENTILLES"]
["OA.02","N847","OPTO : MIROIRS"]
["OA.03","N848","OPTO : RESEAUX (DIFFRACTION, COMPRESSION,…)"]
["OA.04","N849","OPTO : LAMES, FENETRES ET CRISTAUX OPTIQUES"]
["OA.05","N850","OPTO : FILTRES OPTIQUES, POLARISATEURS, CUBES ET PRISMES"]
["OA.06","N851","OPTO : FIBRES OPTIQUES"]
["OA.07","N852","OPTO : AUTRES COMPOSANTS OPTIQUES PASSIFS"]
["OA.08","N853","OPTO : MASQUES ET MATERIEL CORONOGRAPHIQUE"]
["OA.1",null,"OPTO : CAMERAS, DETECTEURS ET AUTRES COMPOSANTS D'OPTIQUE ACTIFS"]
["OA.11","N854","OPTO : CAMERAS UV-VISIBLE"]
["OA.12","N855","OPTO : CAMERAS INFRA-ROUGE"]
["OA.13","N856","OPTO : CAMERAS A RAYONS X"]
["OA.14","N857","OPTO : OPTIQUE POUR CAMERAS"]
["OA.15","N858","OPTO : DETECTEURS ET AUTRE MATERIEL D'OPTOELECTRONIQUE (HORS CAMERAS)"]
["OA.2",null,"OPTO : MATERIEL DE MICROPOSITIONNEMENT ET D'OPTOMECANIQUE"]
["OA.21","N859","OPTO : MICROPOSITIONNEMENT ET OPTOMECANIQUE"]
["OA.22","N860","OPTO : BANCS, TABLES OPTIQUES, ET ACCESSOIRES"]
["OA.23","R489","OPTOMECANIQUE DE PRECISION"]
["OA.24","R490","MONTURES D'OPTIQUES FIXES ET DYNAMIQUES "]
["OA.25","R491","QUINCAILLERIE DE QUALITE OPTIQUE"]
["OA.3",null,"OPTOELECTRONIQUE : EMETTEURS (LASERS, LAMPES FLASH…)"]
["OA.31","N861","OPTO : LASERS A GAZ"]
["OA.32","N862","OPTO : LASERS A SOLIDE"]
["OA.33","N863","OPTO : LASERS A SEMI-CONDUCTEURS (DIODES LASERS)"]
["OA.34","N864","OPTO : LASERS A VAPEUR METALLIQUE"]
["OA.35","N865","OPTO : LASERS A FIBRE"]
["OA.36","N866","OPTO : LASERS A COLORANTS ORGANIQUES (DYE LASERS)"]
["OA.37","N867","OPTO : AUTRES TYPES DE LASERS (CHIMIQUES,…)"]
["OA.38","N868","OPTO : LAMPES ET AUTRES SOURCES LUMINEUSES (LAMPES FLASH OU CONTINUE...)"]
["OA.39","N869","OPTO : ACCESSOIRES ET CONSOMMABLES (COLORANTS,…) POUR LASERS"]
["OA.4",null,"OPTO : OUTILLAGE ET INSTRUMENTS OPTIQUES"]
["OA.41","N870","OPTO : OUTILLAGE POUR L'OPTIQUE"]
["OA.42","N871","OPTO : INSTRUMENTS DE METROLOGIE DES FAISCEAUX LASERS"]
["OA.43","N872","OPTO : PYROMETRES OPTIQUES"]
["OA.44","N873","OPTO : AUTRES INSTRUMENTS DE METROLOGIE OPTIQUE (REFLECTOMETRES,…)"]
["OA.45","N874","OPTO : TELESCOPES, LUNETTES ASTRONOMIQUES, JUMELLES ET ACCESSOIRES"]
["OA.5",null,"OPTO : SYSTEMES OPTIQUES ET OPTO-ELECTRONIQUES"]
["OA.51","R404","SYSTEMES OPTIQUES OU OPTO ELECTRONIQUES COMPLEXES"]
["OB",null,"OPTO : REPARATION - VERIFICATION - MAINTENANCE"]
["OB.1",null,"OPTO : REPARATION ET MAINTENANCE DES EQUIPEMENTS D'OPTIQUE"]
["OB.11","N875","OPTO : REPARATION VERIFICATION MAINTENANCE DES LASERS"]
["OB.12","N876","OPTO : REPARATION VERIFICATION MAINTENANCE DES CAMERAS"]
["OB.13","N877","OPTO : REPARATION VERIFICATION MAINTENANCE DES AUTRES EQUIPEMENTS D'OPTIQUE"]
["OC",null,"OPTO : SERVICES SPECIALISES"]
["OC.0",null,"OPTO : SERVICES SPECIALISES"]
["OC.01","N878","OPTO : SERVICES D'USINAGE DES COMPOSANTS OPTIQUES (POLISSAGE,...)"]
["OC.02","N879","OPTO : SERVICES DE TRAITEMENT DE SURFACE DES COMPOSANTS OPTIQUES"]
["OC.03","N880","OPTO : SERVICES DE CONTROLE DES COMPOSANTS OPTIQUES"]
["OC.04","N881","OPTO : SERVICES D'ETUDES ET CONCEPTION EN OPTIQUE"]
["OC.05","N882","OPTO : SERVICES DE TESTS EN OPTIQUE"]
["P",null,"PHYSIQUE - PHYSIQUE NUCLEAIRE ET CORPUSCULAIRE"]
["PA",null,"RAYONNEMENTS NUCLEAIRES ET CORPUSCULAIRES"]
["PA.0",null,"RADIOACTIVITE : SOURCES ET MESURES"]
["PA.01","N883","RADIOACTIVITE : SOURCES RADIOACTIVES"]
["PA.02","N884","RADIOACTIVITE : INSTRUMENTS DE MESURE (HORS DETECTION EN BIOLOGIE)"]
["PA.1",null,"PRODUCTION DE PARTICULES : EQUIPEMENTS ET ACCESSOIRES"]
["PA.11","N885","PRODUCTION DE PARTICULES : CANONS A ELECTRONS ET CANONS A IONS"]
["PA.12","N886","PRODUCTION DE PARTICULES : ACCESSOIRES ET PIECES DETACHEES DE CANONS"]
["PA.2",null,"ACCELERATION ET CONVERGENCE DES PARTICULES : EQUIPEMENTS ET ACCESSOIRES"]
["PA.21","N887","MATERIEL POUR L'ACCELERATION DES PARTICULES"]
["PA.22","N888","MATERIEL POUR LA CONVERGENCE DES FAISCEAUX DE PARTICULES"]
["PA.23","N889","MATERIEL DE MESURES DE L'ACCELERATION DES PARTICULES"]
["PB",null,"PHYSIQUE : AUTRES MATERIELS DE MESURES PHYSIQUES ET INDUSTRIELS"]
["PB.0",null,"PHYSIQUE : APPAREILS DE CARACTERISATION DES MATERIAUX ET DES PARTICULES"]
["PB.01","N890","INSTRUMENTS DE CALORIMETRIE, ANALYSE THERMIQUE ET THERMOMECANIQUE"]
["PB.02","N891","INSTRUMENTS DE METROLOGIE MECANIQUE DU SOLIDE (RHEOLOGIE,…) ET ACCESSOIRES"]
["PB.03","N892","INSTRUMENTS DE CARACTERISATION MECANIQUE DES SURFACES ET ACCESSOIRES"]
["PB.04","N893","GRANULOMETRES LASERS ET ACCESSOIRES"]
["PB.05","N894","ZETAMETRES ET ACCESSOIRES"]
["PB.06","N895","AUTRES APPAREILS D'ANALYSE DES PARTICULES SOLIDES ET ACCESSOIRES"]
["PB.07","N896","AUTRES INSTRUMENTS POUR LA CARACTERISATION DES SOLIDES  ET ACCESSOIRES"]
["PB.1",null,"PHYSIQUE : APPAREILS DE MESURES PHYSIQUES COURANTES"]
["PB.11","N897","APPAREILS DE MESURE / CAPTEURS DE PRESSION"]
["PB.12","N898","APPAREILS DE MESURE / CAPTEURS DE TEMPERATURE (HORS CRYOGENIE)"]
["PB.13","N899","APPAREILS DE MESURE / CAPTEURS DE VITESSE / DEBIT"]
["PB.2",null,"PHYSIQUE : SYSTEMES ET INSTRUMENTATION MAGNETIQUE"]
["PB.21","N900","SYSTEMES MAGNETIQUES (AIMANTS PERMANENTS,…)"]
["PB.22","N901","INSTRUMENTATION MAGNETIQUE"]
["PB.23","N902","SYSTEMES CRYOMAGNETIQUES (HORS RMN)"]
["PB.24","N903","SYSTEMES DE MESURES CRYOGENIQUES"]
["PB.25","N904","MATERIAUX SUPRACONDUCTEURS"]
["PB.3",null,"MESURES PHYSIQUES : AUTRES APPAREILS DE MESURES PHYSIQUES SPECIFIQUES"]
["PB.31","N905","SYSTEMES DE MESURE A SONDE DE LANGMUIR"]
["PB.32","N906","BALANCES SPECIFIQUES (BALANCES D'ADSORPTION,…)"]
["PB.33","N907","APPAREILS DE MESURE DE LA CHARGE ELECTRIQUE (ELECTROMETRES,…)"]
["PB.34","N908","APPAREILS DE MESURES ACOUSTIQUES"]
["PB.35","N909","APPAREILS DE MESURES PHYSIQUES MULTIPLES"]
["PB.36","N910","APPAREILS POUR AUTRES MESURES PHYSIQUES"]
["PB.4",null,"PHYSIQUE : AUTRES APPAREILS SPECIAUX"]
["PB.41","N911","PHYSICO-CHIMIE : FOURS SPECIAUX HORS TECHNIQUES SOUS VIDE"]
["PB.42","N912","MATERIEL DE CRISTALLOGENESE"]
["PB.43","N913","TREMPE SUR ROUE (MELT SPINNER)"]
["PB.44","N914","PHYSIQUE : AUTRES APPAREILS SPECIAUX"]
["PB.5",null,"PHYSIQUE : MATERIELS INDUSTRIELS"]
["PB.51","R405","GROUPES FRIGORIFIQUES"]
["PC",null,"PHYSIQUE NUCLEAIRE ET CORPUSCULAIRE ET AUTRES MESURES PHYSIQUES : REPARATION ET MAINTENANCE DES EQUIPEMENTS"]
["PC.0",null,"PHYSIQUE NUCLEAIRE ET CORPUSCULAIRE : REPARATION ET MAINTENANCE DES EQUIPEMENTS"]
["PC.01","N915","REPARATION ET MAINTENANCE DES EQUIPEMENTS DE MESURE DE LA RADIOACTIVITE"]
["PC.02","N916","PRODUCTION ET ACCELERATION DES PARTICULES : REPARATION ET MAINTENANCE"]
["PC.1",null,"PHYSIQUE : REPARATION ET MAINTENANCE DES APPAREILS DE CARACTERISATION DES MATERIAUX"]
["PC.11","N917","REPARATION ET MAINTENANCE DES APPAREILS DE CARACTERISATION DES MATERIAUX"]
["PC.2",null,"PHYSIQUE : REPARATION ET MAINTENANCE DES AUTRES APPAREILS POUR LA PHYSIQUE"]
["PC.21","N918","REPARATION ET MAINTENANCE DES APPAREILS DE MESURES PHYSIQUES COURANTS"]
["PC.22","N919","REPARATION ET MAINTENANCE DES AUTRES APPAREILS DE MESURES PHYSIQUES"]
["PC.23","N920","PHYSIQUE : REPARATION ET MAINTENANCE DES AUTRES APPAREILS SPECIAUX"]
["PC.3",null,"PHYSIQUE : MAINTENANCE DES MATERIELS INDUSTRIELS"]
["PC.31","R406","MAINTENANCE DES GROUPES FRIGORIFIQUES"]
["PD",null,"PHYSIQUE NUCLEAIRE ET CORPUSCULAIRE ET AUTRES MESURES PHYSIQUES : SERVICES SPECIFIQUES (HORS MICROSCOPIE ET SPECTROMETRIE)"]
["PD.0",null,"PHYSIQUE NUCLEAIRE ET CORPUSCULAIRE : SERVICES"]
["PD.01","N921","MESURE DE LA RADIOACTIVITE : SERVICES DE DATATION (AU CARBONE 14…)"]
["PD.02","N922","PHYSIQUE NUCLEAIRE ET CORPUSCULAIRE : AUTRES SERVICES"]
["PD.1",null,"PHYSIQUE : AUTRES SERVICES"]
["PD.11","N923","MESURES PHYSIQUES : SERVICES DE CARACTERISATION DES MATERIAUX"]
["Q",null,"EXPERIMENTATION VEGETALE"]
["QA",null,"EXPERIMENTATION VEGETALE : VEGETAUX ET PRODUITS POUR LEUR CULTURE ET CONSERVATION"]
["QA.0",null,"EXPERIMENTATION VEGETALE : VEGETAUX, CHAMPIGNONS ET SEMENCES"]
["QA.01","N924","EXPERIMENTATION VEGETALE : PLANTES ET PLANTS"]
["QA.02","N925","EXPERIMENTATION VEGETALE : SEMENCES ET TUBERCULES"]
["QA.03","N926","EXPERIMENTATION VEGETALE : CHAMPIGNONS"]
["QA.04","N927","EXPERIMENTATION VEGETALE : VEGETAUX MARINS"]
["QA.05","N928","EXPERIMENTATION VEGETALE : AUTRES VEGETAUX"]
["QA.1",null,"EXPERIMENTATION VEGETALE : PRODUITS POUR LA CULTURE ET LA CROISSANCE DES VEGETAUX"]
["QA.11","N929","SUBSTRATS DE CULTURE D'ORIGINE NATURELLE OU ARTIFICIELLE"]
["QA.12","N930","FERTILISANTS POUR VEGETAUX TYPE ENGRAIS"]
["QA.13","N931","NUTRIMENTS ADDITIONNELS POUR VEGETAUX ET FERTILISANTS DES SOLS "]
["QA.2",null,"EXPERIMENTATION VEGETALE : PRODUITS POUR LA PROTECTION ET LA CONSERVATION DES VEGETAUX"]
["QA.21","N932","PRODUITS PHYTOSANITAIRES CONTRE LES PATHOGENES VEGETAUX ET PLANTES CONCURRENTES"]
["QA.22","N933","PRODUITS PHYTOSANITAIRES CONTRE LES PATHOGENES CRYPTOGAMIQUES "]
["QA.23","N934","PRODUITS PHYTOSANITAIRES INSECTICIDES ET A USAGE REPULSIF"]
["QA.24","N935","AUTRES MOYENS DE PROTECTION OU DE CONSERVATION DES VEGETAUX"]
["QB",null,"EXPERIMENTATION VEGETALE : EQUIPEMENTS, FOURNITURES ET CONSOMMABLES"]
["QB.0",null,"EXPERIMENTATION VEGETALE : PETITES FOURNITURES ET CONSOMMABLES"]
["QB.01","N936","EXPERIMENTATION VEGETALE : PETITES FOURNITURES ET CONSOMMABLES COURANTS"]
["QB.02","N937","EXPERIMENTATION VEGETALE : PETITES FOURNITURES ET CONSOMMABLES POUR SERRES"]
["QB.03","N938","PETITES FOURNITURES HORS SERRES POUR LA PROTECTION DES ESPACES CULTIVES"]
["QB.04","N939","EXPERIMENTATION VEGETALE : AUTRES PETITES FOURNITURES ET CONSOMMABLES"]
["QB.1",null,"EXPERIMENTATION VEGETALE : SERRES ET EQUIPEMENTS DE SERRES"]
["QB.11","N940","EXPERIMENTATION VEGETALE : SERRES"]
["QB.12","N941","MATERIEL ET ACCESSOIRES DESTINES A L'EXPERIMENTATION VEGETALE SOUS SERRE"]
["QB.2",null,"EXPERIMENTATION VEGETALE : MACHINES ET EQUIPEMENTS AGRICOLES DE TRACTION, MANUTENTION ET TRAVAIL DES SOLS"]
["QB.21","N942","ENGINS DE TRACTION AGRICOLE"]
["QB.22","N943","ENGINS TRACTES ET EQUIPEMENTS DE MANUTENTION AGRICOLE"]
["QB.23","N944","EQUIPEMENTS TRACTES ET MACHINES AUTOMOTRICES POUR TRAVAIL DES SOLS"]
["QB.3",null,"EXPERIMENTATION VEGETALE : EQUIPEMENTS AGRICOLES POUR SEMIS, IRRIGATION, FERTILISATION, PROTECTION, RECOLTE ET CONSERVATION DES CULTURES"]
["QB.31","N945","EQUIPEMENTS TRACTES ET MACHINES POUR LES SEMIS ET PLANTATIONS"]
["QB.32","N946","EQUIPEMENTS D'IRRIGATION DES CULTURES"]
["QB.33","N947","EQUIPEMENTS DE MESURES HYDROMETRIQUES ET D'OPTIMISATION DE L'IRRIGATION"]
["QB.34","N948","MATERIEL POUR LA FERTILIS., LA PROTECT. ET L'ENTRET. DES CULTURES"]
["QB.35","N949","MACHINES POUR LA RECOLTE DES FOURRAGES CONSERVES SECS"]
["QB.36","N950","MACHINES POUR LA RECOLTE DES FOURRAGES VERTS DESTINES A L'ENSILAGE"]
["QB.37","N951","MACHINES POUR LA RECOLTE DES CEREALES, DU COLZA ET DES PROTEAGINEUX"]
["QB.38","N952","MACHINES POUR LA RECOLTE DES TUBERCULES"]
["QB.39","N953","EQUIPEMENTS DE STOCKAGE ET DE CONSERVATION DES ALIMENTS CULTIVES"]
["QB.4",null,"EXPERIMENTATION VEGETALE : EQUIPEMENTS ET MATERIEL DES CULTURES SPECIFIQUES"]
["QB.41","N954","EQUIPEMENTS ET MATERIEL SPECIFIQUES POUR LA VITICULTURE EXPERIMENTALE"]
["QB.42","N955","EQUIPEMENTS ET MATERIEL SPECIFIQUES POUR LA SYLVICULTURE ET L'ARBORICULTURE"]
["QB.43","N956","MATERIEL DE COUPE COMMUN A LA VITICULTURE, LA SYLVICULTURE ET L'ARBORICULTURE"]
["QB.5",null,"EXPERIMENTATION VEGETALE : EQUIPEMENTS ET MATERIEL DESTINES A L'EXPERIMENTATION AGRONOMIQUE"]
["QB.51","N957","MATERIEL DESTINE A L'EXPERIMENTATION AGRONOMIQUE"]
["QC",null,"EXPERIMENTATION VEGETALE : REPARATION ET MAINTENANCE DES EQUIPEMENTS"]
["QC.0",null,"EXPERIMENTATION VEGETALE : MAINTENANCE ET REPARATION DES EQUIPEMENTS"]
["QC.01","N958","REPARATION ET MAINTENANCE DU MATERIEL D'EXPERIMENTATION VEGETALE"]
["QD",null,"EXPERIMENTATION VEGETALE : SERVICES SPECIALISES (HORS BIOLOGIE)"]
["QD.0",null,"EXPERIMENTATION VEGETALE : SERVICES SPECIALISES (HORS BIOLOGIE)"]
["QD.01","N959","EXPERIMENTATION VEGETALE : SERVICES D'EXPERTISE DES SOLS"]
["QD.02","N960","SERVICES D'EXPERTISE BOTANIQUE"]
["QD.03","N961","SERVICES D'ENTRETIEN DES SOLS ET DES CULTURES EXPERIMENTALES"]
["QD.04","N962","SERVICES DE RECOLTE ET DE CONDITIONNEMENT DES PRODUITS VEGETAUX"]
["QD.05","N963","AUTRES SERVICES CONNEXES AUX CULTURES EXPERIMENTALES"]
["R",null,"ATELIER - MECANIQUE - AUTOMATIQUE"]
["RA",null,"EQUIPEMENTS, FOURNITURES ET CONSOMMABLES D'ATELIER"]
["RA.0",null,"MATERIAUX ET PIECES EN MATERIAUX"]
["RA.01","N964","METAUX (MATERIAUX A USINER ET PIECES SUR CATALOGUE)"]
["RA.02","N965","METAUX NOBLES (MATERIAUX A USINER ET PIECES SUR CATALOGUE)"]
["RA.03","N966","PLASTIQUES (MATERIAUX A USINER ET PIECES SUR CATALOGUE)"]
["RA.04","N967","CERAMIQUES  (MATERIAUX A USINER ET PIECES SUR CATALOGUE)"]
["RA.05","N968","COMPOSITES  (MATERIAUX ET PIECES SUR CATALOGUE)"]
["RA.06","N969","MATERIAUX ORGANIQUES AUTRES QUE PLASTIQUES  (MATERIAUX ET PIECES SUR CATALOGUE)"]
["RA.1",null,"ATELIER : MACHINES-OUTILS"]
["RA.11","N970","MACHINES-OUTILS A COMMANDE NUMERIQUE"]
["RA.12","N971","ACCESSOIRES POUR MACHINES-OUTILS A COMMANDE NUMERIQUE"]
["RA.13","N972","MACHINES-OUTILS CONVENTIONNELLES"]
["RA.14","N973","ACCESSOIRES POUR MACHINES-OUTILS CONVENTIONNELLES"]
["RA.15","N974","CONSOMMABLES POUR MACHINES-OUTILS (CN ET CONVENTIONNELLES)"]
["RA.16","N975","OUTILLAGE D'ATELIER NON PORTATIF"]
["RA.17","N976","CONSOMMABLES POUR OUTILLAGE D'ATELIER NON PORTATIF"]
["RA.18","R407","MACHINES 3D (IMPRIMANTES et SCANERS 3D,…) ET ACCESSOIRES"]
["RA.19","R408","CONSOMMABLES POUR MACHINES 3D"]
["RA.2",null,"PETIT OUTILLAGE ET CONSOMMABLES D'ATELIER"]
["RA.21","N977","OUTILS ELECTROPORTATIFS ET ACCESSOIRES"]
["RA.22","N978","OUTILS A MAIN NON ELECTROPORTATIFS"]
["RA.23","N979","QUINCAILLERIE - AUTRES FOURNITURES D'ATELIER DIVERSES"]
["RA.3",null,"AMENAGEMENT D'ATELIER"]
["RA.31","N980","MOBILIER D'ATELIER"]
["RA.32","N981","RANGEMENTS D'ATELIER"]
["RA.33","N982","AMENAGEMENTS D'ATELIER"]
["RA.4",null,"AUTRES GROS EQUIPEMENTS MECANIQUES"]
["RA.41","R409","PONT ROULANTS ET CHARIOTS ELEVATEURS (HORS BATIMENTS)"]
["RA.42","R410","AUTRES EQUIPEMENTS MECANIQUES SPECIAUX"]
["RB",null,"AUTOMATIQUE : EQUIPEMENTS DE MAQUETTES DE MISE EN SITUATION OU DE PROTOTYPAGE"]
["RB.0",null,"AUTOMATIQUE : MAQUETTES ET EQUIPEMENTS DE MAQUETTES"]
["RB.01","N983","AUTOMATIQUE : MAQUETTES DE MISE EN SITUATION OU DE PROTOTYPAGE"]
["RB.02","N984","AUTOMATIQUE : ELEMENTS DE SYSTEME ELECTRO-MECANIQUE"]
["RB.03","N985","AUTOMATIQUE : ELEMENTS DE CONTRÔLE COMMANDE"]
["RC",null,"REPARATION ET MAINTENANCE DES EQUIPEMENTS D'ATELIER ET D'AUTOMATIQUE"]
["RC.0",null,"REPARATION ET MAINTENANCE DES MACHINES ET OUTILS D'ATELIERS"]
["RC.01","N986","REPARATION ET MAINTENANCE DES MACHINES ET OUTILS D'ATELIERS"]
["RC.02","R411","REPARATION ET MAINTENANCE DES PONTS ROULANTS ET CHARIOTS ELEVATEURS"]
["RC.03","R412","REPARATION ET MAINTENANCE DES AUTRES GROS MATERIELS D'ATELIER"]
["RC.1",null,"AUTOMATIQUE : REPARATION ET MAINTENANCE DES EQUIPEMENTS"]
["RC.11","N987","AUTOMATIQUE : REPARATION ET MAINTENANCE DES SYSTEMES ELECTRO-MECANIQUES"]
["RC.12","N988","AUTOMATIQUE : REPARATION ET MAINTENANCE DES ELEMENTS DE CONTRÔLE COMMANDE"]
["RC.13","N989","AUTOMATIQUE : REPARATION ET MAINTENANCE DE L'INSTRUMENTATION SPECIFIQUE"]
["RD",null,"MECANIQUE ET AUTOMATIQUE : SERVICES et FOURNITURES A FACON"]
["RD.0",null,"MECANIQUE : SERVICES SPECIALISES ET FOURNITURES A FACON"]
["RD.01","N990","SERVICES D'ETUDES ET DE CONCEPTION DE PIECES MECANIQUES"]
["RD.02","N991","PIECES MECANIQUES USINEES A FACON"]
["RD.03","N992","SERVICES DE TRAITEMENT DE SURFACE ET TRAITEMENT THERMIQUE DE PIECES MECANIQUES"]
["RD.04","N993","SERVICES DE BLINDAGE (ELECTROMAGNETIQUE…)"]
["RD.05","N994","SERVICES DE METROLOGIE ET DE CONTRÔLES EN MECANIQUE"]
["RD.06","N995","SERVICES D'ESSAIS MECANIQUES"]
["RD.07","N996","SERVICES DE TRAITEMENT DE SURFACE DE PIECES DESTINEES AUX EXPERIMENT. SPATIALES"]
["RD.1",null,"AUTOMATIQUE : SERVICES SPECIALISES"]
["RD.11","N997","AUTOMATIQUE : SERVICES D'ETUDE, CONCEPTION, INTEGRATION"]
["RD.2",null,"LOGICIELS POUR LA MECANIQUE : DROITS ET MAINTENANCE"]
["RD.21","N998","DROITS D'UTIL. DE LOGICIELS DE CAO EN MECANIQUE"]
["RD.22","N999","DROITS D'UTIL. DE LOGICIELS DE PROGRAM. DES MACHINES A COMDE NUM."]
["RD.23","R001","DROITS D'UTIL. DE LOGICIELS DE SIMULATION NUMERIQUE"]
["RD.24","R002","DROITS D'UTIL. DES AUTRES LOGICIELS POUR LA MECANIQUE"]
["RD.25","R003","MAINTENANCE DES LOGICIELS POUR LA MECANIQUE"]
["RD.3",null,"LOGICIELS POUR L'AUTOMATIQUE : DROITS ET MAINTENANCE"]
["RD.31","R004","DROITS D'UTIL. DES LOGICIELS POUR L'AUTOMATIQUE"]
["RD.32","R005","MAINTENANCE DES LOGICIELS POUR L'AUTOMATIQUE"]
["S",null,"SPECTROMETRIE - SPECTROSCOPIE - RAYONS X"]
["SA",null,"SPECTROMETRIE RMN ET RPE : EQUIPEMENTS, ACCESSOIRES  ET CONSOMMABLES DEDIES AUX INSTRUMENTS"]
["SA.0",null,"SPECTROMETRIE RMN : EQUIPEMENTS ET CONSOMMABLES DEDIES AUX INSTRUMENTS"]
["SA.01","R006","SPECTROMETRIE RMN : SPECTROMETRES COMPLETS"]
["SA.02","R007","SPECTROMETRIE RMN : CRYOSONDES / TETES DE MESURES"]
["SA.03","R008","SPECTROMETRIE RMN : AIMANTS SUPRACONDUCTEURS"]
["SA.04","R009","SPECTROMETRIE RMN : CONSOLES ELECTRONIQUES"]
["SA.05","R010","SPECTROMETRIE RMN : AUTRE MATERIEL, ACCESSOIRES, PIECES DETACHEES"]
["SA.1",null,"SPECTROMETRIE RPE : EQUIPEMENTS ET CONSOMMABLES DEDIES AUX INSTRUMENTS"]
["SA.11","R011","SPECTROMETRIE RPE : SPECTROMETRES COMPLETS"]
["SA.12","R012","SPECTROMETRIE RPE : AUTRE MATERIEL, ACCESSOIRES, PIECES DETACHEES"]
["SB",null,"SPECTROMETRIE DE MASSE ET TECHNIQUES SEPARATIVES : EQUIPEMENTS, ACCESSOIRES ET CONSOMMABLES DEDIES AUX INSTRUMENTS"]
["SB.0",null,"SPECTROMETRIE DE MASSE DES IONS SECONDAIRES : EQUIPEMENTS ET CONSOMMABLES DEDIES AUX INSTRUMENTS"]
["SB.01","R013","SPECTROMETRIE DE MASSE DES IONS SECONDAIRES : SONDES IONIQUES IMS"]
["SB.02","R014","SPECTROMETRIE DE MASSE DES IONS SECONDAIRES : AUTRE MATERIEL ET PIECES DET."]
["SB.1",null,"SPECTROSCOPIE MASSIQUE DE DECHARGE LUMINESCENTE : EQUIPEMENTS ET CONSOMMABLES DEDIES AUX INSTRUMENTS"]
["SB.11","R015","SPECTROSCOPIE MASSIQUE DE DECHARGE LUMINESCENTE (GDMS) : SPECTROMETRES COMPLETS"]
["SB.12","R016","SPECTROSCOPIE GDMS : AUTRE MATERIEL ET PIECES DETACHEES "]
["SB.2",null,"SPECTROMETRIE DE MASSE POUR LA BIOLOGIE : EQUIPEMENTS ET CONSOMMABLES DEDIES AUX INSTRUMENTS"]
["SB.21","R017","SPECTROMETRES DE MASSE A RESONANCE CYCLOTRONIQUE D'IONS (FT-ICR)"]
["SB.22","R018","SPECTROMETRIE FT-ICR : AUTRE MATERIEL ET CONSOMMABLES DEDIES"]
["SB.23","R019","SPECTROMETRES DE MASSE POUR LA BIOLOGIE"]
["SB.24","R020","SPECTRO DE MASSE POUR LA BIOLOGIE : AUTRE MATERIEL ET CONSOMMABLES DEDIES"]
["SB.3",null,"SPECTROMETRIE DE MASSE POUR AUTRES ANALYSES : EQUIPEMENTS ET CONSOMMABLES DEDIES AUX INSTRUMENTS"]
["SB.31","R021","SPECTROMETRES DE MASSE POUR LA CHIMIE"]
["SB.32","R022","SPECTRO DE MASSE POUR LA CHIMIE : AUTRE MATERIEL ET CONSOMMABLES DEDIES "]
["SB.5",null,"TECHNIQUES SEPARATIVES ANALYTIQUES"]
["SB.51","R023","CHROMATOGRAPHIE LIQUIDE ANALYTIQUE : CHAINES, DETECTEURS, POMPES…"]
["SB.52","R024","CHROMATOGRAPHIE LIQUIDE ANALYTIQUE : COLONNES ET AUTRES CONSOMMABLES DEDIES"]
["SB.53","R025","CHROMATOGRAPHIE GAZEUSE ANALYTIQUE : CHAINES, FOURS, DETECTEURS,…"]
["SB.54","R026","CHROMATOGRAPHIE GAZEUSE ANALYTIQUE : COLONNES ET AUTRES CONSOMMABLES DEDIES"]
["SB.55","R027","MATERIEL D'ELECTROPHORESE CAPILLAIRE : INSTRUMENTS"]
["SB.56","R028","MATERIEL D'ELECTROPHORESE CAPILLAIRE : CONSOMMABLES DEDIES AUX INSTRUMENTS"]
["SC",null,"RAYONS X: EQUIPEMENTS, ACCESSOIRES  ET CONSOMMABLES DEDIES AUX INSTRUMENTS"]
["SC.0",null,"DIFFRACTION ET DIFFUSION DES RAYONS X : INSTRUMENTS ET CONSOMMABLES DEDIES AUX INSTRUMENTS"]
["SC.01","R029","DIFFRACTION X : DIFFRACTOMETRES A RAYONS X COMPLETS"]
["SC.02","R030","DIFFRACTION X : GENERATEURS DE RAYONS X"]
["SC.03","R031","DIFFRACTION X : AUTRE MATERIEL ET CONSOMMABLES DEDIES"]
["SC.04","R032","DIFFUSION DES RAYONS X : SYSTEMES COMPLETS"]
["SC.05","R033","DIFFUSION DES RAYONS X : AUTRE MATERIEL ET CONSOMMABLES DEDIES"]
["SC.1",null,"FLUORESCENCE X : INSTRUMENTS ET CONSOMMABLES DEDIES AUX INSTRUMENTS"]
["SC.11","R034","SPECTROMETRIE DE FLUORESCENCE X (XRF) : SPECTROMETRES COMPLETS"]
["SC.12","R035","SPECTROMETRIE DE FLUORESCENCE X : AUTRE MATERIEL ET CONSOMMABLES DEDIES"]
["SC.2",null,"RAYONS X : AUTRES INSTRUMENTS ET CONSOMMABLES DEDIES"]
["SC.21","R036","RAYONS X : TOMOGRAPHES A RAYONS X"]
["SC.22","R037","RAYONS X : AUTRE MATERIEL ET CONSOMMABLES DEDIES AUX INSTRUMENTS"]
["SD",null,"SPECTROMETRIE ELECTRONIQUE ET IONIQUE : INSTRUMENTS, ACCESSOIRES  ET CONSOMMABLES DEDIES AUX INSTRUMENTS"]
["SD.0",null,"SPECTROMETRIE ELECTRONIQUE ET IONIQUE : EQUIPEMENTS ET CONSOMMABLES DEDIES AUX INSTRUMENTS"]
["SD.01","R038","SPECTROMETRES ELECTRONIQUES (AUGER, XPS, ESCA, LEED, RHEED,..)"]
["SD.02","R039","SPECTROMETRIE ELECTRONIQUE : AUTRE MATERIEL ET CONSOMMABLES DEDIES"]
["SD.03","R040","APPAREILS DE SPECTROMETRIE IONIQUE (HEIS ou RBS, MEIS,…)"]
["SD.04","R041","SPECTROMETRIE IONIQUE : AUTRE MATERIEL ET CONSOMMABLES DEDIES"]
["SE",null,"SPECTROMETRIE OPTIQUE : EQUIPEMENTS, ACCESSOIRES  ET CONSOMMABLES DEDIES AUX INSTRUMENTS"]
["SE.0",null,"SPECTROMETRIE RAMAN : EQUIPEMENTS ET CONSOMMABLES DEDIES AUX INSTRUMENTS"]
["SE.01","R042","SPECTROMETRIE RAMAN : SPECTROMETRES COMPLETS"]
["SE.02","R043","SPECTROMETRIE RAMAN : AUTRE MATERIEL ET PIECES DETACHEES DEDIES"]
["SE.1",null,"SPECTROMETRIE UV, IR, FLUORESCENCE : EQUIPEMENTS ET CONSOMMABLES DEDIES AUX INSTRUMENTS"]
["SE.11","R044","SPECTROPHOTOMETRIE UV-VISIBLE : LECTEURS DE MICROPLAQUES (SANS RADIOACTIVITE)"]
["SE.12","R045","SPECTROMETRES UV-VISIBLE ET INFRA ROUGE (HORS LECTEURS DE MICROPLAQUES)"]
["SE.13","R046","SPECTROPHOTOMETRIE UV-VISIBLE : AUTRE MATERIEL ET CONSOMMABLES DEDIES"]
["SE.14","R047","SPECTROFLUORIMETRES ET FLUORIMETRES (HORS LECTEURS DE MICROPLAQUES)"]
["SE.15","R048","SPECTROFLUORIMETRIE ET FLUORIMETRIE : AUTRE MATERIEL ET CONSOMMABLES DEDIES"]
["SE.2",null,"POLARIMETRIE ET DICHROISME CIRCULAIRE : EQUIPEMENTS ET CONSOMMABLES DEDIES AUX INSTRUMENTS"]
["SE.21","R049","SPECTROPOLARIMETRIE - POLARIMETRIE : SPECTROMETRES COMPLETS"]
["SE.22","R050","SPECTROPOLARIMETRIE - POLARIMETRIE : AUTRE MATERIEL ET CONSOMMABLES DEDIES"]
["SE.23","R051","DICHROISME CIRCULAIRE : SPECTROMETRES COMPLETS"]
["SE.24","R052","DICHROISME CIRCULAIRE : AUTRE MATERIEL ET CONSOMMABLES DEDIES AUX INSTRUMENTS"]
["SE.3",null,"ELLIPSOMETRIE SPECTROSCOPIQUE : EQUIPEMENTS ET CONSOMMABLES DEDIES AUX INSTRUMENTS"]
["SE.31","R053","ELLIPSOMETRIE SPECTROSCOPIQUE : SPECTROMETRES COMPLETS"]
["SE.32","R054","ELLIPSOMETRIE SPECTROSCOPIQUE : AUTRE MATERIEL ET CONSOMMABLES DEDIES"]
["SE.4",null,"INTERFEROMETRIE : EQUIPEMENTS ET CONSOMMABLES DEDIES AUX INSTRUMENTS"]
["SE.41","R055","INTERFEROMETRIE SPECTROSCOPIQUE : SPECTROMETRES COMPLETS"]
["SE.42","R056","INTERFEROMETRIE SPECTROSCOPIQUE : AUTRE MATERIEL ET CONSOMMABLES DEDIES"]
["SE.5",null,"SPECTROMETRIE D'ABSORPTION ET D'EMISSION ATOMIQUE : EQUIPEMENTS ET CONSOMMABLES DEDIES AUX INSTRUMENTS"]
["SE.51","R057","SPECTROMETRES D'ABSORPTION ET D'EMISSION ATOMIQUE"]
["SE.52","R058","SPECTROM. D'ABSORPT. ET D'EMISS. ATOMIQUE : AUTRE MATERIEL ET CONSOMM. DEDIES"]
["SE.6",null,"SPECTROMETRIE OPTIQUE : LAMPES POUR SPECTROMETRES / SPECTROPHOTOMETRES"]
["SE.61","R059","SPECTROMETRIE OPTIQUE : LAMPES POUR SPECTROMETRES / SPECTROPHOTOMETRES"]
["SF",null,"AUTRES TECHNIQUES SPECTROSCOPIQUES : EQUIPEMENTS, ACCESSOIRES  ET CONSOMMABLES DEDIES AUX INSTRUMENTS"]
["SF.0",null,"AUTRES TECHNIQUES SPECTROSCOPIQUES : EQUIPEMENTS ET ACCESSOIRES"]
["SF.01","R060","SPECTROSCOPIE DIELECTRIQUE : EQUIPEMENTS ET ACCESSOIRES"]
["SF.02","R061","REFRACTOMETRIE DE RESONANCE DE PLASMON DE SURFACE : EQUIPEMENTS ET ACCESSOIRES"]
["SF.03","R062","AUTRES TECHNIQUES SPECTROSCOPIQUES : EQUIPEMENTS ET ACCESSOIRES"]
["SG",null,"SPECTROMETRIE : MAINTENANCE, REPARATION DES EQUIPEMENTS"]
["SG.0",null,"SPECTROMETRIE RMN ET RPE : REPARATION ET MAINTENANCE"]
["SG.01","R063","SPECTROMETRIE RMN ET RPE : MAINTENANCE, REPARATION DU MATERIEL"]
["SG.1",null,"SPECTROMETRIE DE MASSE ET TECHNIQUES SEPARATIVES : REPARATION ET MAINTENANCE"]
["SG.11","R064","SPECTROSCOPIE MASSIQUE DE DECHARGE LUMINESCENTE : MAINTENANCE ET REPARATION"]
["SG.12","R065","SPECTROMETRIE DE MASSE DES IONS SECONDAIRES : MAINTENANCE ET REPARATION"]
["SG.13","R066","SPECTROMETRIE DE MASSE : MAINTENANCE ET REPARATION"]
["SG.14","R067","TECHNIQUES SEPARATIVES ANALYTIQUES : MAINTENANCE ET REPARATION"]
["SG.2",null,"RAYONS X : REPARATION ET MAINTENANCE"]
["SG.21","R068","DIFFRACTION X : MAINTENANCE ET REPARATION DES INSTRUMENTS"]
["SG.22","R069","FLUORESCENCE X : MAINTENANCE ET REPARATION DES INSTRUMENTS"]
["SG.23","R070","RAYONS X : MAINTENANCE ET REPARATION DES AUTRES INSTRUMENTS"]
["SG.3",null,"SPECTROMETRIE ELECTRONIQUE ET IONIQUE : REPARATION ET MAINTENANCE"]
["SG.31","R071","SPECTROMETRIE ELECTRONIQUE ET IONIQUE : MAINTENANCE ET REPARATION"]
["SG.4",null,"SPECTROMETRIE OPTIQUE : REPARATION ET MAINTENANCE"]
["SG.41","R072","SPECTROMETRIE RAMAN : MAINTENANCE ET REPARATION"]
["SG.42","R073","SPECTROMETRIE UV-VIS-IR : MAINTENANCE ET REPARATION"]
["SG.43","R074","SPECTROFLUORIMETRIE ET FLUORIMETRIE : MAINTENANCE ET REPARATION "]
["SG.44","R075","SPECTROPOLARIMETRIE ET DICHROISME CIRCULAIRE : MAINTENANCE ET REPARATION "]
["SG.45","R076","ELLIPSOMETRIE SPECTROSCOPIQUE : MAINTENANCE ET REPARATION"]
["SG.46","R077","INTERFEROMETRIE : MAINTENANCE ET REPARATION"]
["SG.47","R078","SPECTROMETRIE D'ABSORPTION ET D'EMISSION ATOMIQUE : MAINTENANCE ET REPARATION"]
["SG.48","R079","AUTRES TYPES DE SPECTROMETRIE OPTIQUE : MAINTENANCE ET REPARATION"]
["SG.5",null,"AUTRES TECHNIQUES SPECTROSCOPIQUES : REPARATION ET MAINTENANCE"]
["SG.51","R080","SPECTROSCOPIE DIELECTRIQUE : MAINTENANCE ET REPARATION"]
["SG.52","R081","REFRACTOMETRIE DE RESONANCE DE PLASMON DE SURFACE : MAINTENANCE ET REPARATION"]
["SH",null,"SPECTROMETRIE - SPECTROSCOPIE : SERVICES D'ANALYSES"]
["SH.0",null,"SPECTROMETRIE RMN ET RPE : SERVICES D'ANALYSES"]
["SH.01","R082","SPECTROMETRIE RMN ET RPE : SERVICES D'ANALYSES"]
["SH.1",null,"SPECTROMETRIE ET SPECTROSCOPIE DE MASSE : SERVICES D'ANALYSES"]
["SH.11","R083","SPECTROMETRIE DE MASSE : SERVICES D'ANALYSES"]
["SH.12","R084","SPECTROMETRIE DE MASSE DES IONS SECONDAIRES : SERVICES D'ANALYSES"]
["SH.13","R085","SPECTROSCOPIE MASSIQUE DE DECHARGE LUMINESCENTE (GDMS) : SERVICES D'ANALYSES"]
["SH.2",null,"RAYONS X : REPARATION ET MAINTENANCE"]
["SH.21","R086","DIFFRACTION X : SERVICES D'ANALYSES"]
["SH.22","R087","DIFFUSION X : SERVICES D'ANALYSES"]
["SH.23","R088","FLUORESCENCE X : SERVICES D'ANALYSES"]
["SH.24","R089","TOMOGRAPHIE X : SERVICES D'ANALYSES"]
["SH.3",null,"SPECTROMETRIE ELECTRONIQUE ET IONIQUE : REPARATION ET MAINTENANCE"]
["SH.31","R090","SPECTROMETRIE ELECTRONIQUE ET IONIQUE : SERVICES D'ANALYSES"]
["SH.4",null,"SPECTROMETRIE OPTIQUE : SERVICES D'ANALYSES"]
["SH.41","R091","SPECTROMETRIE RAMAN : SERVICES D'ANALYSES"]
["SH.42","R092","SPECTROMETRIE UV-VIS-IR : SERVICES D'ANALYSES"]
["SH.43","R093","SPECTROFLUORIMETRIE ET FLUORIMETRIE : SERVICES D'ANALYSES"]
["SH.44","R094","SPECTROMETRIE D'ABSORPTION ET D'EMISSION ATOMIQUE : SERVICES D'ANALYSES"]
["SH.45","R095","AUTRES TYPES DE SPECTROMETRIE OPTIQUE : SERVICES D'ANALYSE"]
["SH.5",null,"AUTRES TECHNIQUES SPECTROSCOPIQUES : SERVICES D'ANALYSES"]
["SH.51","R096","AUTRES TECHNIQUES SPECTROSCOPIQUES : SERVICES D'ANALYSE"]
["T",null,"ELECTRONIQUE / TEST, ENERGIE, MESURES"]
["TA",null,"ELECTRONIQUE : COMPOSANTS, EQUIPEMENTS"]
["TA.0",null,"ELECTRONIQUE : COMPOSANTS, CARTES ET CIRCUITS ELECTRONIQUES"]
["TA.01","R097","COMPOSANTS ELECTRONIQUES ACTIFS ET PASSIFS"]
["TA.02","R098","COMPOSANTS ELECTROMECANIQUES ET ACCESSOIRES DE CABLAGE"]
["TA.03","R099","SOUS-ENSEMBLES MECANIQUES POUR L'ELECTRONIQUE (CHASSIS, BAIES, COFFRETS,…)"]
["TA.04","R100","CIRCUITS IMPRIMES MULTICOUCHES (PCB) STANDARDS OU A FACON"]
["TA.05","R101","CARTES ELECTRONIQUES (REALISATION ET CABLAGE DE)"]
["TA.06","R102","COMPOSANTS ELECTRONIQUES SPECIFIQUES (ASIC) (FABRIQUES A FACON)"]
["TA.1",null,"ELECTRONIQUE EMBARQUEE SPATIALE : COMPOSANTS ELECTRONIQUES POUR APPLICATIONS SPATIALES"]
["TA.11","R103","COMPOSANTS ELECTRONIQUES ACTIFS ET PASSIFS (APPLI. SPATIALE)"]
["TA.12","R104","COMPOSANTS ELECTROMECANIQUES ET ACCESSOIRES DE CABLAGE  (APPLI. SPATIALE)"]
["TA.13","R105","SOUS-ENSEMBLES MECANIQUES (CHASSIS, BAIES, COFFRETS,…) (APPLI. SPATIALE)"]
["TA.14","R106","CIRCUITS IMPRIMES MULTICOUCHES (PCB) STANDARDS OU A FACON  (APPLI. SPATIALE)"]
["TA.15","R107","CARTES ELECTRONIQUES (REALISATION ET CABLAGE DE)  (APPLI. SPATIALE)"]
["TA.16","R108","COMPOSANTS ELECTRONIQUES SPECIFIQUES (ASIC) (A FACON)  (APPLI. SPATIALE)"]
["TA.2",null,"ELECTRONIQUE : EQUIPEMENTS ET CONSOMMABLES DEDIES"]
["TA.21","R109","MACHINES DEDIEES A L'ELECTRONIQUE (SOUDURE, PLACEMENT,…)"]
["TA.22","R110","PETITS EQUIPEMENTS ET CONSOMMABLES POUR L'ELECTRONIQUE"]
["TA.3",null,"ELECTRONIQUE : EQUIPEMENTS ELECTRONIQUES SPECIAUX"]
["TA.31","R413","SYSTEMES ELECTRONIQUES OU ELECTROMECANIQUES SPECIAUX"]
["TB",null,"TESTS ENERGIE MESURES : EQUIPEMENTS"]
["TB.0 ",null,"TESTS ET MESURES : EQUIPEMENTS"]
["TB.01","R111","INSTRUMENTS DE GENERATION ET TRAITEMENT DES SIGNAUX (GENERATEURS, AMPLI…)"]
["TB.02","R112","OSCILLOSCOPES, ANALYSEURS ET ACCESSOIRES (SONDES,…)"]
["TB.03","R113","ACQUISITION DE DONNEES (CARTES,…)"]
["TB.04","R114","PETITE INSTRUMENTATION COURANTE DE TESTS ET MESURES (VOLTMETRES,…)"]
["TB.05","R115","INSTRUMENTATION RADIOFREQUENCES ET HYPERFREQUENCES"]
["TB.1 ",null,"ENERGIE : EQUIPEMENTS (ALIMENTATIONS, BATTERIES…)"]
["TB.11","R116","ENERGIE : MATERIEL D'ALIMENTATION (ALIM., AMPLI., ONDULEURS,…)"]
["TB.12","R117","ENERGIE : PILES A L'UNITE ET ASSEMBLAGE DE PILES CLASSIQUES ET SPECIALES"]
["TB.13","R118","ENERGIE : PILES ET ASSEMBLAGE DE PILES RECHARGEABLES (CLASSIQUES ET SPECIALES)"]
["TC",null,"ELECTRONIQUE / TEST, ENERGIE, MESURES : REPARATION ET MAINTENANCE DES EQUIPEMENTS"]
["TC.0",null,"ELECTRONIQUE : REPARATION ET MAINTENANCE DES  EQUIPEMENTS"]
["TC.01","R119","ELECTRONIQUE : REPARATION ET MAINTENANCE DES EQUIP. DE TESTS ENERGIE MESURES"]
["TC.02","R414","MAINTENANCE DES SYSTEMES ELECTRONIQUES ET ELECTROMECANIQUES SPECIAUX"]
["TC.1",null,"TEST ENERGIE MESURE : REPARATION ET MAINTENANCE DES EQUIPEMENTS"]
["TC.11","R120","TEST ENERGIE MESURE : REPARATION ET MAINTENANCE DES EQUIPEMENTS"]
["TD",null,"ELECTRONIQUE / TESTS ENERGIE MESURES : SERVICES SPECIALISES"]
["TD.0",null,"ELECTRONIQUE : SERVICES SPECIALISES"]
["TD.01","R121","ELECTRONIQUE : SERVICES DE MESURES, TESTS, CARACTERISATION, CERTIFICATIONS"]
["TD.02","R122","ELECTRONIQUE : SERVICES D'ETUDES EN R&D ELECTRONIQUE"]
["TD.03","R123","ELECTRONIQUE : AUTRES SERVICES SANS FOURNITURE"]
["TD.1",null,"LOGICIELS POUR L'ELECTRONIQUE : DROITS ET MAINTENANCE"]
["TD.11","R124","DROITS D'UTILISATION DES LOGICIELS DE CAO EN ELECTRONIQUE"]
["TD.12","R125","DROITS D'UTIL. DE LOGICIELS POUR LA PROGRAM. MICROCONTROLEUR"]
["TD.13","R126","DROITS D'UTIL. DE LOGICIELS POUR LA PROGRAM. DES COMPOS. PROGRAM."]
["TD.14","R127","DROITS D'UTIL. DE LOGICIELS POUR LA PROGRAM. INTERFACE HOMME MACHINE"]
["TD.15","R128","DROITS D'UTIL. DES AUTRES LOGICIELS POUR L'ELECTRONIQUE"]
["TD.16","R129","MAINTENANCE DES LOGICIELS POUR L'ELECTRONIQUE"]
["U",null,"SCIENCES DE LA TERRE - GEOPHYSIQUE - ASTROPHYSIQUE - ARCHEOLOGIE"]
["UA",null,"EMBARCATIONS ET EQUIPEMENTS D'EMBARCATIONS"]
["UA.0",null,"EMBARCATIONS"]
["UA.01","R130","NAVIRES"]
["UA.02","R131","EMBARCATIONS TRANSPORTABLES OU A USAGE D'ANNEXE (SEMI-RIGIDES,…)"]
["UA.03","R132","PLATEFORMES, RADEAUX, BARGES A USAGE FLUVIAL"]
["UA.1",null,"EQUIPEMENTS TECHNIQUES ET DE NAVIGATION POUR NAVIRES"]
["UA.11","R133","MOTEURS DE BATEAU"]
["UA.12","R134","AUXILIAIRES DE PONT DE NAVIRE (TREUILS, GRUE, PORTIQUE…)"]
["UA.13","R135","MATERIEL D'ACCASTILLAGE"]
["UA.14","R136","EQUIPEMENTS DE SECURITE, DE SURVIE ET DE SURVEILLANCE POUR NAVIRE"]
["UA.15","R137","MATERIEL DE NAVIGATION"]
["UA.16","R138","AUTRES EQUIPEMENTS POUR BATEAUX"]
["UA.2",null,"FOURNITURES POUR LE FONCTIONNEMENT ET L'ENTRETIEN DES BATEAUX ET EQUIPEMENTS DE BATEAUX"]
["UA.21","R139","CONSOMMABLES POUR L'ENTRETIEN DES BATEAUX"]
["UA.22","R140","PIECES MECANIQUES DE RECHANGE POUR EQUIPEMENTS DE BATEAUX"]
["UA.23","R141","PIECES HYDRAULIQUES POUR EQUIPEMENTS DE BATEAUX"]
["UA.24","R142","PIECES ELECTRIQUES / ELECTRONIQUES POUR EQUIPEMENTS DE BATEAUX"]
["UA.3",null,"SERVICES POUR LE FONCTIONNEMENT ET L'ENTRETIEN DES BATEAUX ET EQUIPEMENTS DE BATEAUX"]
["UA.31","R143","TRAVAUX D'ENTRETIEN ET SERVICES POUR BATEAUX SEMI-RIGIDES"]
["UA.32","R144","TRAVAUX MECANIQUES POUR EQUIPEMENTS DE BATEAUX"]
["UA.33","R145","TRAVAUX HYDRAULIQUES POUR EQUIPEMENTS DE BATEAUX"]
["UA.34","R146","TRAVAUX ELECTRIQUES POUR EQUIPEMENTS DE BATEAUX"]
["UA.35","R147","REPARATION ET MAINTENANCE DU MATERIEL DE NAVIGATION ET DE COMMUNICATION"]
["UA.36","R148","TRAVAUX D'ENTRETIEN DES COQUES ET PONTS DE BATEAUX"]
["UA.37","R149","SERVICES, TESTS ET CONTRÔLES POUR CERTIFICATION"]
["UA.4",null,"AMENAGEMENT DES LOCAUX DE VIE DES BATEAUX"]
["UA.41","R150","MATERIEL DE CHAUFFAGE, VENTILATION, CLIMATISATION, SANITAIRE PR BATEAUX"]
["UA.42","R151","MOBILIER ET AUTRES EQUIPEMENTS D'AMENAGEMENT DES BATEAUX"]
["UA.43","R152","TRAVAUX D'AMENAGEMENT DES BATEAUX"]
["UA.5",null,"MATERIELS DE PRELEVEMENT ET DE PLONGEE SOUS-MARINE"]
["UA.51","R153","MATERIELS DE PRELEVEMENT"]
["UA.52","R154","MATERIELS DE PLONGEE SOUS-MARINE"]
["UA.53","R155","MAINTENANCE DES MATERIELS DE PLONGEE SOUS-MARINE"]
["UB",null,"VEHICULES AUTONOMES MARINS"]
["UB.0",null,"VEHICULES MARINS AUTONOMES"]
["UB.01","R156","DRONES MARINS"]
["UB.02","R157","FLOTTEURS MARINS"]
["UB.1",null,"OCEANOGRAPHIE : FOURNITURE DE FONCTIONNEMENT ET D’ENTRETIEN DES VEHICULES MARINS AUTONOMES"]
["UB.11","R158","PIECES MECANIQUES POUR VEHICULES MARINS AUTONOMES"]
["UB.12","R159","PIECES HYDRAULIQUES POUR VEHICULES MARINS AUTONOMES"]
["UB.13","R160","PIECES ELECTRONIQUES POUR VEHICULES MARINS AUTONOMES"]
["UB.2",null,"OCEANOGRAPHIE : SERVICES POUR LE FONCTIONNEMENT ET L'ENTRETIEN DES VEHICULES MARINS AUTONOMES"]
["UB.21","R161","TRAVAUX SUR ELEMENTS MECANIQUES DE VEHICULES MARINS AUTONOMES (M.O)"]
["UB.22","R162","TRAVAUX SUR ELEMENTS HYDRAULIQUES DE VEHICULES MARINS AUTONOMES (M.O)"]
["UB.23","R163","TRAVAUX ELECTRIQUES SUR VEHICULES MARINS AUTONOMES (M.O)"]
["UC",null,"OCEANOGRAPHIE : EQUIPEMENTS SCIENTIFIQUES EMBARQUES"]
["UC.0",null,"CHAINE D’ACQUISITION SISMIQUE (SANS CAPTEURS ACOUSTIQUES)"]
["UC.01","R164","EQUIPEMENTS SOURCES DE LA CHAINE D’ACQUISITION SISMIQUE"]
["UC.02","R165","EQUIPEMENTS DE RECEPTION  ET TRAITEMENT DE LA CHAINE D’ACQUISITION SISMIQUE"]
["UC.03","R166","MATERIEL ASSOCIE A LA CHAINE D’ACQUISITION SISMIQUE"]
["UC.1",null,"CAPTEURS EMBARQUES SUR NAVIRES (AUTRES QUE SISMIQUES)"]
["UC.11","R167","THERMOSALINOGRAPHES"]
["UC.12","R168","CAPTEURS CTD (CONDUCTIVTY TEMPERATURE DEPTH)"]
["UC.13","R169","CAPTEURS ACOUSTIQUES (ADCP, HYDROPHONE,…)"]
["UC.14","R170","INSTRUMENTATION OPTIQUE (CAPTEURS, FLUORIMETRES,…)"]
["UC.15","R171","OCEANOGRAPHIE : AUTRES CAPTEURS"]
["UC.2",null,"AUTRES EQUIPEMENTS SCIENTIFIQUES EMBARQUES"]
["UC.21","R172","OCEANOGRAPHIE : INSTRUMENTATION  THERMIQUE"]
["UC.22","R173","OCEANOGRAPHIE : EQUIPEMENTS ELECTROCHIMIQUES"]
["UC.23","R174","OCEANOGRAPHIE : INSTRUMENTATION ELECTROMAGNETIQUE"]
["UC.24","R175","OCEANOGRAPHIE : POISSONS INSTRUMENTES"]
["UC.25","R176","OCEANOGRAPHIE : AUTRES INSTRUMENTS SCIENTIFIQUES EMBARQUES"]
["UC.3",null,"FOURNITURES POUR LE FONCTIONNEMENT ET L'ENTRETIEN DES EQUIPEMENTS SCIENTIFIQUES EMBARQUES"]
["UC.31","R177","FLUIDES ET CONSOMMABLES POUR EQUIPEMENTS SCIENTIFIQUES EMBARQUES"]
["UC.32","R178","PIECES MECANIQUES DE RECHANGE POUR LA SISMIQUE"]
["UC.33","R179","PIECES MECANIQUES DE RECHANGE POUR AUTRES EQUIPEMENTS SCIENTIFIQUES EMBARQUES"]
["UC.34","R180","COMPOSANTS ELECTRONIQUES DE RECHANGE POUR LA SISMIQUE"]
["UC.35","R181","PIECES ELECTRONIQUES DE RECHANGE POUR AUTRES EQUIPEMENTS SCIENTIFIQUES EMBARQUES"]
["UC.36","R182","PIECES INFORMATIQUES DE RECHANGE POUR EQUIPEMENTS SCIENTIFIQUES EMBARQUES"]
["UC.4",null,"SERVICES POUR LE FONCTIONNEMENT ET L'ENTRETIEN DES EQUIPEMENTS SCIENTIFIQUES EMBARQUES"]
["UC.41","R183","REPARATION ET MAINTENANCE SUR LA SISMIQUE"]
["UC.42","R184","RÉPARATION ET MAINTENANCE SUR LES AUTRES EQUIPEMENTS SCIENTIFIQUES EMBARQUES"]
["UD",null,"GEOPHYSIQUE TERRESTRE : VEHICULES TERRESTRES SPECIFIQUES ET EQUIPEMENTS"]
["UD.0",null,"VEHICULES TERRESTRES SPECIFIQUES"]
["UD.01","R185","VEHICULES TERRESTRES SPECIFIQUES"]
["UD.1",null,"VEHICULES TERRESTRES SPECIFIQUES : EQUIPEMENTS POUR VEHICULES"]
["UD.11","R186","EQUIPEMENTS POUR VEHICULES TERRESTRES SPECIFIQUES"]
["UD.2",null,"VEHICULES TERRESTRES SPECIFIQUES : FONCTIONNEMENT ET ENTRETIEN"]
["UD.21","R187","VEHICULES TERRESTRES SPECIFIQUES : CONSOMMABLES"]
["UD.22","R188","VEHICULES TERRESTRES SPECIFIQUES : PIECES MECANIQUES ET ELECTRONIQUES"]
["UD.23","R189","VEHICULES TERRESTRES SPECIFIQUES : TRAVAUX MECANIQUES, ELECTRIQUES, HYDRAULIQUES"]
["UE",null,"GEOPHYSIQUE : FORAGE ET CARROTAGE"]
["UE.0",null,"FORAGE ET CARROTAGE : MATERIEL ET ACCESSOIRES"]
["UE.01","R190","CARROTAGE : CARROTIERS A MOTEURS ET ACCESSOIRES"]
["UE.02","R191","FORAGE : FOREUSES ET ACCESSOIRES"]
["UE.1",null,"FORAGE ET CAROTTAGE : FOURNITURES POUR LE FONCTIONNEMENT ET L'ENTRETIEN DU MATERIEL ET DES ACCESSOIRES"]
["UE.11","R192","CAROTTAGE : CONSOMMABLES ET PIECES DE RECHANGE POUR CAROTTIERS"]
["UE.12","R193","FORAGE : CONSOMMABLES ET PIECES DE RECHANGE POUR FOREUSES"]
["UE.2",null,"FORAGE ET CAROTTAGE : SERVICES POUR LE FONCTIONNEMENT ET L'ENTRETIEN DES EQUIPEMENTS ET ACCESSOIRES"]
["UE.21","R194","TRAVAUX MECANIQUES, ELECTRIQUES ET ENTRETIEN DU MATERIEL DE CAROTTAGE"]
["UE.22","R195","TRAVAUX MECANIQUES, ELECTRIQUES ET HYDRAULIQUES DU MATERIEL DE FORAGE"]
["UF",null,"VEHICULES AERIENS ET EQUIPEMENTS POUR VEHICULES AERIENS"]
["UF.0",null,"VEHICULES AERIENS ET EQUIPEMENTS ASSOCIES"]
["UF.01","R196","AVIONS ET HELICOPTERES"]
["UF.02","R197","EQUIPEMENTS D'AVIONS ET D'HELICOPTERES"]
["UF.03","R198","DRONES AERIENS ET ASSIMILES"]
["UF.04","R199","AERONEFS ET BALLONS SOLAIRES"]
["UF.1",null,"VEHICULES AERIENS : AMENAGEMENT DES VEHICULES AERIENS"]
["UF.11","R200","MATERIEL POUR L'AMENAGEMENT DES VEHICULES AERIENS"]
["UF.2",null,"VEHICULES AERIENS : EQUIPEMENTS TECHNIQUES ET DE NAVIGATION POUR VEHICULES AERIENS"]
["UF.21","R201","EQUIPEMENTS TECHNIQUES ET DE NAVIGATION POUR VEHICULES AERIENS"]
["UF.3",null,"VEHICULES AERIENS : FOURNITURES POUR LE FONCTIONNEMENT ET L'ENTRETIEN"]
["UF.31","R202","CONSOMMABLES POUR LE FONCTIONNEMENT ET L'ENTRETIEN DES VEHICULES AERIENS"]
["UF.32","R203","PIECES DE RECHANGE POUR MOTEURS ET AUTRES EQUIPEMENTS DE VEHICULES AERIENS"]
["UF.4",null,"SERVICES POUR LE FONCTIONNEMENT ET L'ENTRETIEN DES VEHICULES AERIENS ET EQUIPEMENTS ASSOCIES"]
["UF.41","R204","REPARATION ET MAINTENANCE DES MOTEURS D'AVION"]
["UF.42","R205","REPARATION ET MAINTENANCE DES AVIONS (HORS MOTEURS)"]
["UF.43","R206","REPARATION ET MAINTENANCE DES AUTRES VEHICULES AERIENS"]
["UG",null,"GEOPHYSIQUE - ASTROPHYSIQUE : AUTRES EQUIPEMENTS SCIENTIFIQUES"]
["UG.0",null,"GEOPHYSIQUE : EQUIPEMENTS DE METEOROLOGIE"]
["UG.01","R207","METEOROLOGIE : EQUIPEMENTS DE METEOROLOGIE"]
["UG.02","R208","METEOROLOGIE : RADIOMETRES (PROFILEURS RADIOMETRIQUES MICROONDES,…)"]
["UG.03","R209","METEOROLOGIE : RADARS (RADARS PROFILEURS VHF,…)"]
["UG.04","R210","METEOROLOGIE : LIDARS"]
["UG.1",null,"GEOPHYSIQUE : AUTRES EQUIPEMENTS SCIENTIFIQUES"]
["UG.11","R211","GEOPHYSIQUE : MATERIEL DE MESURE DES VIBRATIONS"]
["UG.12","R212","GEOPHYSIQUE : MATERIEL DE MESURE DE POSITION ET MESURE GEODESIQUE"]
["UG.13","R213","GEOPHYSIQUE : INSTRUMENTS DE TOPOGRAPHIE ET DE MESURE DES DISTANCES"]
["UG.14","R214","GEOPHYSIQUE : MAGNETOMETRES"]
["UG.15","R215","GEOPHYSIQUE : CAPTEURS (HORS OCEANOGRAPHIE)"]
["UG.16","R216","GROUPES ELECTROGENES POUR ACTIVITES SCIENTIFIQUES"]
["UG.2",null,"ASTROPHYSIQUE : EQUIPEMENTS SCIENTIFIQUES"]
["UG.21","R217","APPAREILLAGE DE SIMULATION POUR APPLICATIONS SPATIALES"]
["UG.22","R218","AUTRE MATERIEL SCIENTIFIQUE D'ASTROPHYSIQUE"]
["UG.3",null,"GEOPHYSIQUE : FOURNITURES POUR LE FONCTIONNEMENT ET L'ENTRETIEN DES EQUIPEMENTS SCIENTIFIQUES"]
["UG.31","R219","CONSOMMABLES ET PIECES DE RECHANGE POUR MATERIEL DE METEOROLOGIE"]
["UG.32","R220","CONSOMMABLES ET PIECES DE RECHANGE POUR AUTRE MATERIEL DE GEOPHYSIQUE"]
["UG.33","R221","CONSOMMABLES ET PIECES DE RECHANGE POUR MATERIEL D'ASTROPHYSIQUE"]
["UG.4",null,"GEOPHYSIQUE : SERVICES POUR LE FONCTIONNEMENT ET L'ENTRETIEN DES EQUIPEMENTS SCIENTIFIQUES  NON OCEANOGRAPHIQUES"]
["UG.41","R222","TRAVAUX MECANIQUES, ELECTRIQUES ET D'ENTRETIEN SUR MATERIEL DE METEOROLOGIE"]
["UG.42","R223","TRAVAUX MECAN., ELECTR. ET D'ENTRETIEN SUR AUTRE MATERIEL DE GEOPHYSIQUE"]
["UG.43","R224","TRAVAUX MECANIQUES, ELECTRIQUES ET D'ENTRETIEN SUR MATERIEL D'ASTROPHYSIQUE"]
["UH",null,"GEOPHYSIQUE ET ASTROPHYSIQUE : SERVICES SPECIALISES"]
["UH.0",null,"GEOPHYSIQUE : SERVICES D'ACQUISITION DE DONNEES"]
["UH.01","R225","SERVICE D'ACQUISITION DE DONNEES METEOROLOGIQUES ET CLIMATOLOGIQUES"]
["UH.02","R226","SERVICES D'AQUISITION DE DONNEES DE POLLUTION"]
["UH.03","R227","SERVICES D'IMAGERIE SATELLITAIRES"]
["UH.04","R228","SERVICES DE MESURES LIDAR"]
["UH.1",null,"GEOPHYSIQUE : AUTRES SERVICES"]
["UH.11","R229","SERVICES D'ETABLISSEMENT DE CARTES ET DE PHOTOINTERPRETATION"]
["UH.12","R230","TRAVAUX DE FORAGE"]
["UH.13","R492","AFFRETEMENT DE NAVIRE "]
["UH.14","R231","SERVICES DE CONSEIL ET ASSISTANCE POUR OPERATIONS EN MER"]
["UH.15","R232","AUTRES SERVICES SPECIALISES EN GEOPHYSIQUE"]
["UI",null,"ARCHEOLOGIE"]
["UI.0",null,"ARCHEOLOGIE : FOURNITURES POUR FOUILLES ARCHEOLOGIQUES"]
["UI.01","R415","ARCHEOLOGIE : FOURNITURES POUR FOUILLES ARCHEOLOGIQUES"]
["UI.1",null,"ARCHEOLOGIE : SERVICES SUR CHANTIERS DE FOUILLES "]
["UI.11","R416","ARCHEOLOGIE : PRESTATIONS SERVICES SUR CHANTIER DE FOUILLES (TERRASSEMENT…)"]
["V",null,"VIDE ET ULTRAVIDE : EQUIPEMENTS POUR LE VIDE ET POUR LES TECHNIQUES SOUS VIDE"]
["VA",null,"VIDE ET ULTRA-VIDE : EQUIPEMENTS POUR LA GENERATION, LA MESURE ET LE CONTRÔLE DU VIDE ET DE L'ULTRAVIDE"]
["VA.0",null,"VIDE ET ULTRAVIDE : POMPES / SYSTEMES DE POMPAGE"]
["VA.01","R233","VIDE PRIMAIRE : POMPES (A MEMBRANES, PALETTES, PISTONS, ROOTS,…)"]
["VA.02","R234","VIDE SECONDAIRE ET ULTRAVIDE : POMPES (TURBOMOLECULAIRES,…)"]
["VA.03","R235","VIDE ET ULTRAVIDE : CONSOMMABLES ET PIECES DETACHEES POUR POMPES"]
["VA.1",null,"VIDE ET ULTRAVIDE : ENCEINTES / BATI A VIDE ET COMPOSANTS ASSOCIES"]
["VA.11","R236","VIDE ET ULTRAVIDE : ENCEINTES ET BATIS POUR LE VIDE ET L'ULTRAVIDE"]
["VA.12","R237","VIDE ET ULTRAVIDE : COMPOSANTS POUR ENCEINTES (VANNES, RACCORDS, HUBLOTS…)"]
["VA.13","R238","VIDE ET ULTRAVIDE : MANIPULATEURS UHV ET ACCESSOIRES"]
["VA.14","R239","VIDE ET ULTRAVIDE : ELEMENTS CHAUFFANTS POUR LE VIDE"]
["VA.15","R240","VIDE ET ULTRAVIDE : AUTRES EQUIPEMENTS D'ENCEINTES A VIDE"]
["VA.2",null,"VIDE ET ULTRAVIDE : EQUIPEMENTS POUR LA MESURE ET LE CONTROLE DU VIDE ET DE L'ULTRAVIDE"]
["VA.21","R241","VIDE ET ULTRAVIDE : INSTRUMENTATION DE MESURE DU VIDE (JAUGES, VACUOMETRES,…)"]
["VA.22","R242","VIDE ET ULTRAVIDE : DEBITMETRES - REGULATEURS DE DEBIT"]
["VA.23","R243","VIDE ET ULTRAVIDE : ANALYSEURS DES GAZ RESIDUELS (RGA) ET DETECTEURS DE FUITE"]
["VB",null,"VIDE ET ULTRA-VIDE : TECHNIQUES SOUS VIDE"]
["VB.0",null,"TECHNIQUES SOUS VIDE (DEPOT, GRAVURE) : EQUIPEMENTS"]
["VB.01","R244","TECHNIQUES SOUS VIDE : MACHINES DE DEPOT ET DE GRAVURE"]
["VB.02","R245","TECHNIQUES SOUS VIDE : EVAPORATEURS SOUS VIDE"]
["VB.03","R246","TECHNIQUES SOUS VIDE : SYSTÈMES D'IONISATION A FAISCEAU D'IONS FOCALISES (FIB)"]
["VB.04","R247","TECHNIQUES SOUS VIDE : MICROBALANCES"]
["VB.05","R248","TECHNIQUES SOUS VIDE : CELLULES D'EFFUSION"]
["VB.06","R249","TECHNIQUES SOUS VIDE : AUTRE MATERIEL (APPAREILS DE PREPARATION DE SURFACE,…)"]
["VC",null,"VIDE ET ULTRA-VIDE : REPARATION ET MAINTENANCE DU MATERIEL POUR LE VIDE ET LES TECHNIQUES SOUS VIDE"]
["VC.0",null,"VIDE ET ULTRAVIDE : REPARATION ET MAINTENANCE DU MATERIEL POUR LE VIDE"]
["VC.01","R250","REPARATION ET MAINTENANCE DES POMPES A VIDE ET ULTRAVIDE"]
["VC.02","R251","REPARATION ET MAINTENANCE DU MATERIEL DE MESURE ET CONTRÔLE DU VIDE"]
["VC.1",null,"VIDE ET ULTRAVIDE : REPARATION ET MAINTENANCE DES EQUIPEMENTS POUR LES TECHNIQUES SOUS VIDE"]
["VC.11","R252","REPARATION ET MAINTENANCE DES EQUIPEMENTS DE DEPOT ET GRAVURE"]
["W",null,"NANOTECHNOLOGIES - MICRO-ELECTRONIQUE"]
["WA",null,"NANOTECHNOLOGIES - MICRO-ELECTRONIQUE : MATERIAUX, CONSOMMABLES, EQUIPEMENTS"]
["WA.0",null,"NANOTECHNOLOGIES - MICRO-ELECTRONIQUE : MATERIAUX ET CONSOMMABLES"]
["WA.01","R253","NANOTECHNOLOGIES - MICROELECTRONIQUE : MATERIAUX SEMI-CONDUCTEURS"]
["WA.02","R254","NANOTECHNOLOGIES - MICROELECTRONIQUE : AUTRES SUBSTRATS "]
["WA.03","R255","NE PLUS UTILISER - UTILISER NA.23"]
["WA.04","R256","NANOTECHNOLOGIES - MICROELECTRONIQUE : CONSOMMABLES (RESINES,…)"]
["WA.1",null,"NANOTECHNOLOGIES - MICROELECTRONIQUE : EQUIPEMENTS DE LITHOGRAPHIE ET CONSOMMABLES DEDIES"]
["WA.11","R257","NANOTECHNOLOGIES - MICROELECTRONIQUE : MATERIEL POUR PHOTOLITHOGRAPHIE"]
["WA.12","R258","NANOTECHNOLOGIES - MICROELEC : MATERIEL DE LITHOGRAPHIE LASER ACCESSOIRES"]
["WA.13","R259","NANOTECHNOLOGIES - MICROELEC : CONSOMMABLES POUR EQUIPEMENT DE LITHOGRAPHIE"]
["WA.14","R260","NANOTECHNOLOGIES - MICROELEC : MATERIEL DE LITHOGRAPHIE ELECTRONIQUE ET ACCES."]
["WA.15","R261","NANOTECHNOLOGIES - MICROELEC : LOGICIELS DE LITHOGRAPHIE ELECTRONIQUE"]
["WA.2",null,"NANOTECHNOLOGIES - MICRO-ELECTRONIQUE : AUTRES EQUIPEMENTS ET CONSOMMABLES DEDIES"]
["WA.21","R262","NANOTECHNOLOGIES - MICROELEC. : MATERIEL POUR LE DEPOT (HORS VIDE)"]
["WA.22","R263","NANOTECHNOLOGIES - MICROELEC. : MATERIEL D'IMPLANTATION IONIQUE"]
["WA.23","R264","NANOTECHNOLOGIES - MICROELEC. : MATERIEL DE SERIGRAPHIE / IMPRESSION"]
["WA.24","R265","NANOTECHNOLOGIES - MICRO-ELECTRONIQUE : FOURS SPECIAUX"]
["WA.25","R266","MICRO-ELECTRONIQUE : AUTRES MACHINES DEDIEES (MICROSOUDURE, BONDING, TEST,…)"]
["WB",null,"NANOTECHNOLOGIES - MICRO-ELECTRONIQUE : REPARATION ET MAINTENANCE DES EQUIPEMENTS"]
["WB.0",null,"NANOTECHNOLOGIES - MICRO-ELECTRONIQUE : REPARATION ET MAINTENANCE DES EQUIPEMENTS DE LITHOGRAPHIE"]
["WB.01","R267","REPARATION ET MAINTENANCE DES EQUIPEMENTS DE LITHOGRAPHIE"]
["WB.1",null,"NANOTECHNOLOGIES - MICRO-ELECTRONIQUE : REPARATION ET MAINTENANCE DES AUTRES EQUIPEMENTS"]
["WB.11","R268","REPARATION ET MAINTENANCE DES AUTRES EQUIPEMENTS PR MICRO-ELECTRONIQUE"]
["WC",null,"NANOTECHNOLOGIES - MICRO-ELECTRONIQUE : SERVICES SPECIALISES"]
["WC.0",null,"NANOTECHNOLOGIES - MICRO-ELECTRONIQUE : SERVICES SPECIALISES"]
["WC.01","R269","NANOTECHNOLOGIES - MICRO-ELECTRONIQUE : SERVICES SPECIALISES"]
["X",null,"DEPENSES HORS ACHATS"]
["XA",null,"REMBOURSEMENT DES DEPLACEMENTS ET MISSIONS"]
["XA.0",null,"REMBOURSEMENT DES FRAIS DE MISSIONS DES PERSONNELS"]
["XA.01","R270","REMBOURSEMENT FRAIS DE MISSIONS EN FRANCE METROPOLITAINE Personnels"]
["XA.02","R271","REMBOURSEMENT FRAIS DE MISSIONS A L'ETRANGER Personnels"]
["XA.03","R272","SUBVENTIONS FRAIS DE RECHERCHE SUR LE TERRAIN Personnels"]
["XA.04","R273","AUTRES REMBOURSEMENTS DE FRAIS DE MISSIONS Personnels"]
["XA.1",null,"REMBOURSEMENT DES FRAIS DE MISSIONS DES ETUDIANTS"]
["XA.11","R274","REMBOURSEMENT FRAIS DE MISSIONS EN FRANCE METROPOLITAINE Etudiants"]
["XA.12","R275","REMBOURSEMENT FRAIS DE MISSIONS A L'ETRANGER Etudiants"]
["XA.13","R276","AUTRES REMBOURSEMENTS DE FRAIS DE MISSIONS Etudiants"]
["XA.14","R277","FRAIS DE MISSIONS DE RECHERCHE SUR LE TERRAIN Etudiants"]
["XA.2",null,"REMBOURSEMENT DES FRAIS DE MISSIONS DES PERSONNALITES EXTERIEURES"]
["XA.21","R278","REMBOURSEMENT FRAIS DE MISSIONS FRANCE METROPOLITAINE Personnalités extérieures"]
["XA.22","R279","REMBOURSEMENT FRAIS DE MISSIONS A L'ETRANGER  Personnalités extérieures"]
["XA.23","R280","AUTRES REMBOURSEMENTS FRAIS DE MISSIONS  Personnalités extérieures"]
["XA.24","R281","FRAIS DE MISSIONS DE RECHERCHE SUR LE TERRAIN  Personnalités extérieures"]
["XA.3",null,"REMBOURSEMENTS DE DEPENSES REALISEES PAR CARTES D'AFFAIRES"]
["XA.31","R282","REMBOURSEMENTS DE DEPENSES REALISEES PAR CARTES AFFAIRES"]
["XA.4",null,"CHANGEMENT DE RESIDENCE"]
["XA.41","R283","INDEMNITES FORFAITAIRES DE CHANGEMENT DE RESIDENCE"]
["XB",null,"CHARGES DE PERSONNEL"]
["XB. 09","R440","TAXE PERCUE PAR LES ORGANISMES PUBLICS INTERNATIONAUX"]
["XB.0",null,"CHARGES FISCALES REMUNERATION"]
["XB.01","R284","TAXE SUR LES SALAIRES"]
["XB.02","R285","TAXE D'APPRENTISSAGE"]
["XB.03","R286","VERSEMENTS DE TRANSPORT PERSONNEL PERMANENT"]
["XB.04","R287","VERSEMENTS DE TRANSPORT REMUNERATIONS DIVERSES"]
["XB.05","R288","COTISATIONS FNAL PERSONNEL PERMANENT"]
["XB.06","R289","COTISATIONS FNAL REMUNERATIONS DIVERSES"]
["XB.07","R290","AUTRES IMPOTS ET TAXES SUR REMUNERATIONS"]
["XB.08","R291","AUTRES CHARGES DE PERSONNEL REDEVANCES A L’OMI"]
["XB.1",null,"REMUNERATIONS ET CHARGES SOCIALES"]
["XB.11","R292","ACCUEILS, ECHANGES TITULAIRES ACCUEILLIS EN DELEGATIONS"]
["XB.12","R293","ACCUEILS CHAIRES D'EXCELLENCE CNRS-UNIVERSITES"]
["XB.13","R294","COTISATIONS URSSAF SUR REMUNERATIONS DIVERSES"]
["XB.14","R295","CHARGES DENSEIGNEMENT VACATAIRES"]
["XB.15","R296","ALLOC.POUR PERTE D'EMPLOI -REMUNERATIONS DIVERSES"]
["XB.16","R297","INDEMN DE PREAVIS ET DE LICENCIEMENT-  REMUNERATIONS DIVERSES"]
["XB.17","R298","PERSONNEL INTERIMAIRE, DETACHE OU PRETE"]
["XB.18","R299","AVANTAGES FAMILIAUX REMUNERATION DIVERSES  (HORS FRANCE)"]
["XB.19","R300","AUTRES REMUNERATIONS DIVERSES"]
["XB.2",null,"MEDECINE DU TRAVAIL"]
["XB.21","R301","NE PLUS UTILISER - UTILISER EC.41"]
["XB.22","R302","MEDECINE STATUTAIRE - VISITES D'EMBAUCHE"]
["XB.23","R303","MEDECINE DU TRAVAIL: FRAIS MEDICAUX LIES AUX DEPARTS A L'ETRANGER"]
["XB.24","R304","MEDECINE DU TRAVAIL: AUTRES FRAIS MEDICAUX"]
["XB.3",null,"ŒUVRE SOCIALES"]
["XB.31","R305","OEUVRES SOCIALES AIDES EXCEPTIONNELLES"]
["XB.32","R306","DEPENSES SOCIALES DIVERSES"]
["XB.33","R307","SUBVENTIONS CAES"]
["XB.34","R308","SUBVENTIONS POUR AUTRES OEUVRES SOCIALES"]
["XB.35","R309","RESTAURATION SOCIALE : SUBVENTIONS ORGANISMES, ET RESTAURANTS INTER-ENTREPRISES"]
["XB.36","R310","PRÊT A MOBILITE"]
["XB.4",null,"FACTURATION CHARGES DE PERSONNEL"]
["XB.41","R441","FACTURATION PAYE A FACON"]
["XC",null,"FRAIS ET SUBVENTIONS VERSEES A D'AUTRES ORGANISMES Y COMPRIS INTERNATIONAUX"]
["XC.0",null,"FRAIS D'INSCRIPTIONS ET COTISATION"]
["XC.01","R311","FRAIS D'INSCRIPTION A DES COLLOQUES NON ORGANISES PAR L'ETABLISSEMENT"]
["XC.02","R312","COTISATIONS ASSOCIATIONS / CONCOURS DIVERS"]
["XC.03","R313","NE PLUS UTILISER - UTILISER XC.02"]
["XC.1 ",null,"FRAIS DE PUBLICATION"]
["XC.11","R314","NE PLUS UTILISER"]
["XC.12","R315","FRAIS DE PUBLICATION D'ANNONCES DE RECRUTEMENT"]
["XC.13","R316","AUTRES FRAIS DE PUBLICATION (BOAMP,…)"]
["XC.14","R462","FRAIS POUR PUBLICATION EN ACCES OUVERT D’UN ARTICLE SCIENTIFIQUE (ARTICLE PROCESSING CHARGE)"]
["XC.15","R463","FRAIS DE PUBLICATION MONOGRAPHIE"]
["XC.16","R464","FRAIS DE LIBERATION DE PUBLICATION SCIENTIFIQUES POUR DIFFUSION EN ACCES OUVERT"]
["XC.17","R465","FRAIS DE PUBLICATIONS SCIENTIFIQUES POUR SERVICES (SOUMISSION, AIDE A LA PUBLICATION D’OUVRAGE, FIGURES ET PAGES SUPPLEMENTAIRES"]
["XC.2",null,"SUBVENTIONS ET PARTICIPATIONS VERSEES A D'AUTRES ORGANISMES, Y COMPRIS INTERNATIONAUX"]
["XC.21","R317","SUBV. OU PARTICIP. VERSEES DS LE CADRE DE CONTRATS ET PROG. DE RECH. ET DE DEV."]
["XC.22","R318","SUBVENTIONS OU PARTICIPATIONS VERSEES DANS LE CADRE DE CONVENTIONS DE MIXITE"]
["XC.23","R319","MANDAT DE GESTION"]
["XC.24","R320","DELEGATION GLOBALE DE GESTION - FONCTIONNEMENT ET INVESTISSEMENT COURANT"]
["XC.25","R321","DELEGATION GLOBALE DE GESTION - INVESTISSEMENT NON COURANT"]
["XC.26","R322","SOUTIEN AUX REUNIONS ET COLLOQUES"]
["XC.27","R323","AUTRES SUBVENTIONS OU PARTICIPATIONS VERSEES A D'AUTRES ORGANISMES"]
["XC.3 ",null,"PRESTATIONS DE SERVICES ENTRE ETABLISSEMENTS"]
["XC.31","R395","SERVICES DE PRETS D'OUVRAGES ENTRE ETABLISSEMENTS"]
["XC.32","R396","ACCES AUX EQUIPEMENTS SCIENTIFIQUES D'AUTRES ETABLISSEMENTS"]
["XD",null,"AUTRES CHARGES "]
["XD.0",null,"CHARGES FINANCIERES IMMOBILIERES, BAUX ET LOYERS "]
["XD.01","R326","BAUX ET LOYERS "]
["XD.02","R327","CHARGES LOCATIVES ET DE COPROPRIETE"]
["XD.03","R328","LOCATION DE TERRAIN NU"]
["XD.04","R424","PPP LOYER COMPOSANTE INVESTISSEMENT"]
["XD.05","R425","PPP LOYER COMPOSANTE FINANCEMENT"]
["XD.06","R426","PPP LOYER COMPOSANTE FONCTIONNEMENT"]
["XD.1",null,"CHARGES FISCALES"]
["XD.11","R329","TAXE FONCIERE"]
["XD.12","R330","IMPOTS DIRECTS AUTRES IMPOTS LOCAUX"]
["XD.13","R331","IMPOTS DIRECTS TAXE SUR LES BUREAUX DE LA REGION IDF(ART. 231 TER DU CGI)"]
["XD.14","R332","IMPOTS DIRECTS TAXE SUR LE CHIFFRE D'AFFAIRE NON RECUPERABLES"]
["XD.15","R333","IMPOTS INDIRECTS"]
["XD.16","R334","DROITS DE MUTATION"]
["XD.17","R335","TAXE DIFFERENTIELLE SUR LES VEHICULES A MOTEUR"]
["XD.18","R336","AUTRES DROITS - ADMINISTRATION DES IMPOTS"]
["XD.19","R337","AUTRES DROITS ET TAXES"]
["XD.2",null,"CHARGES EXCEPTIONNELLES"]
["XD.21","R338","PENALITES SUR MARCHES ET DESDITS PAYES SUR ACHATS ET VENTES"]
["XD.22","R339","PENALITES, AMENDES FISCALES OU PENALES"]
["XD.23","R340","NE PLUS UTILISER"]
["XD.24","R341","DEFICITS, DEBETS ADMIS EN DECHARGE OU REMISE GRACIEUSE"]
["XD.25","R342","AUTRES CHARGES EXCEPTIONNELLES"]
["XD.26","R417","AVANCES DE L'ETAT ET DES COLLECTIVITES PUBLIQUES"]
["XD.27","R466","COTISATION FIPHFP"]
["XD.3",null,"CHARGES SPECIFIQUES DESTINEES AUX ETUDIANTS"]
["XD.31","R343","BOURSES ET FRAIS ANNEXES"]
["XD.32","R344","GRATIFICATIONS (STAGE)"]
["XD.33","R345","REMBOURSEMENTS DE FRAIS AVANCES PAR LES ETUDIANTS"]
["XD.34","R346","AIDES ET SOUTIENS DIVERS ACCORDES AUX ETUDIANTS (PRISE EN CHARGE INSCRIPTION,…)"]
["XD.35","R347","AUTRES CHARGES SPECIFIQUES DESTINEES AUX ETUDIANTS"]
["XD.36","R427","HONORAIRES MAITRES DE STAGE"]
["XD.37","R493","HONORAIRES SERVICES DE SANTE A DESTINATION DES ETUDIANTS "]
["XD.4",null,"PROPRIETE INTELLECTUELLE - AUTRES DROITS "]
["XD.41","R348","FRAIS DE  RECHERCHE ET DE DEVELOPPEMENT"]
["XD.42","R349","BREVET D'INVENTION ET LICENCES ROYALTIES VERSEES AU COCONCEDANT"]
["XD.43","R350","SUBVENTION FILIALE DE VALO ET TRANSF TECHNO : SERVICES EN PROP. INTELLECTUELLE"]
["XD.44","R351","HONORAIRES DES FILIALES DE VALORISATION ET DE TRANSFERT DE TECHNOLOGIE (FIST,…)"]
["XD.45","R352","REDEVANCES POUR CONCESSIONS, BREVETS, MARQUES ET PROCEDES"]
["XD.46","R353","DROITS D'AUTEURS ET DE REPRODUCTION"]
["XD.47","R354","AUTRES CONCES, DROITS SIMIL, BREVETS, LICENC, PROCED, DROITS VALEURS : FILIALE"]
["XD.5",null,"CHARGES DE GESTION COURANTE"]
["XD.51","R355","INDEM. DES PERS. SE PRETANT A UNE EXPERIM. (HORS LOI JARDE)"]
["XD.52","R356","INDEM. DES PERS. SE PRETANT A UNE EXPERIM. ( LOI JARDE)"]
["XD.53","R357","CONTRÔLE FINANCIER ET SERVICES DU TRESOR"]
["XD.54","R358","NE PLUS UTILISER"]
["XD.55","R359","PERTE  DE CHANGE "]
["XD.56","R360","AUTRES CHARGES DE GESTION COURANTE"]
["XD.57","R418","NE PLUS UTILISER"]
["XD.58","R419","NE PLUS UTILISER"]
["XD.59","R420","CHARGES SOCIALES DROITS D'AUTEUR"]
["XD.6",null,"FRAIS ANNEXES AUX COMMANDES"]
["XD.61","R361","FRAIS DE PORT ET D'EMBALLAGE (HORS CARBOGLACE) OU DE GESTION"]
["XD.62","R362","DROITS DE DOUANE"]
["XD.63","R421","FRAIS DE DOSSIER SUR DEDOUANEMENT "]
["XE",null,"IMMOBILISATIONS "]
["XE.0",null,"AVANCES ET ACOMPTE SUR IMMOBILISATION"]
["XE.01","R363","ACOMPTES VERSEES SUR IMMOBILISATION INCORPORELLES "]
["XE.02","R364","ACOMPTES VERSEES SUR IMMOBILISATION CORPORELLES "]
["XE.03","R365","PPP : INTERETS INTERCALAIRES"]
["XE.1",null,"ACQUISITIONS IMMOBILISATIONS INCORPORELLES"]
["XE.11","R367","LOGICIELS CREES"]
["XE.12","R368","AUTRES IMMOBILISATIONS INCORPORELLES "]
["XE.13","R369","AUTRES IMMOBILISATIONS INCORPORELLES EN COURS"]
["XE.2",null,"ACQUISITIONS IMMOBILISATIONS CORPORELLES"]
["XE.21","R370","ACHAT DE TERRAIN NUS"]
["XE.22","R371","ACHAT DE TERRAIN AMENAGES"]
["XE.23","R372","ACHAT DE TERRAIN BATIS"]
["XE.24","R373","IMMOBILISATIONS CORPORELLES EN COURS-TERRAINS"]
["XE.25","R374","CONSTRUCTION : OPERATION TERMINEE"]
["XE.26","R375","GANIL"]
["XE.27","R376","COLLECTIONS DE DOCUMENTATION"]
["XE.28","R377","COLLECTIONS LITTERRAIRES, SCIENTIFIQUES ET ARTISTIQUES"]
["XF",null,"FACTURATION INTERNE"]
["XF.0",null,"FACTURATION INTERNE"]
["XF.01","R378","FACTURATION INTERNE - FONCTIONNEMENT COURANT (HORS FLUIDES)"]
["XF.02","R379","FACTURATION INTERNE - FLUIDES"]
["XF.03","R380","FACTURATION INTERNE - FOURNITURES & ÉQUIPEMENTS SCIENTIFIQUES, VALORISATION"]
["XF.04","R381","FACTURATION INTERNE -  MISSIONS, DÉPLACEMENTS, COLLOQUES ET COMMUNICATION"]
["XF.05","R382","FACTURATION INTERNE - INFORMATIQUE"]
["XF.06","R383","FACTURATION INTERNE - IMMOBILIER"]
["XF.07","R384","FACTURATION INTERNE - ACTION SOCIALE"]
["XF.08","R385","FACTURATION INTERNE - SUBVENTIONS"]
["XF.09","R386","FACTURATION INTERNE - AUTRES"]

{"sheet":"Sous enveloppe dotation","index":4,"n_rows":8,"n_cols":1,"rows_kept":8,"cut":false,"hidden":true,"merged":[]}
["A compléter si budget = dotation"]
["HYGIENE ET SECURITE"]
["LAB-MANAGER"]
["GREEN LAB"]
["EVENEMENTS LABO"]
["COMITE DES SEMINAIRES"]
["THESE"]
["FRAIS DE REPRESENTATION"]

{"sheet":"LISTE BUDGET","index":5,"n_rows":201,"n_cols":10,"rows_kept":201,"cut":false,"hidden":true,"merged":[]}
["NOM DU BUDGET","TUTELLE","EQUIPE ","GROUPE ","PFI","PORTEUR","TYPE","DATE DEBUT ELIGIBILITE DE DEPENSES","DATE FIN ELIGIBILITE DE DEPENSES","DATE FIN D'ENGAGEMENT"]
["MULTI IMPUTATION",null,null,null,null,null,null,null,null,{"$f":"IF(I2=0,\"cf détail Budget\",EDATE(I2,-3))","v":"cf détail Budget"}]
["DOTATION UNIV","NANTES UNIVERSITE","DIRECTION","DIRECTION","2226CSUR1229","JEROME GUICHEUX / CATHERINE LEVISAGE","PLURI","2022-01-01","2027-12-31",{"$f":"IF(I3=0,\"Epuisement des fonds\",EDATE(I3,-3))","v":"2027-09-30"}]
["DOTATION INSERM","INSERM","DIRECTION","DIRECTION","NA /  CC : NU1229","JEROME GUICHEUX / CATHERINE LEVISAGE","ANNUEL","2025-01-01","2025-12-31","2025-09-30"]
["DOTATION REJOINT","INSERM","DIRECTION","DIRECTION","3U1229E001SEREJOIN","JEROME GUICHEUX","ANNUEL","2025-01-01","2025-12-31","2025-09-30"]
["DOTATION REGOS","INSERM","DIRECTION","DIRECTION","3U1229E002SEREGOS-","PIERRE WEISS","ANNUEL","2025-01-01","2025-12-31","2025-09-30"]
["Frais de Gestion - Contrats RECH","NANTES UNIVERSITE","DIRECTION","DIRECTION","24PRLTCT1229","JEROME GUICHEUX / CATHERINE LEVISAGE","PLURI","2024-01-01","2026-12-31","2026-09-30"]
["CPCC Romain GUIHO","NANTES UNIVERSITE","REJOINT","AGE-OA","2226CSUR1229","Romain GUIHO","PLURI","2022-01-01","2027-12-31","2027-09-30"]
["CPCC Anaïs CARDON","NANTES UNIVERSITE","REJOINT","STRATOA","2226CSUR1229","Anaïs CARDON","PLURI","2022-01-01","2027-12-31","2027-09-30"]
["CPCC Alexandra CLOITRE","NANTES UNIVERSITE","REGOS","INFLAMED","2226CSUR1229","ALEXANDRA CLOITRE","PLURI","2022-01-01","2027-12-31","2027-09-30"]
["CPCC Alexis GAUDIN","NANTES UNIVERSITE","REGOS","INFLAMED","2226CPCCGAUDIN","ALEXIS GAUDIN","PLURI","2022-01-01","2027-12-31","2027-09-30"]
["CPCC Yoan LEGUENNEC","NANTES UNIVERSITE","PF","PF","2226CPCCLEGUENNEC","YOAN LEGUENNEC","PLURI","2022-01-01","2027-12-31","2027-09-30"]
["ANR CONGOS","NANTES UNIVERSITE","REGOS","MATOS","21CONGOS","PIERRE WEISS","PLURI","2020-10-01","2025-09-30","2025-06-30"]
["Prix LESPITAU","NANTES UNIVERSITE","REJOINT","JG","21LESPIT","JEROME GUICHEUX","PLURI","2021-09-01",null,"Epuisement des fonds"]
["ANR METAB-OA","NANTES UNIVERSITE","REJOINT","HEAL","21METABO","CATHERINE LEVISAGE","PLURI","2020-10-01","2025-09-30","2025-06-30"]
["ANR OVERBONE","NANTES UNIVERSITE","REGOS","EPIGEN","21OVERBO","VALERIE GEOFFROY","PLURI","2020-10-01","2025-12-31","2025-09-30"]
["BONE HEALTH","NANTES UNIVERSITE","REGOS","MATOS","22BONEHE","VALERIE TRICHET","PLURI","2021-10-01","2025-09-30","2025-06-30"]
["CREABONE","NANTES UNIVERSITE","REGOS","MATOS","22CREABO","PIERRE WEISS","PLURI","2021-10-01","2025-10-31","2025-07-31"]
["DISCAFF","NANTES UNIVERSITE","REJOINT","HEAL","22DISCAF","JEROME GUICHEUX","PLURI","2022-03-01","2026-02-28","2025-11-28"]
["GRAPH OCD","NANTES UNIVERSITE","REJOINT","HEAL","23GRAPHO","CATHERINE LEVISAGE","PLURI","2023-12-01","2027-01-31","2026-10-31"]
["EVAGOS","NANTES UNIVERSITE","REGOS","MATOS","22EVAGOS","ASSEM SOUEIDAN","PLURI","2022-01-17","2025-12-03","2025-09-03"]
["Prix G. PIEL","NANTES UNIVERSITE","REJOINT","JG","22GUPIEL","JEROME GUICHEUX","PLURI","2022-12-01","2025-12-31","2025-09-30"]
["IDEAL 3D","NANTES UNIVERSITE","REGOS","INFLAMED","22IDEAL3","ALEXANDRA CLOITRE","PLURI","2021-10-01","2025-12-31","2025-09-30"]
["ANR NEMESIS","NANTES UNIVERSITE","REJOINT","HEAL","22NEMESI","JOHANN CLOUET","PLURI","2023-03-01","2027-02-28","2026-11-28"]
["REGION NEMESI","NANTES UNIVERSITE","REJOINT","HEAL","22NEMESI","JOHANN CLOUET","PLURI","2023-03-01","2027-02-28","2026-11-28"]
["Thèse Garance St Pé","NANTES UNIVERSITE","REJOINT","BIOMAX","22SAINPE","VIANNEY DELPLACE","PLURI","2022-09-23","2025-12-31","2025-09-30"]
["COBIOSTEM","NANTES UNIVERSITE","REJOINT","BIOMAX","23COBIOS","VIANNEY DELPLACE","PLURI","2022-10-01","2026-01-31","2025-10-31"]
["DISPHPE","NANTES UNIVERSITE","REJOINT","BIODIV","23DISPHP","ANNE CAMUS","PLURI","2023-03-01","2028-02-28","2027-11-28"]
["DYNAM-OA","NANTES UNIVERSITE","REJOINT","BIOMAX","23DYNAMO","VIANNEY DELPLACE","PLURI","2022-10-01","2027-01-31","2026-10-31"]
["PULSAR - S SERISIER","NANTES UNIVERSITE","PRE CLINICAL","PRE CLINICAL","23PULSAR","SAMUEL SERISIER","PLURI","2023-07-06","2025-07-06","2025-04-06"]
["PULSAR - G RETHORE","NANTES UNIVERSITE","REGOS","MATOS","23PULSAR","GILDAS RETHORE","PLURI","2023-07-06","2025-07-06","2025-04-06"]
["SMARTIES","NANTES UNIVERSITE","REJOINT","HEAL","23SMARTI","CATHERINE LEVISAGE","PLURI","2023-03-01","2027-02-28","2026-11-28"]
["SPOTT","NANTES UNIVERSITE","REJOINT","STRATOA","23SPOTTE","MARIE-ASTRID BOUTET","PLURI","2023-09-06","2025-06-06","2025-03-06"]
["DONS 2023 COMBAT DE LULU","NANTES UNIVERSITE","REGOS","MATOS","DONDELUL","VALERIE TRICHET","PLURI","2023-06-01","2025-12-31","2025-09-30"]
["DONS 2024 COMBAT DE LULU","NANTES UNIVERSITE","REGOS","MATOS","24DONSVT","VALERIE TRICHET","PLURI","2024-11-01",null,"Epuisement des fonds"]
["PEPR CARN","NANTES UNIVERSITE","REJOINT","AGE-OA","PEPRCARN","JEROME GUICHEUX","PLURI","2023-06-01","2027-05-31","2027-02-28"]
["PVNS","NANTES UNIVERSITE","REJOINT","T-SYNO","24ANRPVN","FREDERIC BLANCHARD","PLURI","2023-12-01","2027-11-30","2027-08-30"]
["TARGET-OA","NANTES UNIVERSITE","REJOINT","AGE-OA","24TARGET","CLAIRE VINATIER","PLURI","2024-04-01","2028-03-31","2027-12-31"]
["TARMAC","NANTES UNIVERSITE","REJOINT","STRATOA","24TARMAC","MARIE-ASTRID BOUTET","PLURI","2024-09-02","2027-09-01","2027-06-01"]
["OLYMPIC","NANTES UNIVERSITE","REJOINT","STRATOA","24OLYMPI","MARIE-ASTRID BOUTET","PLURI","2024-05-01","2027-04-30","2027-01-30"]
["SPHERODISC","NANTES UNIVERSITE","REJOINT","BIODIV","24SFRCAM","ANNE CAMUS","PLURI",null,null,"Epuisement des fonds"]
["ICEBERG","NANTES UNIVERSITE","REGOS","MATOS","24ICEBER","PIERRE WEISS / PIERRE GUIHARD","PLURI","2025-01-01","2028-09-30","2028-06-30"]
["GUEULES CASSEES P CORRE","NANTES UNIVERSITE","REGOS","MATOS","24GCCORR","PIERRE MAITRE/PIERRE CORRE","PLURI","2024-09-01","2025-07-31","2025-04-30"]
["FRAIS DE GESTION CAPACITES","NANTES UNIVERSITE","DIRECTION","DIRECTION","25FGCAPA","JEROME GUICHEUX / CATHERINE LEVISAGE","ANNUEL","2025-01-01","2025-12-31","2025-09-30"]
["CONTRAT REVERSEMENT CAPACITES","NANTES UNIVERSITE","DIRECTION","DIRECTION","25CSCAPA","JEROME GUICHEUX / CATHERINE LEVISAGE","ANNUEL","2025-01-01","2025-12-31","2025-09-30"]
["MAD ANR JGUICHEUX","INSERM","DIRECTION","JG","1RPV22130NTENTEA01","JEROME GUICHEUX / ROMAIN GUIHO","PLURI","2021-10-01",null,"Epuisement des fonds"]
["DOTATION ONIRIS","INSERM","DIRECTION","DIRECTION","1RPK24205NTENTEA01","MARION FUSELIER","PLURI","2024-03-31","2026-06-30","2026-03-30"]
["THESE N GAIGEARD (REGION)","INSERM","REJOINT","STRATOA","1RPH22193NTENTEA01","MARIE-ASTRID BOUTET","PLURI","2022-10-01","2025-09-30","2025-06-30"]
["PULSAR STRATOA","INSERM","REJOINT","STRATOA","1RPH23164NTENTEA01","MARIE-ASTRID BOUTET","PLURI","2023-10-01","2025-09-30","2025-06-30"]
["ATIP AVENIR MAB","INSERM","REJOINT","STRATOA","1RSE22003NTEDGEA01","MARIE-ASTRID BOUTET","ANNUEL","2025-01-01","2025-12-31","2025-09-30"]
["ATIP AVENIR BC","INSERM","REGOS","SAMBA","1RSE23004NTEDGEA01","BAPTISTE CHARBONNIER","ANNUEL","2025-01-01","2025-12-31","2025-09-30"]
["DOTATION JC / B CHARBONNIER","INSERM","REGOS","SAMBA","4BSHARNR25SENU1229","BAPTISTE CHARBONNIER","ANNUEL","2025-01-01","2025-12-31","2025-09-30"]
["GLYCODISC","INSERM","REJOINT","HEAL","1RSE22060NTENTEA01","CATHERINE LEVISAGE","ANNUEL","2025-01-01","2025-12-31","2025-09-30"]
["NEXT BIOCARD","INSERM","REJOINT","STRATOA","1RGE23108NTENTEA01","JEROME GUICHEUX / MARIE-ASTRID BOUTET","PLURI","2023-07-01","2026-12-31","2026-09-30"]
["CAPA PFSC3M MEB","CAPACITES","PF","PF","PFSC3MM2","JOELLE VEZIERS",null,null,null,"Epuisement des fonds"]
["UNIV PF MEB","NANTES UNIVERSITE","PF","PF","25PFMEB2","JOELLE VEZIERS","ANNUEL","2025-01-01","2025-12-31","2025-09-30"]
["CAPA PFSC3M HISTOLOGIE","CAPACITES","PF","PF","PFSC3MHISTO","YOAN LEGUENNEC",null,null,null,"Epuisement des fonds"]
["UNIV PF HISTOLOGIE","NANTES UNIVERSITE","PF","PF","25PFHIST","YOAN LEGUENNEC","ANNUEL","2025-01-01","2025-12-31","2025-09-30"]
["CAPA PF CCELL","CAPACITES","PF","PF","PFRMESCCELL","BORIS HALGAND",null,null,null,"Epuisement des fonds"]
["UNIV PF CCELL","NANTES UNIVERSITE","PF","PF","25PFCCEL","BORIS HALGAND","ANNUEL","2025-01-01","2025-12-31","2025-09-30"]
["CAPA PFBIO3","CAPACITES","PF","PF","PFBIO3COMMUN","FRANCOIS LOLL",null,null,null,"Epuisement des fonds"]
["CAPA PF INOA","CAPACITES","PF","PF","PFRMESINOA","SOPHIE ALLAIN",null,null,null,"Epuisement des fonds"]
["UNIV PF INOA","NANTES UNIVERSITE","PF","PF","25PFINOA","SOPHIE ALLAIN","ANNUEL","2025-01-01","2025-12-31","2025-09-30"]
["CAPA BIOMOL","CAPACITES","PF","PF","PFRMESBIOMOL","MARIELLE TALLEGAS",null,null,null,"Epuisement des fonds"]
["UNIV BIOMOL","NANTES UNIVERSITE","PF","PF","25PFBIOM","MARIELLE TALLEGAS","ANNUEL","2025-01-01","2025-12-31","2025-09-30"]
["CAPA PFRMES AC","CAPACITES","PF","PF","PFRMESAC","ANNE CAMUS",null,null,null,"Epuisement des fonds"]
["CAPA PFRMES CLV","CAPACITES","PF","PF","PFRMESCLV","CATHERINE LEVISAGE",null,null,null,"Epuisement des fonds"]
["CAPA PF RMES FEOM","CAPACITES","PF","PF","PFRMESFEOM","JEROME GUICHEUX / CATHERINE LEVISAGE",null,null,null,"Epuisement des fonds"]
["CAPA PFRMES PHI","CAPACITES","PF","PF","PFRMESPHI","PHILIPPE LESCLOUS",null,null,null,"Epuisement des fonds"]
["CAPA PFRMES JCL","CAPACITES","PF","PF","PFRMESJCL","JOHANN CLOUET",null,null,null,"Epuisement des fonds"]
["CAPA PFRMES JG","CAPACITES","PF","PF","PFRMESJG","JEROME GUICHEUX",null,null,null,"Epuisement des fonds"]
["CAPA LAB COM GELMECS","CAPACITES","REGOS","MATOS","202011496HT01","PIERRE WEISS","PLURI","2020-01-01","2025-12-31","2025-09-30"]
["CAPA GLIOCURE","CAPACITES","PF","PF","202011274GL01","FRANCOIS LOLL",null,null,null,"Epuisement des fonds"]
["CAPA CIFRE - AMS BIOMATLANTE","CAPACITES","EXT","EXT","2023-14972 BI","CYRIL D'ARROS",null,null,null,{"$f":"IF(I74=0,\"Epuisement des fonds\",EDATE(I74,-3))","v":"Epuisement des fonds"}]
["FOND AVENIR B LEGOFF","FONDATION DE L'AVENIR","REJOINT","T-SYNO","AP-RM-23-008","BENOIT LEGOFF","PLURI","2024-09-05","2025-12-13","2025-09-13"]
["FOND AVENIR C DARRIEUTORT","FONDATION DE L'AVENIR","REJOINT","T-SYNO","AP-RM-24-005","CHRISTELLE DARRIEUTORT","PLURI","2025-03-01","2026-09-01","2026-06-01"]
["INCA O MALARD","NANTES UNIVERSITE","REGOS","PRE CLINICAL","25SEQRTH","OLIVIER MALARD","PLURI","2023-04-14","2028-04-13","2028-01-13"]
["NEXT I AMI","NANTES UNIVERSITE","REGOS","MATOS","24X2DECI","GILDAS RETHORE","PLURI","2024-04-01","2027-12-31","2027-09-30"]
["PULSAR BAPTISTE CHARBONNIER","INSERM","REGOS","SAMBA","1RPH24146NTENTEA01","BAPTISTE CHARBONNIER","PLURI","2024-06-05","2026-06-04","2026-03-04"]
[null,null,null,null,null,null,null,null,null,"Epuisement des fonds"]
[null,null,null,null,null,null,null,null,null,"Epuisement des fonds"]
[null,null,null,null,null,null,null,null,null,"Epuisement des fonds"]
[null,null,null,null,null,null,null,null,null,"Epuisement des fonds"]
[null,null,null,null,null,null,null,null,null,"Epuisement des fonds"]
[null,null,null,null,null,null,null,null,null,"Epuisement des fonds"]
[null,null,null,null,null,null,null,null,null,"Epuisement des fonds"]
[null,null,null,null,null,null,null,null,null,"Epuisement des fonds"]
[null,null,null,null,null,null,null,null,null,"Epuisement des fonds"]
[null,null,null,null,null,null,null,null,null,"Epuisement des fonds"]
[null,null,null,null,null,null,null,null,null,"Epuisement des fonds"]
[null,null,null,null,null,null,null,null,null,"Epuisement des fonds"]
[null,null,null,null,null,null,null,null,null,"Epuisement des fonds"]
[null,null,null,null,null,null,null,null,null,"Epuisement des fonds"]
[null,null,null,null,null,null,null,null,null,"Epuisement des fonds"]
[null,null,null,null,null,null,null,null,null,"Epuisement des fonds"]
[null,null,null,null,null,null,null,null,null,"Epuisement des fonds"]
[null,null,null,null,null,null,null,null,null,"Epuisement des fonds"]
[null,null,null,null,null,null,null,null,null,"Epuisement des fonds"]
[null,null,null,null,null,null,null,null,null,"Epuisement des fonds"]
[null,null,null,null,null,null,null,null,null,"Epuisement des fonds"]
[null,null,null,null,null,null,null,null,null,"Epuisement des fonds"]
[null,null,null,null,null,null,null,null,null,"Epuisement des fonds"]
[null,null,null,null,null,null,null,null,null,"Epuisement des fonds"]
[null,null,null,null,null,null,null,null,null,"Epuisement des fonds"]
[null,null,null,null,null,null,null,null,null,"Epuisement des fonds"]
[null,null,null,null,null,null,null,null,null,"Epuisement des fonds"]
[null,null,null,null,null,null,null,null,null,"Epuisement des fonds"]
[null,null,null,null,null,null,null,null,null,"Epuisement des fonds"]
[null,null,null,null,null,null,null,null,null,"Epuisement des fonds"]
[null,null,null,null,null,null,null,null,null,"Epuisement des fonds"]
[null,null,null,null,null,null,null,null,null,"Epuisement des fonds"]
[null,null,null,null,null,null,null,null,null,"Epuisement des fonds"]
[null,null,null,null,null,null,null,null,null,"Epuisement des fonds"]
[null,null,null,null,null,null,null,null,null,"Epuisement des fonds"]
[null,null,null,null,null,null,null,null,null,"Epuisement des fonds"]
[null,null,null,null,null,null,null,null,null,"Epuisement des fonds"]
[null,null,null,null,null,null,null,null,null,"Epuisement des fonds"]
[null,null,null,null,null,null,null,null,null,"Epuisement des fonds"]
[null,null,null,null,null,null,null,null,null,"Epuisement des fonds"]
[null,null,null,null,null,null,null,null,null,"Epuisement des fonds"]
[null,null,null,null,null,null,null,null,null,"Epuisement des fonds"]
[null,null,null,null,null,null,null,null,null,"Epuisement des fonds"]
[null,null,null,null,null,null,null,null,null,"Epuisement des fonds"]
[null,null,null,null,null,null,null,null,null,"Epuisement des fonds"]
[null,null,null,null,null,null,null,null,null,"Epuisement des fonds"]
[null,null,null,null,null,null,null,null,null,"Epuisement des fonds"]
[null,null,null,null,null,null,null,null,null,"Epuisement des fonds"]
[null,null,null,null,null,null,null,null,null,"Epuisement des fonds"]
[null,null,null,null,null,null,null,null,null,"Epuisement des fonds"]
[null,null,null,null,null,null,null,null,null,"Epuisement des fonds"]
[null,null,null,null,null,null,null,null,null,"Epuisement des fonds"]
[null,null,null,null,null,null,null,null,null,"Epuisement des fonds"]
[null,null,null,null,null,null,null,null,null,"Epuisement des fonds"]
[null,null,null,null,null,null,null,null,null,"Epuisement des fonds"]
[null,null,null,null,null,null,null,null,null,"Epuisement des fonds"]
[null,null,null,null,null,null,null,null,null,"Epuisement des fonds"]
[null,null,null,null,null,null,null,null,null,"Epuisement des fonds"]
[null,null,null,null,null,null,null,null,null,{"$f":"IF(I138=0,\"Epuisement des fonds\",EDATE(I138,-3))","v":"Epuisement des fonds"}]
[null,null,null,null,null,null,null,null,null,"Epuisement des fonds"]
[null,null,null,null,null,null,null,null,null,"Epuisement des fonds"]
[null,null,null,null,null,null,null,null,null,"Epuisement des fonds"]
[null,null,null,null,null,null,null,null,null,"Epuisement des fonds"]
[null,null,null,null,null,null,null,null,null,"Epuisement des fonds"]
[null,null,null,null,null,null,null,null,null,"Epuisement des fonds"]
[null,null,null,null,null,null,null,null,null,"Epuisement des fonds"]
[null,null,null,null,null,null,null,null,null,"Epuisement des fonds"]
[null,null,null,null,null,null,null,null,null,"Epuisement des fonds"]
[null,null,null,null,null,null,null,null,null,"Epuisement des fonds"]
[null,null,null,null,null,null,null,null,null,"Epuisement des fonds"]
[null,null,null,null,null,null,null,null,null,"Epuisement des fonds"]
[null,null,null,null,null,null,null,null,null,"Epuisement des fonds"]
[null,null,null,null,null,null,null,null,null,"Epuisement des fonds"]
[null,null,null,null,null,null,null,null,null,"Epuisement des fonds"]
[null,null,null,null,null,null,null,null,null,"Epuisement des fonds"]
[null,null,null,null,null,null,null,null,null,"Epuisement des fonds"]
[null,null,null,null,null,null,null,null,null,"Epuisement des fonds"]
[null,null,null,null,null,null,null,null,null,"Epuisement des fonds"]
[null,null,null,null,null,null,null,null,null,"Epuisement des fonds"]
[null,null,null,null,null,null,null,null,null,"Epuisement des fonds"]
[null,null,null,null,null,null,null,null,null,"Epuisement des fonds"]
[null,null,null,null,null,null,null,null,null,"Epuisement des fonds"]
[null,null,null,null,null,null,null,null,null,"Epuisement des fonds"]
[null,null,null,null,null,null,null,null,null,"Epuisement des fonds"]
[null,null,null,null,null,null,null,null,null,"Epuisement des fonds"]
[null,null,null,null,null,null,null,null,null,"Epuisement des fonds"]
[null,null,null,null,null,null,null,null,null,"Epuisement des fonds"]
[null,null,null,null,null,null,null,null,null,"Epuisement des fonds"]
[null,null,null,null,null,null,null,null,null,"Epuisement des fonds"]
[null,null,null,null,null,null,null,null,null,"Epuisement des fonds"]
[null,null,null,null,null,null,null,null,null,"Epuisement des fonds"]
[null,null,null,null,null,null,null,null,null,"Epuisement des fonds"]
[null,null,null,null,null,null,null,null,null,"Epuisement des fonds"]
[null,null,null,null,null,null,null,null,null,"Epuisement des fonds"]
[null,null,null,null,null,null,null,null,null,"Epuisement des fonds"]
[null,null,null,null,null,null,null,null,null,"Epuisement des fonds"]
[null,null,null,null,null,null,null,null,null,"Epuisement des fonds"]
[null,null,null,null,null,null,null,null,null,"Epuisement des fonds"]
[null,null,null,null,null,null,null,null,null,"Epuisement des fonds"]
[null,null,null,null,null,null,null,null,null,"Epuisement des fonds"]
[null,null,null,null,null,null,null,null,null,"Epuisement des fonds"]
[null,null,null,null,null,null,null,null,null,"Epuisement des fonds"]
[null,null,null,null,null,null,null,null,null,"Epuisement des fonds"]
[null,null,null,null,null,null,null,null,null,"Epuisement des fonds"]
[null,null,null,null,null,null,null,null,null,"Epuisement des fonds"]
[null,null,null,null,null,null,null,null,null,"Epuisement des fonds"]
[null,null,null,null,null,null,null,null,null,"Epuisement des fonds"]
[null,null,null,null,null,null,null,null,null,"Epuisement des fonds"]
[null,null,null,null,null,null,null,null,null,"Epuisement des fonds"]
[null,null,null,null,null,null,null,null,null,"Epuisement des fonds"]
[null,null,null,null,null,null,null,null,null,"Epuisement des fonds"]
[null,null,null,null,null,null,null,null,null,"Epuisement des fonds"]
[null,null,null,null,null,null,null,null,null,"Epuisement des fonds"]
[null,null,null,null,null,null,null,null,null,"Epuisement des fonds"]
[null,null,null,null,null,null,null,null,null,"Epuisement des fonds"]
[null,null,null,null,null,null,null,null,null,"Epuisement des fonds"]
[null,null,null,null,null,null,null,null,null,"Epuisement des fonds"]
[null,null,null,null,null,null,null,null,null,{"$f":"IF(I197=0,\"Epuisement des fonds\",EDATE(I197,-3))","v":"Epuisement des fonds"}]
[null,null,null,null,null,null,null,null,null,"Epuisement des fonds"]
[null,null,null,null,null,null,null,null,null,"Epuisement des fonds"]
[null,null,null,null,null,null,null,null,null,"Epuisement des fonds"]
[null,null,null,null,null,null,null,null,null,"Epuisement des fonds"]

{"sheet":"CODE NACRE-marchés publics","index":6,"n_rows":311,"n_cols":5,"rows_kept":311,"cut":false,"hidden":true,"merged":[]}
["Liste des marchés transversaux actifs NANTES UNIVERSITE >>",null,null,null,"MARCHES ACTIFS"]
["Liste des marchés transversaux actifs INSERM >>  CRONOS\\RMES_GESTIONFIN3\\2-INSERM\\__PROCEDURES\\3-MARCHES PUBLICS"]
[]
["CODE NACRES"]
["NANTES UNIVERSITE","INSERM"]
["AA.63","AB.01"]
["AB.01","AC.01"]
["AB.02","AC.11"]
["AB.03","BA.01"]
["AB.11","BA.02"]
["AB.12","BB.33 "]
["AC.01","BE.11"]
["AC.02","CA.11"]
["AC.03","CA.13"]
["AC.21","CE.11 "]
["AC.22","CE.12"]
["AC.41","CE.13"]
["AC.42","CE.14"]
["AF.01","CE.21"]
["BA.01","CF.03"]
["BA.02","CI.11"]
["BA.05","DC. 01"]
["BB.01","DC.11"]
["BB.02","EA.21"]
["BB.11","EA.22 "]
["BB.13","EB.06"]
["BB.31","EB.13 "]
["BB.32","EB.31"]
["BC.01","ED.03"]
["BC.02","FB.03"]
["BC.12","FB.06"]
["BD.02","FC.13"]
["BD.04","HA.01"]
["BD.15","HA.02"]
["BD.21","HA.03"]
["BD.22","HA.04"]
["BE.02","HA.05"]
["BE.11","HA.06"]
["BE.13","HA.07"]
["BE.14","HA.11"]
["BE.15","HA.12"]
["BG.21","HA.21"]
["CA.01","HA.22"]
["CA.31","HA.23"]
["CA.32","HA.24"]
["CA.33","IA.01 "]
["CB.12","IA.11 "]
["CB.21","IA.12"]
["CB.23","IA.22"]
["CE.01","IA.23"]
["CE.02","IA.24"]
["CE.03","IA.31"]
["CE.04","IA.32"]
["CE.11","IA.33"]
["CE.12","IB.01"]
["CE.13","IB.05 "]
["CE.14","IB.06"]
["CG.11","IB.11"]
["CG.12","IB.13"]
["DA.02","IB.32"]
["DA.11","IB.41"]
["DB.11","IB.42"]
["DC.01","IB.43"]
["DC.11","IB.52"]
["EA.12","IC.22"]
["FA.11","ID.13"]
["FC.11","ID.18"]
["FD.01","ID.31 "]
["FD.11","ID.33"]
["GA.09","ID.43"]
["GA.41","ID.44"]
["GC.02","ID.45"]
["HA.01","ID.51 "]
["HA.02","ID.52 "]
["HA.03","ID.53"]
["HA.04","ID.76"]
["HA.05","IG.01"]
["HA.06","IG.01 "]
["HA.07","IH.01"]
["HA.11","II.01"]
["HA.12","II.02"]
["HA.21","II.11"]
["HA.22","JA.01"]
["HA.23","JA.02"]
["HA.24","JA.03"]
["HB.01","JA.11"]
["IA.01","JA.12"]
["IA.11","JA.13"]
["IA.12","JA.14"]
["IA.21","KA.01 "]
["IA.22","KA.02"]
["IA.23","KB.01"]
["IA.24","KB.02"]
["IA.25","KC.21"]
["IA.31","KE.01"]
["IA.32","KE.01 "]
["IA.41","KG.02"]
["IA.42","LB.11"]
["IC.31","MA.01"]
["IE.01","MA.02"]
["IE.02","MA.11"]
["IE.11","MA.12"]
["IE.12","MA.13"]
["IE.21","MA.14"]
["IE.22","MA.15"]
["IE.23","MA.21"]
["IE.31","MA.22"]
["IE.32","MA.23"]
["IE.33","MA.24"]
["IE.34","MA.25"]
["IE.35","MA.31"]
["IF.01","MA.32"]
["IF.02","MA.33"]
["IF.03","MA.41"]
["IF.04","MA.42"]
["IF.05","MA.43"]
["IG.02","MA.44"]
["IG.04","MA.45"]
["IH.02","MA.46"]
["II.01","MA.47"]
["II.02","MA.48"]
["II.03","NA.24"]
["JA.01","NA.25"]
["JA.02","NA.26"]
["JA.03","NA.28"]
["JA.11","NA.31"]
["JA.12","NA.32"]
["JA.13","NA.47"]
["JA.14","NA.51"]
["JB.11","NA.52"]
["KA,01","NA.53"]
["KA.02","NA.54"]
["KB.02","NA.55"]
["KC.21","NA.56"]
["KC.23","NA.61"]
["KC.24","NA.62"]
["KG.04","NA.71"]
["KG.05","NA.72"]
["LB.32","NA.73"]
["LC.03","NA.74"]
["MA.01","NA.75"]
["MA.02","NA.76"]
["MA.11","NA.77"]
["MA.12","NA.78"]
["MA.13","NA.79"]
["MA.14","NA.81"]
["MA.15","NA.82"]
["MA.21","NA.83"]
["MA.22","NA.84"]
["MA.23","NA.85"]
["MA.24","NB.01"]
["MA.25","NB.02"]
["MA.31","NB.03"]
["MA.32","NB.04"]
["MA.33","NB.05"]
["MA.41","NB.11"]
["MA.42","NB.12"]
["MA.43","NB.13"]
["MA.44","NB.14"]
["MA.45","NB.15"]
["MA.46","NB.16"]
["MA.47","NB.17"]
["MA.48","NB.21"]
["MB.02","NB.22"]
["MB.03","NB.23"]
["NA.24","NB.24"]
["NA.25","NB.31"]
["NA.26","NB.32"]
["NA.28","NB.33"]
["NA.31","NB.34"]
["NA.32","NB.35"]
["NA.47","NB.41"]
["NA.51","NB.42"]
["NA.52","NB.43"]
["NA.53","NB.44"]
["NA.54","NB.45"]
["NA.55","NB.51"]
["NA.56","NB.61"]
["NA.61","NB.62"]
["NA.62","NB.71"]
["NA.71","NB.72"]
["NA.72","NB.73"]
["NA.73","NB.74"]
["NA.74","NB.75"]
["NA.75","NB.76"]
["NA.76","NB.77"]
["NA.77","NB.78"]
["NA.78","NB.79"]
["NA.79","NB.81"]
["NA.81","NB.82"]
["NA.82","NB.83"]
["NA.83","NB.84"]
["NA.84","NB.85"]
["NA.85","NB.86"]
["NB.01","NB.87"]
["NB.02","NC.17 "]
["NB.03","NC.54"]
["NB.04","NC.55"]
["NB.05","ND.04"]
["NB.11","ND.11"]
["NB.12","ND.12"]
["NB.13","ND.13"]
["NB.14","ND.14"]
["NB.15","ND.41"]
["NB.16","ND.52"]
["NB.17","OA.31"]
["NB.21","OA.32"]
["NB.22","OA.33"]
["NB.23","OA.34"]
["NB.24","OA.35"]
["NB.31","OA.36"]
["NB.32","OA.37"]
["NB.33","OA.38"]
["NB.34","SB.23"]
["NB.35","SB.51"]
["NB.41","SB.53"]
["NB.42","SC.01"]
["NB.43","SC.21"]
["NB.44"]
["NB.45"]
["NB.51"]
["NB.61"]
["NB.62"]
["NB.71"]
["NB.72"]
["NB.73"]
["NB.74"]
["NB.75"]
["NB.76"]
["NB.77"]
["NB.78"]
["NB.79"]
["NB.81"]
["NB.82"]
["NB.83"]
["NB.84"]
["NB.85"]
["NB.86"]
["NB.87"]
["NC.54"]
["NC.55"]
["ND.04"]
["ND.11"]
["ND.12"]
["ND.13"]
["ND.14"]
["ND.41"]
["ND.52"]
["OA.01"]
["OA.02"]
["OA.03"]
["OA.04"]
["OA.05"]
["RA.16"]
["RA.17"]
["RA.21"]
["RA.22"]
["RA.23"]
["RA.31"]
["SA.01"]
["SA.02"]
["SA.03"]
["SA.04"]
["SA.05"]
["SA.11"]
["SA.12"]
["SB.01"]
["SB.02"]
["SB.11"]
["SB.12"]
["SB.21"]
["SB.22"]
["SB.23"]
["SB.24"]
["SB.31"]
["SB.32"]
["SB.51"]
["SB.52"]
["SB.53"]
["SB.54"]
["SB.55"]
["SB.56"]
["SC.01"]
["SC.02"]
["SC.03"]
["SC.04"]
["SC.05"]
["SC.11"]
["SC.12"]
["SC.21"]
["SC.22"]
["SD.01"]
["SD.02"]
["SD.03"]
["SD.04"]
["SE.01"]
["SE.02"]
["SG.01"]
["SG.11"]
["SG.12"]
["SG.13"]
["SG.14"]
["SG.21"]
["SG.22"]
["SG.23"]
["SG.31"]
["SH.21"]
["SH.22"]
["SH.23"]
["SH.24"]
["XD.46"]